DepartmentFamily,Entity,Date,ExpenseType,ExpenseArea,Supplier,Transaction Number,Amount,VAT Registration Number
BEIS,The Insolvency Service,14/04/2019,Training,People & Capability,Capita Business Services Limited,300008213,10283.25,618184140
BEIS,The Insolvency Service,03/04/2019,Legal Costs,Business Service Division,Government Legal Department,300007597,26400.30,
BEIS,The Insolvency Service,04/04/2019,Legal Costs,Business Service Division,Government Legal Department,300007598,693.20,
BEIS,The Insolvency Service,10/04/2019,Legal Costs,People & Capability,Government Legal Department,300008061,1345.95,
BEIS,The Insolvency Service,10/04/2019,Legal Costs,People & Capability,Government Legal Department,300008062,4994.40,
BEIS,The Insolvency Service,10/04/2019,Legal Costs,People & Capability,Government Legal Department,300008064,385.80,
BEIS,The Insolvency Service,23/04/2019,Legal Costs,Business Service Division,Government Legal Department,300007760,3009.95,
BEIS,The Insolvency Service,23/04/2019,Legal Costs,Business Service Division,Government Legal Department,300007761,1140.55,
BEIS,The Insolvency Service,23/04/2019,Legal Costs,Business Service Division,Government Legal Department,300007765,4919.70,
BEIS,The Insolvency Service,23/04/2019,Legal Costs,Business Service Division,Government Legal Department,300007766,917.20,
BEIS,The Insolvency Service,23/04/2019,Legal Costs,Business Service Division,Government Legal Department,300007767,2225.20,
BEIS,The Insolvency Service,23/04/2019,Legal Costs,Business Service Division,Government Legal Department,300007768,399.60,
BEIS,The Insolvency Service,23/04/2019,Legal Costs,Business Service Division,Government Legal Department,300007769,765.70,
BEIS,The Insolvency Service,23/04/2019,Legal Costs,Business Service Division,Government Legal Department,300007770,2447.50,
BEIS,The Insolvency Service,23/04/2019,Legal Costs,Business Service Division,Government Legal Department,300007771,1335.70,
BEIS,The Insolvency Service,05/04/2019,Insolvency Case Related Costs,Official Receiver Services,Insolvency Service Account,30000057,-40.00,
BEIS,The Insolvency Service,06/04/2019,Insolvency Case Related Costs,Official Receiver Services,Insolvency Service Account,30000055,-40.00,
BEIS,The Insolvency Service,06/04/2019,Insolvency Case Related Costs,Official Receiver Services,Insolvency Service Account,30000056,-175.00,
BEIS,The Insolvency Service,09/04/2019,Insolvency Case Related Costs,Official Receiver Services,Insolvency Service Account,30000058,-175.00,
BEIS,The Insolvency Service,10/04/2019,Insolvency Case Related Costs,Official Receiver Services,Insolvency Service Account,30000059,-20.00,
BEIS,The Insolvency Service,30/04/2019,Insolvency Case Related Costs,Finance & Commercial,Insolvency Service Account,30000060,-2.84,
BEIS,The Insolvency Service,22/04/2019,Insolvency Case Related Costs,Official Receiver Services,Insolvency Service Account,300007976,-162.48,
BEIS,The Insolvency Service,22/04/2019,Insolvency Case Related Costs,Official Receiver Services,Insolvency Service Account,300007976,-65.24,
BEIS,The Insolvency Service,22/04/2019,Insolvency Case Related Costs,Official Receiver Services,Insolvency Service Account,300007976,-175.00,
BEIS,The Insolvency Service,23/04/2019,Insolvency Case Related Costs,Official Receiver Services,REGISTRAR OF COMPANIES,300008014,-300.00,
BEIS,The Insolvency Service,17/04/2019,Legal Costs,Legal Services Division,5 St Andrews Hill,300008233,180.00,703074472
BEIS,The Insolvency Service,12/04/2019,Legal Costs,Legal Services Division,9 King's Bench Walk,300007772,310.00,397241918
BEIS,The Insolvency Service,04/04/2019,Training,People & Capability,Access 2 Comfort Ltd,300007569,550.00,980253321
BEIS,The Insolvency Service,04/04/2019,Training,People & Capability,Access 2 Comfort Ltd,300007570,650.00,980253321
BEIS,The Insolvency Service,01/04/2019,Computer & IT Systems,Information & Technology,AccessData Group Inc,300006847,4396.26,
BEIS,The Insolvency Service,03/04/2019,Accomodation,Finance & Commercial,Acenes House Ltd,300007599,13860.00,182 6969 58
BEIS,The Insolvency Service,03/04/2019,Consultancy,Strategy & Change,Actica Consulting Limited,300007439,4320.00,3396854
BEIS,The Insolvency Service,23/04/2019,Consultancy,Official Receiver Services,Actica Consulting Limited,300008137,18562.50,3396854
BEIS,The Insolvency Service,26/04/2019,Consultancy,Official Receiver Services,Actica Consulting Limited,300008179,2343.75,3396854
BEIS,The Insolvency Service,15/04/2019,Consultancy,Strategy & Change,Agilisys Ltd,300007800,4620.00,791 7117 13
BEIS,The Insolvency Service,17/04/2019,Consultancy,Strategy & Change,Agilisys Ltd,300007886,6000.00,791 7117 13
BEIS,The Insolvency Service,25/04/2019,Consultancy,Strategy & Change,Agilisys Ltd,300007887,17160.00,791 7117 13
BEIS,The Insolvency Service,03/04/2019,Agency Costs,Finance & Commercial,ALEXANDER MANN SOLUTIONS,300007555,106986.35,7444926120
BEIS,The Insolvency Service,09/04/2019,Agency Costs,Finance & Commercial,ALEXANDER MANN SOLUTIONS,300007741,97146.65,7444926120
BEIS,The Insolvency Service,16/04/2019,Agency Costs,Finance & Commercial,ALEXANDER MANN SOLUTIONS,300007841,83463.52,7444926120
BEIS,The Insolvency Service,25/04/2019,Agency Costs,Finance & Commercial,ALEXANDER MANN SOLUTIONS,300008012,87620.44,7444926120
BEIS,The Insolvency Service,25/04/2019,Agency Costs,Finance & Commercial,ALEXANDER MANN SOLUTIONS,300008178,58421.21,7444926120
BEIS,The Insolvency Service,05/04/2019,Agency Costs,Official Receiver Services,Allen Lane Limited,300007657,11280.00,835 9709 85
BEIS,The Insolvency Service,12/04/2019,Legal Costs,Investigations & Enforcement Services,Allied Publicity Services (Manchester) Ltd T/A Aps Group,300007795,18.94,146494152
BEIS,The Insolvency Service,01/04/2019,Computer & IT Systems,Information & Technology,Altia Solutions Ltd,300006882,576.02,789836741
BEIS,The Insolvency Service,01/04/2019,Computer & IT Systems,Information & Technology,Altia Solutions Ltd,300006882,3071.98,789836741
BEIS,The Insolvency Service,17/04/2019,Storage,Official Receiver Services,Archive Management Systems Ltd,300007963,724.50,292 5560 40
BEIS,The Insolvency Service,03/04/2019,Computer & IT Systems,Information & Technology,Atos It Services Uk Ltd,300007496,2042.28,232327983
BEIS,The Insolvency Service,03/04/2019,Computer & IT Systems,Information & Technology,Atos It Services Uk Ltd,300007497,3902.36,232327983
BEIS,The Insolvency Service,03/04/2019,Computer & IT Systems,Information & Technology,Atos It Services Uk Ltd,300007498,3653.41,232327983
BEIS,The Insolvency Service,03/04/2019,Computer & IT Systems,Information & Technology,Atos It Services Uk Ltd,300007499,1299.58,232327983
BEIS,The Insolvency Service,03/04/2019,Computer & IT Systems,Information & Technology,Atos It Services Uk Ltd,300007500,10442.22,232327983
BEIS,The Insolvency Service,03/04/2019,Computer & IT Systems,Information & Technology,Atos It Services Uk Ltd,300007501,2153.95,232327983
BEIS,The Insolvency Service,03/04/2019,Computer & IT Systems,Information & Technology,Atos It Services Uk Ltd,300007502,1555.23,232327983
BEIS,The Insolvency Service,03/04/2019,Computer & IT Systems,Information & Technology,Atos It Services Uk Ltd,300007504,2906.65,232327983
BEIS,The Insolvency Service,03/04/2019,Computer & IT Systems,Information & Technology,Atos It Services Uk Ltd,300007507,1295.15,232327983
BEIS,The Insolvency Service,03/04/2019,Computer & IT Systems,Information & Technology,Atos It Services Uk Ltd,300007508,4664.20,232327983
BEIS,The Insolvency Service,03/04/2019,Computer & IT Systems,Information & Technology,Atos It Services Uk Ltd,300007509,1826.70,232327983
BEIS,The Insolvency Service,03/04/2019,Computer & IT Systems,Information & Technology,Atos It Services Uk Ltd,300007510,2201.35,232327983
BEIS,The Insolvency Service,03/04/2019,Computer & IT Systems,Finance & Commercial,Atos It Services Uk Ltd,300007511,14631.09,232327983
BEIS,The Insolvency Service,03/04/2019,Computer & IT Systems,Strategy & Change,Atos It Services Uk Ltd,300007512,2757.34,232327983
BEIS,The Insolvency Service,03/04/2019,Computer & IT Systems,Strategy & Change,Atos It Services Uk Ltd,300007514,1023.89,232327983
BEIS,The Insolvency Service,04/04/2019,Computer & IT Systems,Information & Technology,Atos It Services Uk Ltd,300007506,876.69,232327983
BEIS,The Insolvency Service,16/04/2019,Computer & IT Systems,Information & Technology,Atos It Services Uk Ltd,300007495,27044.23,232327983
BEIS,The Insolvency Service,16/04/2019,Computer & IT Systems,Strategy & Change,Atos It Services Uk Ltd,300007513,75680.90,232327983
BEIS,The Insolvency Service,16/04/2019,Computer & IT Systems,Strategy & Change,Atos It Services Uk Ltd,300007515,33217.99,232327983
BEIS,The Insolvency Service,23/04/2019,Accomodation,Finance & Commercial,Avison Young,300007938,981.71,657 7195 90
BEIS,The Insolvency Service,23/04/2019,Accomodation,Finance & Commercial,Avison Young,300007960,947.65,657 7195 90
BEIS,The Insolvency Service,12/04/2019,Accomodation,Finance & Commercial,Avison Young,300007747,5025.60,894545868
BEIS,The Insolvency Service,12/04/2019,Accomodation,Finance & Commercial,Avison Young,300007748,218721.90,894545868
BEIS,The Insolvency Service,12/04/2019,Computer & IT Systems,Information & Technology,Bang Communications,300006972,3024.00,569978254
BEIS,The Insolvency Service,17/04/2019,Printing and Stationery,Business Service Division,Banner Business Services Ltd,300007695,7587.88,731 8604 39
BEIS,The Insolvency Service,17/04/2019,Training,People & Capability,Beis - Dept. For Business Innovation & Skills,300008084,10520.00, 888 8255 50
BEIS,The Insolvency Service,01/04/2019,Accomodation,Finance & Commercial,Birmingham City Council,300007834,206640.00,
BEIS,The Insolvency Service,01/04/2019,Accomodation,Finance & Commercial,Birmingham City Council,300008161,982.00,
BEIS,The Insolvency Service,01/04/2019,Accomodation,Finance & Commercial,Birmingham City Council,300008162,982.00,
BEIS,The Insolvency Service,01/04/2019,Accomodation,Finance & Commercial,Birmingham City Council,300008163,982.00,
BEIS,The Insolvency Service,01/04/2019,Accomodation,Finance & Commercial,Birmingham City Council,300008164,982.00,
BEIS,The Insolvency Service,01/04/2019,Accomodation,Finance & Commercial,Birmingham City Council,300008165,982.00,
BEIS,The Insolvency Service,01/04/2019,Accomodation,Finance & Commercial,Birmingham City Council,300008166,982.00,
BEIS,The Insolvency Service,01/04/2019,Accomodation,Finance & Commercial,Birmingham City Council,300008167,982.00,
BEIS,The Insolvency Service,01/04/2019,Accomodation,Finance & Commercial,Birmingham City Council,300008168,982.00,
BEIS,The Insolvency Service,01/04/2019,Accomodation,Finance & Commercial,Birmingham City Council,300008169,982.00,
BEIS,The Insolvency Service,01/04/2019,Accomodation,Finance & Commercial,Birmingham City Council,300008170,982.00,
BEIS,The Insolvency Service,01/04/2019,Accomodation,Finance & Commercial,Birmingham City Council,300008171,982.00,
BEIS,The Insolvency Service,17/04/2019,Computer & IT Systems,Business Service Division,Bottomline Technologies,300007544,1320.00,7245482 31
BEIS,The Insolvency Service,17/04/2019,Computer & IT Systems,Business Service Division,Bottomline Technologies,300007591,9020.74,7245482 31
BEIS,The Insolvency Service,12/04/2019,Accomodation,Finance & Commercial,British Gas Business,300007773,161.69,684 9667 62
BEIS,The Insolvency Service,05/04/2019,Investigation & Enforcement Costs,Investigations & Enforcement Services,Burness Paull & Williamsons Solicitors,300007564,8028.23,216 2185 32
BEIS,The Insolvency Service,05/04/2019,Investigation & Enforcement Costs,Investigations & Enforcement Services,Burness Paull & Williamsons Solicitors,300007564,303.83,216 2185 32
BEIS,The Insolvency Service,05/04/2019,Investigation & Enforcement Costs,Investigations & Enforcement Services,Burness Paull & Williamsons Solicitors,300007564,1485.72,216 2185 32
BEIS,The Insolvency Service,05/04/2019,Investigation & Enforcement Costs,Investigations & Enforcement Services,Burness Paull & Williamsons Solicitors,300007564,284.06,216 2185 32
BEIS,The Insolvency Service,05/04/2019,Investigation & Enforcement Costs,Official Receiver Services,Burness Paull & Williamsons Solicitors,300007564,11717.57,216 2185 32
BEIS,The Insolvency Service,05/04/2019,Investigation & Enforcement Costs,Investigations & Enforcement Services,Burness Paull & Williamsons Solicitors,300007564,8277.01,216 2185 32
BEIS,The Insolvency Service,05/04/2019,Investigation & Enforcement Costs,Investigations & Enforcement Services,Burness Paull & Williamsons Solicitors,300007564,3.00,216 2185 32
BEIS,The Insolvency Service,12/04/2019,Consultancy,People & Capability,Capita Business Services Ltd,300007193,1576.54,618 1841 40
BEIS,The Insolvency Service,03/04/2019,Training,Official Receiver Services,Capita Business Services Ltd,300006873,1115.70,618 1841 40
BEIS,The Insolvency Service,08/04/2019,Legal Costs,Investigations & Enforcement Services,Ccl Forensic Ltd,300007586,1500.00,855232135
BEIS,The Insolvency Service,08/04/2019,Legal Costs,Investigations & Enforcement Services,Ccl Forensic Ltd,300007587,975.00,855232135
BEIS,The Insolvency Service,01/04/2019,Training,People & Capability,Cipd Enterprises Ltd,300007549,2045.00,756 2027 37
BEIS,The Insolvency Service,01/04/2019,Printing and Stationery,Chief Executive Office,Cision,300007974,523.00, 757 1580 12
BEIS,The Insolvency Service,17/04/2019,Postage,Business Service Division,City Sprint Uk Ltd,300007696,53.90,997 3273 64
BEIS,The Insolvency Service,17/04/2019,Postage,Business Service Division,City Sprint Uk Ltd,300007697,43.25,997 3273 64
BEIS,The Insolvency Service,17/04/2019,Postage,Business Service Division,City Sprint Uk Ltd,300007833,24.95,997 3273 64
BEIS,The Insolvency Service,17/04/2019,Postage,Business Service Division,City Sprint Uk Ltd,300007895,68.68,997 3273 64
BEIS,The Insolvency Service,17/04/2019,Postage,Business Service Division,City Sprint Uk Ltd,300007896,113.55,997 3273 64
BEIS,The Insolvency Service,20/04/2019,Postage,Business Service Division,City Sprint Uk Ltd,300008085,85.00,997 3273 64
BEIS,The Insolvency Service,03/04/2019,Investigation & Enforcement Costs,Investigations & Enforcement Services,Clarke Willmott Solicitors,300007560,138.04,129 9130 60
BEIS,The Insolvency Service,17/04/2019,Investigation & Enforcement Costs,Finance & Commercial,Clarke Willmott Solicitors,300007860,32.05,129 9130 60
BEIS,The Insolvency Service,01/04/2019,Accomodation,Finance & Commercial,Colliers International Property Consultants Ltd,300008047,338.56,
BEIS,The Insolvency Service,29/04/2019,Accomodation,Finance & Commercial,Colliers International Property Consultants Ltd,300008134,1472.69,
BEIS,The Insolvency Service,04/04/2019,Insolvency Case Related Costs,Business Service Division,Companies House,300007571,5.00,GD255
BEIS,The Insolvency Service,12/04/2019,Insolvency Case Related Costs,Investigations & Enforcement Services,Companies House,300007793,4.00,GD255
BEIS,The Insolvency Service,23/04/2019,Insolvency Case Related Costs,Business Service Division,Companies House,300006925,23.00,GD255
BEIS,The Insolvency Service,26/04/2019,Insolvency Case Related Costs,Business Service Division,Companies House,300007649,9.00,GD255
BEIS,The Insolvency Service,09/04/2019,Agency Costs,Information & Technology,Concept Information Technology Ltd,300007661,2550.00,776147892
BEIS,The Insolvency Service,12/04/2019,Agency Costs,Information & Technology,Concept Information Technology Ltd,300007738,2040.00,776147892
BEIS,The Insolvency Service,14/04/2019,Consultancy,Information & Technology,Concept Information Technology Ltd,300007973,2550.00,776147892
BEIS,The Insolvency Service,16/04/2019,Consultancy,Information & Technology,Concept Information Technology Ltd,300007842,2550.00,776147892
BEIS,The Insolvency Service,26/04/2019,Computer & IT Systems,Chief Executive Office,Copyright Licensing Agency Ltd,300008135,-6852.05,
BEIS,The Insolvency Service,05/04/2019,Storage,Official Receiver Services,Crown Records Management,300007643,71.24,902181658
BEIS,The Insolvency Service,05/04/2019,Storage,Official Receiver Services,Crown Records Management,300007644,1573.02,902181658
BEIS,The Insolvency Service,18/04/2019,Telephone,Investigations & Enforcement Services,Daisy Communications Ltd,300007921,37.24,
BEIS,The Insolvency Service,18/04/2019,Telephone,Investigations & Enforcement Services,Daisy Communications Ltd,300007924,8.23,
BEIS,The Insolvency Service,18/04/2019,Telephone,Investigations & Enforcement Services,Daisy Communications Ltd,300007927,40.50,
BEIS,The Insolvency Service,01/04/2019,Other Costs,Business Service Division,Department For Work & Pensions,300007503,4260.00,888 8155 54
BEIS,The Insolvency Service,25/04/2019,Other Costs,Business Service Division,Department For Work & Pensions,300007847,5589.12,888 8155 54
BEIS,The Insolvency Service,12/04/2019,Employee Related Costs,People & Capability,Duradiamond Healthcare Limited,300007733,2411.57,806426440
BEIS,The Insolvency Service,05/04/2019,Postage,Business Service Division,Dx Network Services Ltd,300007541,1131.48,849741385
BEIS,The Insolvency Service,15/04/2019,Accomodation,Finance & Commercial,E.On Energy,300008214,266.18,559 0978 89
BEIS,The Insolvency Service,10/04/2019,Telephone,Information & Technology,Ee Ltd (Air Time),300007972,720.00,771592016
BEIS,The Insolvency Service,23/04/2019,Telephone,Information & Technology,Ee Ltd (Air Time),300007812,1380.00,771592016
BEIS,The Insolvency Service,23/04/2019,Telephone,Information & Technology,Ee Ltd (Air Time),300007849,360.00,771592016
BEIS,The Insolvency Service,03/04/2019,Insolvency Case Related Costs,Investigations & Enforcement Services,Equifax Ltd,300006562,19902.12,565629213
BEIS,The Insolvency Service,09/04/2019,Insolvency Case Related Costs,Business Service Division,Equifax Ltd,300008092,11001.60,565629213
BEIS,The Insolvency Service,17/04/2019,Insolvency Case Related Costs,Business Service Division,Equifax Ltd,300007694,13268.08,565629213
BEIS,The Insolvency Service,23/04/2019,Insolvency Case Related Costs,Finance & Commercial,Equifax Ltd,300008028,-443.04,565629213
BEIS,The Insolvency Service,24/04/2019,Insolvency Case Related Costs,Official Receiver Services,Equifax Ltd,300008030,-1539.06,565629213
BEIS,The Insolvency Service,24/04/2019,Insolvency Case Related Costs,Official Receiver Services,Equifax Ltd,300008030,-1261.75,565629213
BEIS,The Insolvency Service,24/04/2019,Insolvency Case Related Costs,Official Receiver Services,Equifax Ltd,300008030,-420.00,565629213
BEIS,The Insolvency Service,24/04/2019,Insolvency Case Related Costs,Official Receiver Services,Equifax Ltd,300008030,-11940.00,565629213
BEIS,The Insolvency Service,12/04/2019,Accomodation,Finance & Commercial,Eversheds Sutherland (International) Llp,300007757,715.14,
BEIS,The Insolvency Service,25/04/2019,Accomodation,Finance & Commercial,Exeter City Council,300007859,50400.00,
BEIS,The Insolvency Service,03/04/2019,Computer & IT Systems,Information & Technology,Experian Qas Ltd,300007594,100483.70,887 1335 93
BEIS,The Insolvency Service,15/04/2019,Storage,Official Receiver Services,File Centre,300007804,300.90,885439474
BEIS,The Insolvency Service,01/04/2019,Insolvency Case Related Costs,Official Receiver Services,Frank G. Bowen Ltd,300007489,102.00,238 5043 66
BEIS,The Insolvency Service,01/04/2019,Insolvency Case Related Costs,Official Receiver Services,Frank G. Bowen Ltd,300007490,144.00,238 5043 66
BEIS,The Insolvency Service,01/04/2019,Insolvency Case Related Costs,Official Receiver Services,Frank G. Bowen Ltd,300007491,102.00,238 5043 66
BEIS,The Insolvency Service,01/04/2019,Insolvency Case Related Costs,Official Receiver Services,Frank G. Bowen Ltd,300007492,102.00,238 5043 66
BEIS,The Insolvency Service,01/04/2019,Insolvency Case Related Costs,Official Receiver Services,Frank G. Bowen Ltd,300007493,102.00,238 5043 66
BEIS,The Insolvency Service,25/04/2019,Insolvency Case Related Costs,Official Receiver Services,Frank G. Bowen Ltd,300007928,902.78,238 5043 66
BEIS,The Insolvency Service,25/04/2019,Insolvency Case Related Costs,Official Receiver Services,Frank G. Bowen Ltd,300007929,85.00,238 5043 66
BEIS,The Insolvency Service,25/04/2019,Insolvency Case Related Costs,Official Receiver Services,Frank G. Bowen Ltd,300007930,161.50,238 5043 66
BEIS,The Insolvency Service,12/04/2019,Telephone,Information & Technology,Gamma Business Communications Ltd,300007799,3277.03,823820344
BEIS,The Insolvency Service,01/04/2019,Computer & IT Systems,Information & Technology,Geoff Smith Associates Ltd,300006785,24523.15,813 0471 66
BEIS,The Insolvency Service,05/04/2019,Computer & IT Systems,Information & Technology,Geoff Smith Associates Ltd,300007656,20392.01,813 0471 66
BEIS,The Insolvency Service,08/04/2019,Legal Costs,Official Receiver Services,Government Legal Department,300007575,155.50,888 8230 66
BEIS,The Insolvency Service,10/04/2019,Legal Costs,Legal Services Division,Government Legal Department,300008229,133.92,888 8230 66
BEIS,The Insolvency Service,10/04/2019,Legal Costs,Legal Services Division,Government Legal Department,300008230,1219.68,888 8230 66
BEIS,The Insolvency Service,01/04/2019,Accomodation,Finance & Commercial,GPA (c/o CRBE Ltd),300007603,1750.00,
BEIS,The Insolvency Service,01/04/2019,Accomodation,Finance & Commercial,GPA (c/o CRBE Ltd),300007640,33786.51,
BEIS,The Insolvency Service,03/04/2019,Accomodation,Finance & Commercial,GPA (c/o CRBE Ltd),300007600,551850.75,
BEIS,The Insolvency Service,03/04/2019,Accomodation,Finance & Commercial,GPA (c/o CRBE Ltd),300007601,7695.18,
BEIS,The Insolvency Service,03/04/2019,Accomodation,Finance & Commercial,GPA (c/o CRBE Ltd),300007602,33786.51,
BEIS,The Insolvency Service,04/04/2019,Accomodation,Finance & Commercial,GPA (c/o CRBE Ltd),300007580,70449.73,
BEIS,The Insolvency Service,03/04/2019,Computer & IT Systems,Chief Executive Office,Granicus,300007536,1048.00,943669974
BEIS,The Insolvency Service,03/04/2019,Computer & IT Systems,Chief Executive Office,Granicus,300007537,655.00,943669974
BEIS,The Insolvency Service,05/04/2019,Computer & IT Systems,Chief Executive Office,Granicus,300007652,674.73,943669974
BEIS,The Insolvency Service,17/04/2019,Printing and Stationery,Business Service Division,Hague Computer Supplies,300007641,1967.88,333 6137 74
BEIS,The Insolvency Service,04/04/2019,Agency Costs,Finance & Commercial,Hays Specialist Recruitment Ltd,300007739,1556.64,773 6958 71
BEIS,The Insolvency Service,23/04/2019,Agency Costs,Finance & Commercial,Hays Specialist Recruitment Ltd,300007660,1556.64,773 6958 71
BEIS,The Insolvency Service,25/04/2019,Agency Costs,Finance & Commercial,Hays Specialist Recruitment Ltd,300007796,1556.64,773 6958 71
BEIS,The Insolvency Service,05/04/2019,Training,Official Receiver Services,Head Heart And Brain,300007637,900.00,
BEIS,The Insolvency Service,04/04/2019,Accomodation,Finance & Commercial,HM Land Registry (F&C - Estates),300007589,141435.17,
BEIS,The Insolvency Service,12/04/2019,Accomodation,Finance & Commercial,HM Land Registry (F&C - Estates),300007798,769.49,
BEIS,The Insolvency Service,23/04/2019,Investigation & Enforcement Costs,Official Receiver Services,Hmcts,300008018,-110.00,
BEIS,The Insolvency Service,23/04/2019,Investigation & Enforcement Costs,Official Receiver Services,Hmcts,300008027,-300.00,
BEIS,The Insolvency Service,23/04/2019,Investigation & Enforcement Costs,Official Receiver Services,HMCTS,300008020,-280.00,
BEIS,The Insolvency Service,23/04/2019,Investigation & Enforcement Costs,Official Receiver Services,Hmcts,300008010,-308.00,
BEIS,The Insolvency Service,23/04/2019,Investigation & Enforcement Costs,Official Receiver Services,Hmcts,300008010,-280.00,
BEIS,The Insolvency Service,23/04/2019,Investigation & Enforcement Costs,Official Receiver Services,Hmcts,300008010,-280.00,
BEIS,The Insolvency Service,23/04/2019,Investigation & Enforcement Costs,Official Receiver Services,Hmcts,300008013,-280.00,
BEIS,The Insolvency Service,23/04/2019,Investigation & Enforcement Costs,Official Receiver Services,Hmcts,300008011,-528.00,
BEIS,The Insolvency Service,23/04/2019,Investigation & Enforcement Costs,Official Receiver Services,Hmcts,300008011,-528.00,
BEIS,The Insolvency Service,23/04/2019,Investigation & Enforcement Costs,Official Receiver Services,HMCTS,300008077,528.00,
BEIS,The Insolvency Service,03/04/2019,Insolvency Case Related Costs,Official Receiver Services,Hpi Ltd,300007548,55.03,942 4071 39
BEIS,The Insolvency Service,03/04/2019,Computer & IT Systems,Investigations & Enforcement Services,Insight Direct (UK) Ltd,300007553,31665.31,746075129
BEIS,The Insolvency Service,09/04/2019,Computer & IT Systems,Strategy & Change,Insight Direct (UK) Ltd,300007740,228978.96,746075129
BEIS,The Insolvency Service,24/04/2019,Computer & IT Systems,Strategy & Change,Insight Direct (UK) Ltd,300008083,167473.52,746075129
BEIS,The Insolvency Service,16/04/2019,Training,Strategy & Change,Insolvency Lawyers Association,300007801,112.50,656868182
BEIS,The Insolvency Service,16/04/2019,Training,Strategy & Change,Insolvency Lawyers Association,300007802,472.50,656868182
BEIS,The Insolvency Service,16/04/2019,Training,Strategy & Change,Insolvency Lawyers Association,300007803,472.50,656868182
BEIS,The Insolvency Service,03/04/2019,Storage,Business Service Division,Iron Mountain (Uk) Ltd,300007543,39418.50,607 9375 16
BEIS,The Insolvency Service,18/04/2019,Storage,Finance & Commercial,Iron Mountain (Uk) Ltd,300006917,11.60,607 9375 16
BEIS,The Insolvency Service,18/04/2019,Storage,Finance & Commercial,Iron Mountain (Uk) Ltd,300007313,3392.23,607 9375 16
BEIS,The Insolvency Service,18/04/2019,Storage,Finance & Commercial,Iron Mountain (Uk) Ltd,300007318,3301.85,607 9375 16
BEIS,The Insolvency Service,18/04/2019,Storage,Finance & Commercial,Iron Mountain (Uk) Ltd,300007319,3299.78,607 9375 16
BEIS,The Insolvency Service,03/04/2019,Accomodation,Finance & Commercial,Jones Lang Lasalle (Amas Ltd),300007590,70341.35,244 1555 76
BEIS,The Insolvency Service,08/04/2019,Accomodation,Finance & Commercial,Jones Lang Lasalle (Amas Ltd),300006557,187174.50,244 1555 76
BEIS,The Insolvency Service,16/04/2019,Investigation & Enforcement Costs,Investigations & Enforcement Services,K International Plc,300007662,661.00,600413800
BEIS,The Insolvency Service,18/04/2019,Telephone,Official Receiver Services,Kcom Group Plc,300007791,72.00,647235137
BEIS,The Insolvency Service,03/04/2019,Training,People & Capability,Korn Ferry Hay Group - Csl,300007550,1166.40,
BEIS,The Insolvency Service,09/04/2019,Training,Official Receiver Services,KPMG LLP,300006600,299.00,
BEIS,The Insolvency Service,12/04/2019,Training,People & Capability,KPMG LLP,300007448,325.00, 791 7888 59
BEIS,The Insolvency Service,12/04/2019,Training,Investigations & Enforcement Services,KPMG LLP,300007797,149.00, 791 7888 59
BEIS,The Insolvency Service,16/04/2019,Training,People & Capability,KPMG LLP,300007846,132.00, 791 7888 59
BEIS,The Insolvency Service,23/04/2019,Accomodation,Finance & Commercial,Land Registry,300008026,-1469.12,
BEIS,The Insolvency Service,23/04/2019,Insolvency Case Related Costs,Official Receiver Services,Land Registry,300008009,-40.00,
BEIS,The Insolvency Service,04/04/2019,Printing and Stationery,Official Receiver Services,Lexis Nexis,300007241,14118.93,730859520
BEIS,The Insolvency Service,04/04/2019,Printing and Stationery,Investigations & Enforcement Services,Lexis Nexis,300007241,10532.63,730859520
BEIS,The Insolvency Service,04/04/2019,Printing and Stationery,Legal Services Division,Lexis Nexis,300007241,3933.17,730859520
BEIS,The Insolvency Service,04/04/2019,Printing and Stationery,Business Service Division,Lexis Nexis,300007241,8735.00,730859520
BEIS,The Insolvency Service,15/04/2019,Computer & IT Systems,Information & Technology,Maintel,300008015,4941.68,
BEIS,The Insolvency Service,01/04/2019,Legal Costs,Investigations & Enforcement Services,Mendip Media Group Ltd,300008080,225.53,609546425
BEIS,The Insolvency Service,01/04/2019,Legal Costs,Investigations & Enforcement Services,Mendip Media Group Ltd,300008081,335.76,609546425
BEIS,The Insolvency Service,04/04/2019,Accomodation,Finance & Commercial,Middlesbrough Council,300007639,413.64,734213854
BEIS,The Insolvency Service,29/04/2019,Accomodation,Finance & Commercial,Middlesbrough Council,300008132,413.64,734213854
BEIS,The Insolvency Service,12/04/2019,Agency Costs,People & Capability,MIKE CURTIS REWARD SOLUTIONS LIMITED,300007658,4702.50,191066804
BEIS,The Insolvency Service,01/04/2019,Postage,Business Service Division,Neopost Limited (Consumables),300008158,40.00,
BEIS,The Insolvency Service,01/04/2019,Postage,Business Service Division,Neopost Limited (Consumables),300008159,229.98,
BEIS,The Insolvency Service,17/04/2019,Printing and Stationery,Business Service Division,Neopost Limited (Consumables),300007692,229.98,
BEIS,The Insolvency Service,17/04/2019,Printing and Stationery,Business Service Division,Neopost Limited (Consumables),300007693,24.69,
BEIS,The Insolvency Service,24/04/2019,Printing and Stationery,Business Service Division,Neopost Limited (Consumables),300008091,114.99,
BEIS,The Insolvency Service,16/04/2019,Computer & IT Systems,Strategy & Change,Netcompany,300006872,76927.20, 171 8090 09
BEIS,The Insolvency Service,25/04/2019,Computer & IT Systems,Strategy & Change,Netcompany,300007911,92733.60, 171 8090 09
BEIS,The Insolvency Service,01/04/2019,Computer & IT Systems,Information & Technology,Nine Telecom,300008078,239.76,886132113
BEIS,The Insolvency Service,01/04/2019,Computer & IT Systems,Information & Technology,Nine Telecom,300008079,239.76,886132113
BEIS,The Insolvency Service,01/04/2019,Printing and Stationery,People & Capability,Northgate Training Ltd,300008152,18.00,328 3499 32
BEIS,The Insolvency Service,01/04/2019,Training,People & Capability,Northgate Training Ltd,300008152,395.00,328 3499 32
BEIS,The Insolvency Service,08/04/2019,Training,Chief Executive Office,Orc International Ltd,300007581,4610.00,
BEIS,The Insolvency Service,23/04/2019,Accomodation,Finance & Commercial,Plymouth City Council,300007650,693.20,
BEIS,The Insolvency Service,08/04/2019,Legal Costs,Legal Services Division,Police And Crime Commissioner For Hampshire,300008232,416.00,
BEIS,The Insolvency Service,03/04/2019,Investigation & Enforcement Costs,Official Receiver Services,Pricewaterhouse Coopers LLP,300007595,706338.00,243823957
BEIS,The Insolvency Service,09/04/2019,Accomodation,Finance & Commercial,Prydis Support Ltd,300007588,452.40,974841283
BEIS,The Insolvency Service,01/04/2019,Storage,Official Receiver Services,Purdie Worldwide,300007955,633.68,208569880
BEIS,The Insolvency Service,12/04/2019,Storage,Official Receiver Services,Purdie Worldwide,300007774,134.01,208569880
BEIS,The Insolvency Service,12/04/2019,Storage,Official Receiver Services,Purdie Worldwide,300007776,63.06,208569880
BEIS,The Insolvency Service,12/04/2019,Storage,Official Receiver Services,Purdie Worldwide,300007777,63.06,208569880
BEIS,The Insolvency Service,15/04/2019,Storage,Official Receiver Services,Purdie Worldwide,300007775,701.57,208569880
BEIS,The Insolvency Service,23/04/2019,Storage,Official Receiver Services,Purdie Worldwide,300007931,134.01,208569880
BEIS,The Insolvency Service,23/04/2019,Storage,Official Receiver Services,Purdie Worldwide,300007932,63.06,208569880
BEIS,The Insolvency Service,23/04/2019,Storage,Official Receiver Services,Purdie Worldwide,300007933,701.57,208569880
BEIS,The Insolvency Service,23/04/2019,Storage,Official Receiver Services,Purdie Worldwide,300007934,63.06,208569880
BEIS,The Insolvency Service,23/04/2019,Storage,Official Receiver Services,Purdie Worldwide,300007954,121.04,208569880
BEIS,The Insolvency Service,23/04/2019,Storage,Official Receiver Services,Purdie Worldwide,300007956,56.96,208569880
BEIS,The Insolvency Service,23/04/2019,Storage,Official Receiver Services,Purdie Worldwide,300007957,56.96,208569880
BEIS,The Insolvency Service,24/04/2019,Training,People & Capability,Remploy Ltd,300008037,-2769.00,207281428
BEIS,The Insolvency Service,01/04/2019,Accomodation,Business Service Division,Restore Datashred,300008094,37.76,240193143
BEIS,The Insolvency Service,01/04/2019,Accomodation,Business Service Division,Restore Datashred,300008095,64.00,240193143
BEIS,The Insolvency Service,01/04/2019,Accomodation,Business Service Division,Restore Datashred,300008096,106.10,240193143
BEIS,The Insolvency Service,01/04/2019,Accomodation,Business Service Division,Restore Datashred,300008097,47.15,240193143
BEIS,The Insolvency Service,01/04/2019,Accomodation,Business Service Division,Restore Datashred,300008098,128.00,240193143
BEIS,The Insolvency Service,01/04/2019,Accomodation,Business Service Division,Restore Datashred,300008099,85.80,240193143
BEIS,The Insolvency Service,01/04/2019,Accomodation,Business Service Division,Restore Datashred,300008100,64.00,240193143
BEIS,The Insolvency Service,01/04/2019,Accomodation,Business Service Division,Restore Datashred,300008101,64.85,240193143
BEIS,The Insolvency Service,01/04/2019,Accomodation,Business Service Division,Restore Datashred,300008102,37.50,240193143
BEIS,The Insolvency Service,01/04/2019,Accomodation,Business Service Division,Restore Datashred,300008103,80.92,240193143
BEIS,The Insolvency Service,01/04/2019,Accomodation,Business Service Division,Restore Datashred,300008104,32.00,240193143
BEIS,The Insolvency Service,01/04/2019,Accomodation,Business Service Division,Restore Datashred,300008105,96.00,240193143
BEIS,The Insolvency Service,01/04/2019,Accomodation,Business Service Division,Restore Datashred,300008106,74.10,240193143
BEIS,The Insolvency Service,01/04/2019,Accomodation,Business Service Division,Restore Datashred,300008107,77.76,240193143
BEIS,The Insolvency Service,01/04/2019,Accomodation,Business Service Division,Restore Datashred,300008108,160.00,240193143
BEIS,The Insolvency Service,01/04/2019,Accomodation,Business Service Division,Restore Datashred,300008109,85.80,240193143
BEIS,The Insolvency Service,01/04/2019,Accomodation,Business Service Division,Restore Datashred,300008110,64.00,240193143
BEIS,The Insolvency Service,01/04/2019,Accomodation,Business Service Division,Restore Datashred,300008111,32.85,240193143
BEIS,The Insolvency Service,01/04/2019,Accomodation,Business Service Division,Restore Datashred,300008112,32.00,240193143
BEIS,The Insolvency Service,01/04/2019,Accomodation,Business Service Division,Restore Datashred,300008113,44.96,240193143
BEIS,The Insolvency Service,01/04/2019,Accomodation,Business Service Division,Restore Datashred,300008114,220.11,240193143
BEIS,The Insolvency Service,01/04/2019,Accomodation,Business Service Division,Restore Datashred,300008115,106.35,240193143
BEIS,The Insolvency Service,01/04/2019,Accomodation,Business Service Division,Restore Datashred,300008116,64.00,240193143
BEIS,The Insolvency Service,01/04/2019,Accomodation,Business Service Division,Restore Datashred,300008117,671.04,240193143
BEIS,The Insolvency Service,01/04/2019,Accomodation,Business Service Division,Restore Datashred,300008119,64.00,240193143
BEIS,The Insolvency Service,01/04/2019,Accomodation,Business Service Division,Restore Datashred,300008120,74.10,240193143
BEIS,The Insolvency Service,01/04/2019,Accomodation,Business Service Division,Restore Datashred,300008121,123.11,240193143
BEIS,The Insolvency Service,01/04/2019,Accomodation,Business Service Division,Restore Datashred,300008122,130.70,240193143
BEIS,The Insolvency Service,01/04/2019,Accomodation,Business Service Division,Restore Datashred,300008123,85.80,240193143
BEIS,The Insolvency Service,01/04/2019,Accomodation,Business Service Division,Restore Datashred,300008124,96.00,240193143
BEIS,The Insolvency Service,01/04/2019,Accomodation,Business Service Division,Restore Datashred,300008125,32.85,240193143
BEIS,The Insolvency Service,01/04/2019,Accomodation,Business Service Division,Restore Datashred,300008126,37.50,240193143
BEIS,The Insolvency Service,01/04/2019,Accomodation,Business Service Division,Restore Datashred,300008127,32.00,240193143
BEIS,The Insolvency Service,01/04/2019,Accomodation,Business Service Division,Restore Datashred,300008128,48.71,240193143
BEIS,The Insolvency Service,01/04/2019,Accomodation,Business Service Division,Restore Datashred,300008129,159.41,240193143
BEIS,The Insolvency Service,01/04/2019,Accomodation,Business Service Division,Restore Datashred,300008130,64.00,240193143
BEIS,The Insolvency Service,01/04/2019,Accomodation,Business Service Division,Restore Datashred,300008131,473.04,240193143
BEIS,The Insolvency Service,17/04/2019,Accomodation,Business Service Division,Restore Datashred (Data Solutions 2016 Ltd T/A Restore Data),300007670,44.96,240193143
BEIS,The Insolvency Service,17/04/2019,Accomodation,Business Service Division,Restore Datashred (Data Solutions 2016 Ltd T/A Restore Data),300007671,96.11,240193143
BEIS,The Insolvency Service,17/04/2019,Accomodation,Business Service Division,Restore Datashred (Data Solutions 2016 Ltd T/A Restore Data),300007672,74.10,240193143
BEIS,The Insolvency Service,17/04/2019,Accomodation,Business Service Division,Restore Datashred (Data Solutions 2016 Ltd T/A Restore Data),300007673,32.00,240193143
BEIS,The Insolvency Service,17/04/2019,Accomodation,Business Service Division,Restore Datashred (Data Solutions 2016 Ltd T/A Restore Data),300007674,160.76,240193143
BEIS,The Insolvency Service,17/04/2019,Accomodation,Business Service Division,Restore Datashred (Data Solutions 2016 Ltd T/A Restore Data),300007676,64.00,240193143
BEIS,The Insolvency Service,17/04/2019,Accomodation,Business Service Division,Restore Datashred (Data Solutions 2016 Ltd T/A Restore Data),300007678,64.00,240193143
BEIS,The Insolvency Service,17/04/2019,Accomodation,Business Service Division,Restore Datashred (Data Solutions 2016 Ltd T/A Restore Data),300007679,516.82,240193143
BEIS,The Insolvency Service,17/04/2019,Accomodation,Business Service Division,Restore Datashred (Data Solutions 2016 Ltd T/A Restore Data),300007680,37.50,240193143
BEIS,The Insolvency Service,17/04/2019,Accomodation,Business Service Division,Restore Datashred (Data Solutions 2016 Ltd T/A Restore Data),300007681,64.00,240193143
BEIS,The Insolvency Service,17/04/2019,Accomodation,Business Service Division,Restore Datashred (Data Solutions 2016 Ltd T/A Restore Data),300007682,64.00,240193143
BEIS,The Insolvency Service,17/04/2019,Accomodation,Business Service Division,Restore Datashred (Data Solutions 2016 Ltd T/A Restore Data),300007683,37.95,240193143
BEIS,The Insolvency Service,17/04/2019,Accomodation,Business Service Division,Restore Datashred (Data Solutions 2016 Ltd T/A Restore Data),300007684,32.00,240193143
BEIS,The Insolvency Service,17/04/2019,Accomodation,Business Service Division,Restore Datashred (Data Solutions 2016 Ltd T/A Restore Data),300007685,64.00,240193143
BEIS,The Insolvency Service,12/04/2019,Storage,Official Receiver Services,Restore Plc (Records Management),300007736,7027.67,843863011
BEIS,The Insolvency Service,10/04/2019,Legal Costs,Investigations & Enforcement Services,Ricoh Uk Limited,300008234,358.44,
BEIS,The Insolvency Service,10/04/2019,Legal Costs,Investigations & Enforcement Services,Ricoh Uk Limited,300008235,429.13,
BEIS,The Insolvency Service,03/04/2019,Employee Related Costs,People & Capability,Right Corecare Ltd,300007547,577.88,
BEIS,The Insolvency Service,05/04/2019,Computer & IT Systems,Information & Technology,Rjd Technology Limited,300007469,3420.00,78572284
BEIS,The Insolvency Service,18/04/2019,Postage,Business Service Division,Royal Mail,300007962,-7.94,
BEIS,The Insolvency Service,01/04/2019,Postage,Business Service Division,Royal Mail,300008157,102.42,243 1700 02
BEIS,The Insolvency Service,04/04/2019,Postage,Business Service Division,Royal Mail,300008153,2.52,243 1700 02
BEIS,The Insolvency Service,05/04/2019,Postage,Business Service Division,Royal Mail,300007542,24.03,243 1700 02
BEIS,The Insolvency Service,15/04/2019,Postage,Business Service Division,Royal Mail,300008155,2.05,243 1700 02
BEIS,The Insolvency Service,17/04/2019,Postage,Business Service Division,Royal Mail,300007698,12.17,243 1700 02
BEIS,The Insolvency Service,17/04/2019,Postage,Business Service Division,Royal Mail,300007699,99.00,243 1700 02
BEIS,The Insolvency Service,17/04/2019,Postage,Business Service Division,Royal Mail,300007703,7.12,243 1700 02
BEIS,The Insolvency Service,17/04/2019,Postage,Business Service Division,Royal Mail,300007704,41.85,243 1700 02
BEIS,The Insolvency Service,17/04/2019,Postage,Business Service Division,Royal Mail,300007831,2750.00,243 1700 02
BEIS,The Insolvency Service,08/04/2019,Legal Costs,Investigations & Enforcement Services,Safestore Ltd,300007551,26.58,
BEIS,The Insolvency Service,08/04/2019,Legal Costs,Investigations & Enforcement Services,Safestore Ltd,300007551,103.51,
BEIS,The Insolvency Service,17/04/2019,Agency Costs,Finance & Commercial,SF RECRUITMENT LTD,300006880,2493.60,141 9659 92
BEIS,The Insolvency Service,03/04/2019,Accomodation,Finance & Commercial,Sheffield City Council,300007585,1750.00,
BEIS,The Insolvency Service,12/04/2019,Accomodation,Finance & Commercial,Sheffield City Council,300007651,1750.00,
BEIS,The Insolvency Service,04/04/2019,Investigation & Enforcement Costs,Investigations & Enforcement Services,Shepherd & Wedderburn,300007567,5828.72,890 5593 86
BEIS,The Insolvency Service,04/04/2019,Investigation & Enforcement Costs,Investigations & Enforcement Services,Shepherd & Wedderburn,300007567,10560.00,890 5593 86
BEIS,The Insolvency Service,04/04/2019,Investigation & Enforcement Costs,Investigations & Enforcement Services,Shepherd & Wedderburn,300007567,17319.96,890 5593 86
BEIS,The Insolvency Service,04/04/2019,Investigation & Enforcement Costs,Investigations & Enforcement Services,Shepherd & Wedderburn,300007567,308.00,890 5593 86
BEIS,The Insolvency Service,04/04/2019,Investigation & Enforcement Costs,Investigations & Enforcement Services,Shepherd & Wedderburn,300007567,1957.95,890 5593 86
BEIS,The Insolvency Service,04/04/2019,Investigation & Enforcement Costs,Investigations & Enforcement Services,Shepherd & Wedderburn,300007567,229.00,890 5593 86
BEIS,The Insolvency Service,09/04/2019,Training,Finance & Commercial,Simpson Associates Information Services Limited,300007737,9000.00,545630250
BEIS,The Insolvency Service,08/04/2019,Other Costs,Official Receiver Services,Sirs (Europe) Ltd,300007655,18180.00,990 834 974
BEIS,The Insolvency Service,08/04/2019,Other Costs,Investigations & Enforcement Services,Sirs (Europe) Ltd,300007655,3030.00,990 834 974
BEIS,The Insolvency Service,08/04/2019,Other Costs,Investigations & Enforcement Services,Sirs (Europe) Ltd,300007655,3030.00,990 834 974
BEIS,The Insolvency Service,12/04/2019,Training,People & Capability,Skills For Justice (Enterprises) Ltd,300007659,750.00,167140810
BEIS,The Insolvency Service,09/04/2019,Employee Related Costs,People & Capability,Smart Employee Eyecare,300007742,228.00,
BEIS,The Insolvency Service,23/04/2019,Computer & IT Systems,Information & Technology,Smartcomms Sc Ltd,300007813,6600.00,
BEIS,The Insolvency Service,03/04/2019,Computer & IT Systems,Information & Technology,SmartSourcing,300007520,4320.00,788 5078 69
BEIS,The Insolvency Service,03/04/2019,Computer & IT Systems,Information & Technology,SmartSourcing,300007521,2956.80,788 5078 69
BEIS,The Insolvency Service,03/04/2019,Computer & IT Systems,Information & Technology,SmartSourcing,300007522,2544.00,788 5078 69
BEIS,The Insolvency Service,03/04/2019,Computer & IT Systems,Information & Technology,SmartSourcing,300007523,3630.00,788 5078 69
BEIS,The Insolvency Service,03/04/2019,Computer & IT Systems,Information & Technology,SmartSourcing,300007524,3696.00,788 5078 69
BEIS,The Insolvency Service,03/04/2019,Computer & IT Systems,Information & Technology,SmartSourcing,300007525,3180.00,788 5078 69
BEIS,The Insolvency Service,03/04/2019,Computer & IT Systems,Information & Technology,SmartSourcing,300007526,3720.00,788 5078 69
BEIS,The Insolvency Service,03/04/2019,Computer & IT Systems,Information & Technology,SmartSourcing,300007527,4110.00,788 5078 69
BEIS,The Insolvency Service,03/04/2019,Computer & IT Systems,Information & Technology,SmartSourcing,300007528,3000.00,788 5078 69
BEIS,The Insolvency Service,03/04/2019,Computer & IT Systems,Information & Technology,SmartSourcing,300007529,3750.00,788 5078 69
BEIS,The Insolvency Service,03/04/2019,Computer & IT Systems,Information & Technology,SmartSourcing,300007530,3150.00,788 5078 69
BEIS,The Insolvency Service,03/04/2019,Computer & IT Systems,Information & Technology,SmartSourcing,300007531,2940.00,788 5078 69
BEIS,The Insolvency Service,03/04/2019,Computer & IT Systems,Information & Technology,SmartSourcing,300007532,2709.72,788 5078 69
BEIS,The Insolvency Service,03/04/2019,Computer & IT Systems,Information & Technology,SmartSourcing,300007533,2016.00,788 5078 69
BEIS,The Insolvency Service,12/04/2019,Computer & IT Systems,Information & Technology,SmartSourcing,300007716,3150.00,788 5078 69
BEIS,The Insolvency Service,12/04/2019,Computer & IT Systems,Information & Technology,SmartSourcing,300007717,9672.00,788 5078 69
BEIS,The Insolvency Service,12/04/2019,Computer & IT Systems,Information & Technology,SmartSourcing,300007718,3750.00,788 5078 69
BEIS,The Insolvency Service,12/04/2019,Computer & IT Systems,Information & Technology,SmartSourcing,300007719,3696.00,788 5078 69
BEIS,The Insolvency Service,12/04/2019,Computer & IT Systems,Information & Technology,SmartSourcing,300007720,3180.00,788 5078 69
BEIS,The Insolvency Service,12/04/2019,Computer & IT Systems,Information & Technology,SmartSourcing,300007721,1908.00,788 5078 69
BEIS,The Insolvency Service,12/04/2019,Computer & IT Systems,Information & Technology,SmartSourcing,300007722,3750.00,788 5078 69
BEIS,The Insolvency Service,12/04/2019,Computer & IT Systems,Information & Technology,SmartSourcing,300007723,2016.00,788 5078 69
BEIS,The Insolvency Service,12/04/2019,Computer & IT Systems,Information & Technology,SmartSourcing,300007724,4110.00,788 5078 69
BEIS,The Insolvency Service,12/04/2019,Computer & IT Systems,Information & Technology,SmartSourcing,300007725,4320.00,788 5078 69
BEIS,The Insolvency Service,12/04/2019,Computer & IT Systems,Information & Technology,SmartSourcing,300007726,2956.80,788 5078 69
BEIS,The Insolvency Service,12/04/2019,Computer & IT Systems,Information & Technology,SmartSourcing,300007727,3630.00,788 5078 69
BEIS,The Insolvency Service,12/04/2019,Computer & IT Systems,Information & Technology,SmartSourcing,300007728,2940.00,788 5078 69
BEIS,The Insolvency Service,12/04/2019,Computer & IT Systems,Information & Technology,SmartSourcing,300007729,3000.00,788 5078 69
BEIS,The Insolvency Service,12/04/2019,Computer & IT Systems,Information & Technology,SmartSourcing,300007730,3720.00,788 5078 69
BEIS,The Insolvency Service,12/04/2019,Computer & IT Systems,Information & Technology,SmartSourcing,300007731,3510.00,788 5078 69
BEIS,The Insolvency Service,16/04/2019,Computer & IT Systems,Information & Technology,SmartSourcing,300007715,7440.00,788 5078 69
BEIS,The Insolvency Service,16/04/2019,Computer & IT Systems,Information & Technology,SmartSourcing,300007816,2940.00,788 5078 69
BEIS,The Insolvency Service,16/04/2019,Computer & IT Systems,Information & Technology,SmartSourcing,300007817,3000.00,788 5078 69
BEIS,The Insolvency Service,16/04/2019,Computer & IT Systems,Information & Technology,SmartSourcing,300007818,4110.00,788 5078 69
BEIS,The Insolvency Service,16/04/2019,Computer & IT Systems,Information & Technology,SmartSourcing,300007821,2808.00,788 5078 69
BEIS,The Insolvency Service,16/04/2019,Computer & IT Systems,Information & Technology,SmartSourcing,300007823,3180.00,788 5078 69
BEIS,The Insolvency Service,16/04/2019,Computer & IT Systems,Information & Technology,SmartSourcing,300007824,3696.00,788 5078 69
BEIS,The Insolvency Service,16/04/2019,Computer & IT Systems,Information & Technology,SmartSourcing,300007825,3180.00,788 5078 69
BEIS,The Insolvency Service,16/04/2019,Computer & IT Systems,Information & Technology,SmartSourcing,300007826,3630.00,788 5078 69
BEIS,The Insolvency Service,16/04/2019,Computer & IT Systems,Information & Technology,SmartSourcing,300007827,4320.00,788 5078 69
BEIS,The Insolvency Service,16/04/2019,Computer & IT Systems,Information & Technology,SmartSourcing,300007828,2956.80,788 5078 69
BEIS,The Insolvency Service,16/04/2019,Computer & IT Systems,Information & Technology,SmartSourcing,300007829,3750.00,788 5078 69
BEIS,The Insolvency Service,16/04/2019,Computer & IT Systems,Information & Technology,SmartSourcing,300007830,3720.00,788 5078 69
BEIS,The Insolvency Service,16/04/2019,Computer & IT Systems,Information & Technology,SmartSourcing,300007840,3348.00,788 5078 69
BEIS,The Insolvency Service,18/04/2019,Computer & IT Systems,Information & Technology,SmartSourcing,300007889,7500.00,788 5078 69
BEIS,The Insolvency Service,18/04/2019,Computer & IT Systems,Information & Technology,SmartSourcing,300007890,3630.00,788 5078 69
BEIS,The Insolvency Service,18/04/2019,Computer & IT Systems,Information & Technology,SmartSourcing,300007891,3720.00,788 5078 69
BEIS,The Insolvency Service,18/04/2019,Computer & IT Systems,Information & Technology,SmartSourcing,300007893,4320.00,788 5078 69
BEIS,The Insolvency Service,18/04/2019,Computer & IT Systems,Information & Technology,SmartSourcing,300007894,3180.00,788 5078 69
BEIS,The Insolvency Service,18/04/2019,Computer & IT Systems,Information & Technology,SmartSourcing,300007897,2544.00,788 5078 69
BEIS,The Insolvency Service,18/04/2019,Computer & IT Systems,Information & Technology,SmartSourcing,300007898,2956.80,788 5078 69
BEIS,The Insolvency Service,18/04/2019,Computer & IT Systems,Information & Technology,SmartSourcing,300007899,3510.00,788 5078 69
BEIS,The Insolvency Service,18/04/2019,Computer & IT Systems,Information & Technology,SmartSourcing,300007900,4110.00,788 5078 69
BEIS,The Insolvency Service,18/04/2019,Computer & IT Systems,Information & Technology,SmartSourcing,300007901,3000.00,788 5078 69
BEIS,The Insolvency Service,18/04/2019,Computer & IT Systems,Information & Technology,SmartSourcing,300007902,3696.00,788 5078 69
BEIS,The Insolvency Service,18/04/2019,Computer & IT Systems,Information & Technology,SmartSourcing,300007903,2940.00,788 5078 69
BEIS,The Insolvency Service,25/04/2019,Computer & IT Systems,Information & Technology,SmartSourcing,300007958,1500.00,788 5078 69
BEIS,The Insolvency Service,25/04/2019,Computer & IT Systems,Information & Technology,SmartSourcing,300007959,4464.00,788 5078 69
BEIS,The Insolvency Service,25/04/2019,Computer & IT Systems,Information & Technology,SmartSourcing,300008142,3000.00,788 5078 69
BEIS,The Insolvency Service,25/04/2019,Computer & IT Systems,Information & Technology,SmartSourcing,300008143,3288.00,788 5078 69
BEIS,The Insolvency Service,25/04/2019,Computer & IT Systems,Information & Technology,SmartSourcing,300008144,1590.00,788 5078 69
BEIS,The Insolvency Service,25/04/2019,Computer & IT Systems,Information & Technology,SmartSourcing,300008145,2352.00,788 5078 69
BEIS,The Insolvency Service,25/04/2019,Computer & IT Systems,Information & Technology,SmartSourcing,300008146,2106.00,788 5078 69
BEIS,The Insolvency Service,25/04/2019,Computer & IT Systems,Information & Technology,SmartSourcing,300008147,2976.00,788 5078 69
BEIS,The Insolvency Service,25/04/2019,Computer & IT Systems,Information & Technology,SmartSourcing,300008148,2400.00,788 5078 69
BEIS,The Insolvency Service,25/04/2019,Computer & IT Systems,Information & Technology,SmartSourcing,300008149,3456.00,788 5078 69
BEIS,The Insolvency Service,25/04/2019,Computer & IT Systems,Information & Technology,SmartSourcing,300008150,2956.80,788 5078 69
BEIS,The Insolvency Service,25/04/2019,Computer & IT Systems,Information & Technology,SmartSourcing,300008151,3000.00,788 5078 69
BEIS,The Insolvency Service,25/04/2019,Computer & IT Systems,Information & Technology,SmartSourcing,300008160,2904.00,788 5078 69
BEIS,The Insolvency Service,03/04/2019,Computer & IT Systems,Information & Technology,Softcat Plc,300007546,127632.62,491848503
BEIS,The Insolvency Service,03/04/2019,Computer & IT Systems,Strategy & Change,Softcat Plc,300007546,37539.01,491848503
BEIS,The Insolvency Service,02/04/2019,Travel and Subsistence,Legal Services Division,Staff Payment,900007716,24.90,
BEIS,The Insolvency Service,02/04/2019,Travel and Subsistence,Legal Services Division,Staff Payment,900007716,5.00,
BEIS,The Insolvency Service,03/04/2019,Travel and Subsistence,Investigations & Enforcement Services,Staff Payment,900007743,115.00,
BEIS,The Insolvency Service,03/04/2019,Travel and Subsistence,Investigations & Enforcement Services,Staff Payment,900007744,14.00,
BEIS,The Insolvency Service,03/04/2019,Travel and Subsistence,Investigations & Enforcement Services,Staff Payment,900007775,7.00,
BEIS,The Insolvency Service,03/04/2019,Travel and Subsistence,Investigations & Enforcement Services,Staff Payment,900007760,9.50,
BEIS,The Insolvency Service,03/04/2019,Travel and Subsistence,Investigations & Enforcement Services,Staff Payment,900007679,7.00,
BEIS,The Insolvency Service,03/04/2019,Travel and Subsistence,Finance & Commercial,Staff Payment,900007654,5.00,
BEIS,The Insolvency Service,03/04/2019,Travel and Subsistence,Finance & Commercial,Staff Payment,900007654,5.00,
BEIS,The Insolvency Service,03/04/2019,Travel and Subsistence,People & Capability,Staff Payment,900007672,5.00,
BEIS,The Insolvency Service,03/04/2019,Travel and Subsistence,Investigations & Enforcement Services,Staff Payment,900007607,7.50,
BEIS,The Insolvency Service,03/04/2019,Travel and Subsistence,Investigations & Enforcement Services,Staff Payment,900007607,5.00,
BEIS,The Insolvency Service,03/04/2019,Travel and Subsistence,Investigations & Enforcement Services,Staff Payment,900007607,5.00,
BEIS,The Insolvency Service,03/04/2019,Travel and Subsistence,Finance & Commercial,Staff Payment,900007788,2.10,
BEIS,The Insolvency Service,03/04/2019,Travel and Subsistence,Business Service Division,Staff Payment,900007881,29.98,
BEIS,The Insolvency Service,03/04/2019,Travel and Subsistence,Investigations & Enforcement Services,Staff Payment,900007703,3.60,
BEIS,The Insolvency Service,03/04/2019,Travel and Subsistence,Finance & Commercial,Staff Payment,900007681,5.00,
BEIS,The Insolvency Service,03/04/2019,Travel and Subsistence,Investigations & Enforcement Services,Staff Payment,900007790,7.00,
BEIS,The Insolvency Service,03/04/2019,Travel and Subsistence,Investigations & Enforcement Services,Staff Payment,900007790,7.00,
BEIS,The Insolvency Service,03/04/2019,Travel and Subsistence,Investigations & Enforcement Services,Staff Payment,900007769,10.00,
BEIS,The Insolvency Service,03/04/2019,Travel and Subsistence,Investigations & Enforcement Services,Staff Payment,900007769,3.15,
BEIS,The Insolvency Service,03/04/2019,Travel and Subsistence,Chief Executive Office,Staff Payment,900007673,1.50,
BEIS,The Insolvency Service,03/04/2019,Travel and Subsistence,Investigations & Enforcement Services,Staff Payment,900007740,5.00,
BEIS,The Insolvency Service,03/04/2019,Travel and Subsistence,Investigations & Enforcement Services,Staff Payment,900007734,7.00,
BEIS,The Insolvency Service,03/04/2019,Travel and Subsistence,Investigations & Enforcement Services,Staff Payment,900007731,7.00,
BEIS,The Insolvency Service,03/04/2019,Travel and Subsistence,Legal Services Division,Staff Payment,900007723,3.00,
BEIS,The Insolvency Service,03/04/2019,Travel and Subsistence,Legal Services Division,Staff Payment,900007877,3.00,
BEIS,The Insolvency Service,03/04/2019,Travel and Subsistence,Investigations & Enforcement Services,Staff Payment,900007798,6.40,
BEIS,The Insolvency Service,03/04/2019,Travel and Subsistence,Investigations & Enforcement Services,Staff Payment,900007798,61.12,
BEIS,The Insolvency Service,03/04/2019,Travel and Subsistence,Investigations & Enforcement Services,Staff Payment,900007818,2.11,
BEIS,The Insolvency Service,03/04/2019,Travel and Subsistence,Investigations & Enforcement Services,Staff Payment,900007787,6.50,
BEIS,The Insolvency Service,03/04/2019,Travel and Subsistence,Investigations & Enforcement Services,Staff Payment,900007745,5.00,
BEIS,The Insolvency Service,03/04/2019,Travel and Subsistence,Investigations & Enforcement Services,Staff Payment,900007659,8.40,
BEIS,The Insolvency Service,03/04/2019,Travel and Subsistence,Investigations & Enforcement Services,Staff Payment,900007659,2.50,
BEIS,The Insolvency Service,03/04/2019,Travel and Subsistence,Investigations & Enforcement Services,Staff Payment,900007659,5.00,
BEIS,The Insolvency Service,03/04/2019,Travel and Subsistence,Investigations & Enforcement Services,Staff Payment,900007486,2.50,
BEIS,The Insolvency Service,03/04/2019,Travel and Subsistence,Investigations & Enforcement Services,Staff Payment,900007833,5.00,
BEIS,The Insolvency Service,03/04/2019,Travel and Subsistence,Investigations & Enforcement Services,Staff Payment,900007833,9.50,
BEIS,The Insolvency Service,03/04/2019,Travel and Subsistence,Investigations & Enforcement Services,Staff Payment,900007833,5.00,
BEIS,The Insolvency Service,03/04/2019,Travel and Subsistence,Investigations & Enforcement Services,Staff Payment,900007862,5.00,
BEIS,The Insolvency Service,03/04/2019,Travel and Subsistence,Investigations & Enforcement Services,Staff Payment,900007862,5.00,
BEIS,The Insolvency Service,03/04/2019,Travel and Subsistence,Investigations & Enforcement Services,Staff Payment,900007862,2.80,
BEIS,The Insolvency Service,03/04/2019,Travel and Subsistence,Investigations & Enforcement Services,Staff Payment,900007046,14.99,
BEIS,The Insolvency Service,03/04/2019,Travel and Subsistence,Investigations & Enforcement Services,Staff Payment,900007642,5.00,
BEIS,The Insolvency Service,03/04/2019,Travel and Subsistence,Investigations & Enforcement Services,Staff Payment,900007642,5.00,
BEIS,The Insolvency Service,03/04/2019,Travel and Subsistence,Investigations & Enforcement Services,Staff Payment,900007777,4.70,
BEIS,The Insolvency Service,03/04/2019,Travel and Subsistence,Investigations & Enforcement Services,Staff Payment,900007777,3.00,
BEIS,The Insolvency Service,03/04/2019,Travel and Subsistence,Investigations & Enforcement Services,Staff Payment,900007425,10.00,
BEIS,The Insolvency Service,03/04/2019,Travel and Subsistence,Investigations & Enforcement Services,Staff Payment,900007408,57.00,
BEIS,The Insolvency Service,03/04/2019,Travel and Subsistence,Investigations & Enforcement Services,Staff Payment,900007408,6.50,
BEIS,The Insolvency Service,03/04/2019,Travel and Subsistence,Investigations & Enforcement Services,Staff Payment,900007637,5.00,
BEIS,The Insolvency Service,03/04/2019,Travel and Subsistence,Investigations & Enforcement Services,Staff Payment,900007749,7.65,
BEIS,The Insolvency Service,03/04/2019,Travel and Subsistence,Finance & Commercial,Staff Payment,900007683,5.00,
BEIS,The Insolvency Service,03/04/2019,Travel and Subsistence,Official Receiver Services,Staff Payment,900007854,4.50,
BEIS,The Insolvency Service,03/04/2019,Travel and Subsistence,Investigations & Enforcement Services,Staff Payment,900007826,4.20,
BEIS,The Insolvency Service,03/04/2019,Travel and Subsistence,Investigations & Enforcement Services,Staff Payment,900007826,4.20,
BEIS,The Insolvency Service,03/04/2019,Travel and Subsistence,Investigations & Enforcement Services,Staff Payment,900007768,27.50,
BEIS,The Insolvency Service,03/04/2019,Travel and Subsistence,Investigations & Enforcement Services,Staff Payment,900007651,12.60,
BEIS,The Insolvency Service,03/04/2019,Travel and Subsistence,Investigations & Enforcement Services,Staff Payment,900007690,6.30,
BEIS,The Insolvency Service,03/04/2019,Travel and Subsistence,Investigations & Enforcement Services,Staff Payment,900007690,2.40,
BEIS,The Insolvency Service,03/04/2019,Travel and Subsistence,Investigations & Enforcement Services,Staff Payment,900007767,4.80,
BEIS,The Insolvency Service,03/04/2019,Travel and Subsistence,Official Receiver Services,Staff Payment,900007644,4.80,
BEIS,The Insolvency Service,03/04/2019,Travel and Subsistence,Investigations & Enforcement Services,Staff Payment,900007612,2.60,
BEIS,The Insolvency Service,03/04/2019,Travel and Subsistence,Official Receiver Services,Staff Payment,900007687,2.40,
BEIS,The Insolvency Service,03/04/2019,Travel and Subsistence,Official Receiver Services,Staff Payment,900007687,2.40,
BEIS,The Insolvency Service,03/04/2019,Travel and Subsistence,Official Receiver Services,Staff Payment,900007688,2.40,
BEIS,The Insolvency Service,03/04/2019,Travel and Subsistence,Official Receiver Services,Staff Payment,900007688,2.40,
BEIS,The Insolvency Service,03/04/2019,Travel and Subsistence,Official Receiver Services,Staff Payment,900007838,2.40,
BEIS,The Insolvency Service,03/04/2019,Travel and Subsistence,Official Receiver Services,Staff Payment,900007838,2.40,
BEIS,The Insolvency Service,03/04/2019,Travel and Subsistence,Official Receiver Services,Staff Payment,900007840,2.40,
BEIS,The Insolvency Service,03/04/2019,Travel and Subsistence,Official Receiver Services,Staff Payment,900007840,2.40,
BEIS,The Insolvency Service,03/04/2019,Travel and Subsistence,Official Receiver Services,Staff Payment,900007841,2.40,
BEIS,The Insolvency Service,03/04/2019,Travel and Subsistence,Official Receiver Services,Staff Payment,900007841,2.40,
BEIS,The Insolvency Service,03/04/2019,Travel and Subsistence,Official Receiver Services,Staff Payment,900007842,2.40,
BEIS,The Insolvency Service,03/04/2019,Travel and Subsistence,Official Receiver Services,Staff Payment,900007842,2.40,
BEIS,The Insolvency Service,03/04/2019,Travel and Subsistence,Official Receiver Services,Staff Payment,900007843,2.40,
BEIS,The Insolvency Service,03/04/2019,Travel and Subsistence,Chief Executive Office,Staff Payment,900007742,2.40,
BEIS,The Insolvency Service,03/04/2019,Travel and Subsistence,Official Receiver Services,Staff Payment,900007482,2.40,
BEIS,The Insolvency Service,03/04/2019,Travel and Subsistence,Official Receiver Services,Staff Payment,900007482,2.40,
BEIS,The Insolvency Service,03/04/2019,Travel and Subsistence,Investigations & Enforcement Services,Staff Payment,900007606,2.40,
BEIS,The Insolvency Service,03/04/2019,Travel and Subsistence,Investigations & Enforcement Services,Staff Payment,900007606,2.20,
BEIS,The Insolvency Service,03/04/2019,Travel and Subsistence,Investigations & Enforcement Services,Staff Payment,900007610,2.40,
BEIS,The Insolvency Service,03/04/2019,Travel and Subsistence,Investigations & Enforcement Services,Staff Payment,900007610,3.40,
BEIS,The Insolvency Service,03/04/2019,Travel and Subsistence,Investigations & Enforcement Services,Staff Payment,900007746,4.80,
BEIS,The Insolvency Service,03/04/2019,Travel and Subsistence,Investigations & Enforcement Services,Staff Payment,900007746,4.80,
BEIS,The Insolvency Service,03/04/2019,Travel and Subsistence,Investigations & Enforcement Services,Staff Payment,900007746,4.80,
BEIS,The Insolvency Service,03/04/2019,Travel and Subsistence,Investigations & Enforcement Services,Staff Payment,900007746,4.80,
BEIS,The Insolvency Service,03/04/2019,Travel and Subsistence,Investigations & Enforcement Services,Staff Payment,900007801,4.80,
BEIS,The Insolvency Service,03/04/2019,Travel and Subsistence,Official Receiver Services,Staff Payment,900007872,4.80,
BEIS,The Insolvency Service,03/04/2019,Travel and Subsistence,Official Receiver Services,Staff Payment,900007873,4.80,
BEIS,The Insolvency Service,03/04/2019,Travel and Subsistence,People & Capability,Staff Payment,900007728,55.70,
BEIS,The Insolvency Service,03/04/2019,Travel and Subsistence,Finance & Commercial,Staff Payment,900007676,4.80,
BEIS,The Insolvency Service,03/04/2019,Travel and Subsistence,Investigations & Enforcement Services,Staff Payment,900007770,47.80,
BEIS,The Insolvency Service,03/04/2019,Travel and Subsistence,Investigations & Enforcement Services,Staff Payment,900007818,4.80,
BEIS,The Insolvency Service,03/04/2019,Travel and Subsistence,Investigations & Enforcement Services,Staff Payment,900007818,4.80,
BEIS,The Insolvency Service,03/04/2019,Travel and Subsistence,Investigations & Enforcement Services,Staff Payment,900007818,4.80,
BEIS,The Insolvency Service,03/04/2019,Travel and Subsistence,Investigations & Enforcement Services,Staff Payment,900007818,4.80,
BEIS,The Insolvency Service,03/04/2019,Travel and Subsistence,Investigations & Enforcement Services,Staff Payment,900007818,8.00,
BEIS,The Insolvency Service,03/04/2019,Travel and Subsistence,Investigations & Enforcement Services,Staff Payment,900007818,4.80,
BEIS,The Insolvency Service,03/04/2019,Travel and Subsistence,Investigations & Enforcement Services,Staff Payment,900007818,4.80,
BEIS,The Insolvency Service,03/04/2019,Travel and Subsistence,Investigations & Enforcement Services,Staff Payment,900007818,4.80,
BEIS,The Insolvency Service,03/04/2019,Travel and Subsistence,Investigations & Enforcement Services,Staff Payment,900007818,4.80,
BEIS,The Insolvency Service,03/04/2019,Travel and Subsistence,Investigations & Enforcement Services,Staff Payment,900007659,14.00,
BEIS,The Insolvency Service,03/04/2019,Travel and Subsistence,Investigations & Enforcement Services,Staff Payment,900007659,11.90,
BEIS,The Insolvency Service,03/04/2019,Travel and Subsistence,Investigations & Enforcement Services,Staff Payment,900007659,23.50,
BEIS,The Insolvency Service,03/04/2019,Travel and Subsistence,Investigations & Enforcement Services,Staff Payment,900007486,3.00,
BEIS,The Insolvency Service,03/04/2019,Travel and Subsistence,Investigations & Enforcement Services,Staff Payment,900007833,10.70,
BEIS,The Insolvency Service,03/04/2019,Travel and Subsistence,Investigations & Enforcement Services,Staff Payment,900007833,15.10,
BEIS,The Insolvency Service,03/04/2019,Travel and Subsistence,Investigations & Enforcement Services,Staff Payment,900007862,8.00,
BEIS,The Insolvency Service,03/04/2019,Travel and Subsistence,Investigations & Enforcement Services,Staff Payment,900007862,16.80,
BEIS,The Insolvency Service,03/04/2019,Travel and Subsistence,Investigations & Enforcement Services,Staff Payment,900007862,8.40,
BEIS,The Insolvency Service,03/04/2019,Travel and Subsistence,Investigations & Enforcement Services,Staff Payment,900007046,4.70,
BEIS,The Insolvency Service,03/04/2019,Travel and Subsistence,Investigations & Enforcement Services,Staff Payment,900007046,4.70,
BEIS,The Insolvency Service,03/04/2019,Travel and Subsistence,Investigations & Enforcement Services,Staff Payment,900007712,2.90,
BEIS,The Insolvency Service,03/04/2019,Travel and Subsistence,Investigations & Enforcement Services,Staff Payment,900007642,4.20,
BEIS,The Insolvency Service,03/04/2019,Travel and Subsistence,Investigations & Enforcement Services,Staff Payment,900007642,4.20,
BEIS,The Insolvency Service,03/04/2019,Travel and Subsistence,Investigations & Enforcement Services,Staff Payment,900007797,8.60,
BEIS,The Insolvency Service,03/04/2019,Travel and Subsistence,Investigations & Enforcement Services,Staff Payment,900007797,8.20,
BEIS,The Insolvency Service,03/04/2019,Travel and Subsistence,Investigations & Enforcement Services,Staff Payment,900007794,12.00,
BEIS,The Insolvency Service,03/04/2019,Travel and Subsistence,Investigations & Enforcement Services,Staff Payment,900007794,12.00,
BEIS,The Insolvency Service,03/04/2019,Travel and Subsistence,Finance & Commercial,Staff Payment,900007649,2.40,
BEIS,The Insolvency Service,03/04/2019,Travel and Subsistence,Finance & Commercial,Staff Payment,900007649,2.40,
BEIS,The Insolvency Service,03/04/2019,Travel and Subsistence,Investigations & Enforcement Services,Staff Payment,900007826,25.00,
BEIS,The Insolvency Service,03/04/2019,Travel and Subsistence,Investigations & Enforcement Services,Staff Payment,900007768,10.00,
BEIS,The Insolvency Service,03/04/2019,Travel and Subsistence,Investigations & Enforcement Services,Staff Payment,900007776,5.00,
BEIS,The Insolvency Service,03/04/2019,Travel and Subsistence,Investigations & Enforcement Services,Staff Payment,900007776,3.70,
BEIS,The Insolvency Service,03/04/2019,Travel and Subsistence,Investigations & Enforcement Services,Staff Payment,900007755,5.00,
BEIS,The Insolvency Service,03/04/2019,Travel and Subsistence,Investigations & Enforcement Services,Staff Payment,900007755,5.00,
BEIS,The Insolvency Service,03/04/2019,Travel and Subsistence,Investigations & Enforcement Services,Staff Payment,900007755,15.00,
BEIS,The Insolvency Service,03/04/2019,Travel and Subsistence,Investigations & Enforcement Services,Staff Payment,900007755,5.00,
BEIS,The Insolvency Service,03/04/2019,Travel and Subsistence,Investigations & Enforcement Services,Staff Payment,900007755,5.00,
BEIS,The Insolvency Service,03/04/2019,Travel and Subsistence,Investigations & Enforcement Services,Staff Payment,900007755,5.00,
BEIS,The Insolvency Service,03/04/2019,Travel and Subsistence,Investigations & Enforcement Services,Staff Payment,900007755,5.00,
BEIS,The Insolvency Service,03/04/2019,Travel and Subsistence,Official Receiver Services,Staff Payment,900007616,5.00,
BEIS,The Insolvency Service,03/04/2019,Travel and Subsistence,Official Receiver Services,Staff Payment,900007616,5.00,
BEIS,The Insolvency Service,03/04/2019,Travel and Subsistence,Investigations & Enforcement Services,Staff Payment,900004770,15.00,
BEIS,The Insolvency Service,03/04/2019,Travel and Subsistence,Investigations & Enforcement Services,Staff Payment,900007760,14.95,
BEIS,The Insolvency Service,03/04/2019,Travel and Subsistence,Investigations & Enforcement Services,Staff Payment,900007760,5.00,
BEIS,The Insolvency Service,03/04/2019,Travel and Subsistence,Investigations & Enforcement Services,Staff Payment,900007761,5.00,
BEIS,The Insolvency Service,03/04/2019,Travel and Subsistence,Investigations & Enforcement Services,Staff Payment,900007761,15.00,
BEIS,The Insolvency Service,03/04/2019,Travel and Subsistence,Investigations & Enforcement Services,Staff Payment,900007761,15.00,
BEIS,The Insolvency Service,03/04/2019,Travel and Subsistence,Investigations & Enforcement Services,Staff Payment,900007762,10.00,
BEIS,The Insolvency Service,03/04/2019,Travel and Subsistence,Official Receiver Services,Staff Payment,900007701,5.00,
BEIS,The Insolvency Service,03/04/2019,Travel and Subsistence,Official Receiver Services,Staff Payment,900007655,5.00,
BEIS,The Insolvency Service,03/04/2019,Travel and Subsistence,Strategy & Change,Staff Payment,900007837,10.00,
BEIS,The Insolvency Service,03/04/2019,Travel and Subsistence,Strategy & Change,Staff Payment,900007837,30.00,
BEIS,The Insolvency Service,03/04/2019,Travel and Subsistence,Strategy & Change,Staff Payment,900007837,10.00,
BEIS,The Insolvency Service,03/04/2019,Travel and Subsistence,Official Receiver Services,Staff Payment,900007685,4.98,
BEIS,The Insolvency Service,03/04/2019,Travel and Subsistence,Information & Technology,Staff Payment,900007739,14.75,
BEIS,The Insolvency Service,03/04/2019,Travel and Subsistence,Information & Technology,Staff Payment,900007739,10.00,
BEIS,The Insolvency Service,03/04/2019,Travel and Subsistence,Information & Technology,Staff Payment,900007739,5.00,
BEIS,The Insolvency Service,03/04/2019,Travel and Subsistence,Information & Technology,Staff Payment,900007739,15.00,
BEIS,The Insolvency Service,03/04/2019,Travel and Subsistence,Information & Technology,Staff Payment,900007739,5.00,
BEIS,The Insolvency Service,03/04/2019,Travel and Subsistence,Finance & Commercial,Staff Payment,900007654,14.49,
BEIS,The Insolvency Service,03/04/2019,Travel and Subsistence,Finance & Commercial,Staff Payment,900007654,11.40,
BEIS,The Insolvency Service,03/04/2019,Travel and Subsistence,Official Receiver Services,Staff Payment,900007885,3.55,
BEIS,The Insolvency Service,03/04/2019,Travel and Subsistence,People & Capability,Staff Payment,900007885,5.00,
BEIS,The Insolvency Service,03/04/2019,Travel and Subsistence,Investigations & Enforcement Services,Staff Payment,900007651,4.80,
BEIS,The Insolvency Service,03/04/2019,Travel and Subsistence,Investigations & Enforcement Services,Staff Payment,900007651,4.95,
BEIS,The Insolvency Service,03/04/2019,Travel and Subsistence,Investigations & Enforcement Services,Staff Payment,900007690,5.00,
BEIS,The Insolvency Service,03/04/2019,Travel and Subsistence,People & Capability,Staff Payment,900007672,4.25,
BEIS,The Insolvency Service,03/04/2019,Travel and Subsistence,People & Capability,Staff Payment,900007672,9.33,
BEIS,The Insolvency Service,03/04/2019,Travel and Subsistence,People & Capability,Staff Payment,900007672,5.00,
BEIS,The Insolvency Service,03/04/2019,Travel and Subsistence,Investigations & Enforcement Services,Staff Payment,900007834,3.05,
BEIS,The Insolvency Service,03/04/2019,Travel and Subsistence,Investigations & Enforcement Services,Staff Payment,900007834,4.98,
BEIS,The Insolvency Service,03/04/2019,Travel and Subsistence,Investigations & Enforcement Services,Staff Payment,900007836,5.00,
BEIS,The Insolvency Service,03/04/2019,Travel and Subsistence,Investigations & Enforcement Services,Staff Payment,900007836,3.05,
BEIS,The Insolvency Service,03/04/2019,Travel and Subsistence,Investigations & Enforcement Services,Staff Payment,900007607,3.99,
BEIS,The Insolvency Service,03/04/2019,Travel and Subsistence,Investigations & Enforcement Services,Staff Payment,900007607,15.00,
BEIS,The Insolvency Service,03/04/2019,Travel and Subsistence,Investigations & Enforcement Services,Staff Payment,900007607,2.83,
BEIS,The Insolvency Service,03/04/2019,Travel and Subsistence,Investigations & Enforcement Services,Staff Payment,900007607,15.00,
BEIS,The Insolvency Service,03/04/2019,Travel and Subsistence,Investigations & Enforcement Services,Staff Payment,900007607,4.28,
BEIS,The Insolvency Service,03/04/2019,Travel and Subsistence,Investigations & Enforcement Services,Staff Payment,900007657,4.99,
BEIS,The Insolvency Service,03/04/2019,Travel and Subsistence,Investigations & Enforcement Services,Staff Payment,900007619,5.00,
BEIS,The Insolvency Service,03/04/2019,Travel and Subsistence,Investigations & Enforcement Services,Staff Payment,900007767,5.00,
BEIS,The Insolvency Service,03/04/2019,Travel and Subsistence,Official Receiver Services,Staff Payment,900007528,5.00,
BEIS,The Insolvency Service,03/04/2019,Travel and Subsistence,Investigations & Enforcement Services,Staff Payment,900007599,5.00,
BEIS,The Insolvency Service,03/04/2019,Travel and Subsistence,Finance & Commercial,Staff Payment,900007788,5.00,
BEIS,The Insolvency Service,03/04/2019,Travel and Subsistence,Finance & Commercial,Staff Payment,900007788,5.00,
BEIS,The Insolvency Service,03/04/2019,Travel and Subsistence,Official Receiver Services,Staff Payment,900007835,4.70,
BEIS,The Insolvency Service,03/04/2019,Travel and Subsistence,Official Receiver Services,Staff Payment,900007640,5.00,
BEIS,The Insolvency Service,03/04/2019,Travel and Subsistence,Official Receiver Services,Staff Payment,900007643,13.95,
BEIS,The Insolvency Service,03/04/2019,Travel and Subsistence,Official Receiver Services,Staff Payment,900007643,5.00,
BEIS,The Insolvency Service,03/04/2019,Travel and Subsistence,Official Receiver Services,Staff Payment,900007643,5.00,
BEIS,The Insolvency Service,03/04/2019,Travel and Subsistence,Official Receiver Services,Staff Payment,900007644,3.90,
BEIS,The Insolvency Service,03/04/2019,Travel and Subsistence,Official Receiver Services,Staff Payment,900007644,4.50,
BEIS,The Insolvency Service,03/04/2019,Travel and Subsistence,Investigations & Enforcement Services,Staff Payment,900007612,5.00,
BEIS,The Insolvency Service,03/04/2019,Travel and Subsistence,Investigations & Enforcement Services,Staff Payment,900007757,5.00,
BEIS,The Insolvency Service,03/04/2019,Travel and Subsistence,Investigations & Enforcement Services,Staff Payment,900007758,5.00,
BEIS,The Insolvency Service,03/04/2019,Travel and Subsistence,Investigations & Enforcement Services,Staff Payment,900007759,5.00,
BEIS,The Insolvency Service,03/04/2019,Travel and Subsistence,Official Receiver Services,Staff Payment,900007763,4.90,
BEIS,The Insolvency Service,03/04/2019,Travel and Subsistence,Official Receiver Services,Staff Payment,900007687,5.00,
BEIS,The Insolvency Service,03/04/2019,Travel and Subsistence,Official Receiver Services,Staff Payment,900007687,14.55,
BEIS,The Insolvency Service,03/04/2019,Travel and Subsistence,Official Receiver Services,Staff Payment,900007687,9.50,
BEIS,The Insolvency Service,03/04/2019,Travel and Subsistence,Official Receiver Services,Staff Payment,900007688,5.00,
BEIS,The Insolvency Service,03/04/2019,Travel and Subsistence,Official Receiver Services,Staff Payment,900007688,14.35,
BEIS,The Insolvency Service,03/04/2019,Travel and Subsistence,Official Receiver Services,Staff Payment,900007688,5.00,
BEIS,The Insolvency Service,03/04/2019,Travel and Subsistence,Official Receiver Services,Staff Payment,900007838,10.00,
BEIS,The Insolvency Service,03/04/2019,Travel and Subsistence,Official Receiver Services,Staff Payment,900007838,14.72,
BEIS,The Insolvency Service,03/04/2019,Travel and Subsistence,Official Receiver Services,Staff Payment,900007838,5.00,
BEIS,The Insolvency Service,03/04/2019,Travel and Subsistence,Official Receiver Services,Staff Payment,900007839,10.00,
BEIS,The Insolvency Service,03/04/2019,Travel and Subsistence,Official Receiver Services,Staff Payment,900007839,15.00,
BEIS,The Insolvency Service,03/04/2019,Travel and Subsistence,Official Receiver Services,Staff Payment,900007839,5.00,
BEIS,The Insolvency Service,03/04/2019,Travel and Subsistence,Official Receiver Services,Staff Payment,900007839,5.00,
BEIS,The Insolvency Service,03/04/2019,Travel and Subsistence,Official Receiver Services,Staff Payment,900007840,5.00,
BEIS,The Insolvency Service,03/04/2019,Travel and Subsistence,Official Receiver Services,Staff Payment,900007840,13.45,
BEIS,The Insolvency Service,03/04/2019,Travel and Subsistence,Official Receiver Services,Staff Payment,900007840,4.49,
BEIS,The Insolvency Service,03/04/2019,Travel and Subsistence,Official Receiver Services,Staff Payment,900007840,5.00,
BEIS,The Insolvency Service,03/04/2019,Travel and Subsistence,Official Receiver Services,Staff Payment,900007841,8.10,
BEIS,The Insolvency Service,03/04/2019,Travel and Subsistence,Official Receiver Services,Staff Payment,900007841,14.70,
BEIS,The Insolvency Service,03/04/2019,Travel and Subsistence,Official Receiver Services,Staff Payment,900007841,5.00,
BEIS,The Insolvency Service,03/04/2019,Travel and Subsistence,Official Receiver Services,Staff Payment,900007842,5.00,
BEIS,The Insolvency Service,03/04/2019,Travel and Subsistence,Official Receiver Services,Staff Payment,900007842,5.00,
BEIS,The Insolvency Service,03/04/2019,Travel and Subsistence,Official Receiver Services,Staff Payment,900007842,4.59,
BEIS,The Insolvency Service,03/04/2019,Travel and Subsistence,Official Receiver Services,Staff Payment,900007842,2.55,
BEIS,The Insolvency Service,03/04/2019,Travel and Subsistence,Official Receiver Services,Staff Payment,900007842,12.95,
BEIS,The Insolvency Service,03/04/2019,Travel and Subsistence,Official Receiver Services,Staff Payment,900007843,5.00,
BEIS,The Insolvency Service,03/04/2019,Travel and Subsistence,Official Receiver Services,Staff Payment,900007843,7.51,
BEIS,The Insolvency Service,03/04/2019,Travel and Subsistence,Official Receiver Services,Staff Payment,900007843,15.00,
BEIS,The Insolvency Service,03/04/2019,Travel and Subsistence,Official Receiver Services,Staff Payment,900007844,2.95,
BEIS,The Insolvency Service,03/04/2019,Travel and Subsistence,Official Receiver Services,Staff Payment,900007845,5.59,
BEIS,The Insolvency Service,03/04/2019,Travel and Subsistence,Official Receiver Services,Staff Payment,900007845,5.00,
BEIS,The Insolvency Service,03/04/2019,Travel and Subsistence,Official Receiver Services,Staff Payment,900007845,4.99,
BEIS,The Insolvency Service,03/04/2019,Travel and Subsistence,Investigations & Enforcement Services,Staff Payment,900007689,15.00,
BEIS,The Insolvency Service,03/04/2019,Travel and Subsistence,Investigations & Enforcement Services,Staff Payment,900007689,5.00,
BEIS,The Insolvency Service,03/04/2019,Travel and Subsistence,Investigations & Enforcement Services,Staff Payment,900007689,25.85,
BEIS,The Insolvency Service,03/04/2019,Travel and Subsistence,Investigations & Enforcement Services,Staff Payment,900007689,15.00,
BEIS,The Insolvency Service,03/04/2019,Travel and Subsistence,Investigations & Enforcement Services,Staff Payment,900007689,17.28,
BEIS,The Insolvency Service,03/04/2019,Travel and Subsistence,Investigations & Enforcement Services,Staff Payment,900007671,5.00,
BEIS,The Insolvency Service,03/04/2019,Travel and Subsistence,Business Service Division,Staff Payment,900007789,2.40,
BEIS,The Insolvency Service,03/04/2019,Travel and Subsistence,Business Service Division,Staff Payment,900007789,4.48,
BEIS,The Insolvency Service,03/04/2019,Travel and Subsistence,Business Service Division,Staff Payment,900007789,5.00,
BEIS,The Insolvency Service,03/04/2019,Travel and Subsistence,Business Service Division,Staff Payment,900007791,3.45,
BEIS,The Insolvency Service,03/04/2019,Travel and Subsistence,Business Service Division,Staff Payment,900007791,4.99,
BEIS,The Insolvency Service,03/04/2019,Travel and Subsistence,Business Service Division,Staff Payment,900007791,5.00,
BEIS,The Insolvency Service,03/04/2019,Travel and Subsistence,Finance & Commercial,Staff Payment,900007641,5.00,
BEIS,The Insolvency Service,03/04/2019,Travel and Subsistence,Finance & Commercial,Staff Payment,900007641,15.00,
BEIS,The Insolvency Service,03/04/2019,Travel and Subsistence,Finance & Commercial,Staff Payment,900007641,3.90,
BEIS,The Insolvency Service,03/04/2019,Travel and Subsistence,Business Service Division,Staff Payment,900007273,4.79,
BEIS,The Insolvency Service,03/04/2019,Travel and Subsistence,Investigations & Enforcement Services,Staff Payment,900007703,3.05,
BEIS,The Insolvency Service,03/04/2019,Travel and Subsistence,Investigations & Enforcement Services,Staff Payment,900007703,5.00,
BEIS,The Insolvency Service,03/04/2019,Travel and Subsistence,Chief Executive Office,Staff Payment,900007742,5.00,
BEIS,The Insolvency Service,03/04/2019,Travel and Subsistence,Chief Executive Office,Staff Payment,900007742,15.00,
BEIS,The Insolvency Service,03/04/2019,Travel and Subsistence,Chief Executive Office,Staff Payment,900007742,10.00,
BEIS,The Insolvency Service,03/04/2019,Travel and Subsistence,Chief Executive Office,Staff Payment,900007742,15.00,
BEIS,The Insolvency Service,03/04/2019,Travel and Subsistence,Finance & Commercial,Staff Payment,900007737,6.95,
BEIS,The Insolvency Service,03/04/2019,Travel and Subsistence,Finance & Commercial,Staff Payment,900007737,5.00,
BEIS,The Insolvency Service,03/04/2019,Travel and Subsistence,Finance & Commercial,Staff Payment,900007737,5.00,
BEIS,The Insolvency Service,03/04/2019,Travel and Subsistence,Business Service Division,Staff Payment,900007603,4.00,
BEIS,The Insolvency Service,03/04/2019,Travel and Subsistence,Business Service Division,Staff Payment,900007603,11.20,
BEIS,The Insolvency Service,03/04/2019,Travel and Subsistence,Business Service Division,Staff Payment,900007603,5.00,
BEIS,The Insolvency Service,03/04/2019,Travel and Subsistence,Business Service Division,Staff Payment,900007603,5.65,
BEIS,The Insolvency Service,03/04/2019,Travel and Subsistence,Business Service Division,Staff Payment,900007603,10.00,
BEIS,The Insolvency Service,03/04/2019,Travel and Subsistence,Investigations & Enforcement Services,Staff Payment,900007726,4.78,
BEIS,The Insolvency Service,03/04/2019,Travel and Subsistence,Investigations & Enforcement Services,Staff Payment,900007727,3.15,
BEIS,The Insolvency Service,03/04/2019,Travel and Subsistence,Finance & Commercial,Staff Payment,900007681,5.00,
BEIS,The Insolvency Service,03/04/2019,Travel and Subsistence,Finance & Commercial,Staff Payment,900007681,15.00,
BEIS,The Insolvency Service,03/04/2019,Travel and Subsistence,Finance & Commercial,Staff Payment,900007681,5.00,
BEIS,The Insolvency Service,03/04/2019,Travel and Subsistence,Finance & Commercial,Staff Payment,900007681,15.00,
BEIS,The Insolvency Service,03/04/2019,Travel and Subsistence,Information & Technology,Staff Payment,900007211,14.85,
BEIS,The Insolvency Service,03/04/2019,Travel and Subsistence,Information & Technology,Staff Payment,900007211,5.00,
BEIS,The Insolvency Service,03/04/2019,Travel and Subsistence,Information & Technology,Staff Payment,900007211,14.46,
BEIS,The Insolvency Service,03/04/2019,Travel and Subsistence,Information & Technology,Staff Payment,900007211,4.80,
BEIS,The Insolvency Service,03/04/2019,Travel and Subsistence,Information & Technology,Staff Payment,900007211,4.70,
BEIS,The Insolvency Service,03/04/2019,Travel and Subsistence,Information & Technology,Staff Payment,900007211,12.10,
BEIS,The Insolvency Service,03/04/2019,Travel and Subsistence,Information & Technology,Staff Payment,900007211,25.00,
BEIS,The Insolvency Service,03/04/2019,Travel and Subsistence,Information & Technology,Staff Payment,900007211,5.00,
BEIS,The Insolvency Service,03/04/2019,Travel and Subsistence,Information & Technology,Staff Payment,900007211,14.49,
BEIS,The Insolvency Service,03/04/2019,Travel and Subsistence,Information & Technology,Staff Payment,900007211,4.90,
BEIS,The Insolvency Service,03/04/2019,Travel and Subsistence,Finance & Commercial,Staff Payment,900007870,15.00,
BEIS,The Insolvency Service,03/04/2019,Travel and Subsistence,Finance & Commercial,Staff Payment,900007870,10.00,
BEIS,The Insolvency Service,03/04/2019,Travel and Subsistence,Finance & Commercial,Staff Payment,900007870,15.00,
BEIS,The Insolvency Service,03/04/2019,Travel and Subsistence,Investigations & Enforcement Services,Staff Payment,900007623,5.00,
BEIS,The Insolvency Service,03/04/2019,Travel and Subsistence,Investigations & Enforcement Services,Staff Payment,900007738,5.00,
BEIS,The Insolvency Service,03/04/2019,Travel and Subsistence,Investigations & Enforcement Services,Staff Payment,900007677,15.00,
BEIS,The Insolvency Service,03/04/2019,Travel and Subsistence,Official Receiver Services,Staff Payment,900007482,3.00,
BEIS,The Insolvency Service,03/04/2019,Travel and Subsistence,Official Receiver Services,Staff Payment,900007482,4.65,
BEIS,The Insolvency Service,03/04/2019,Travel and Subsistence,Official Receiver Services,Staff Payment,900007806,5.00,
BEIS,The Insolvency Service,03/04/2019,Travel and Subsistence,Investigations & Enforcement Services,Staff Payment,900007769,4.64,
BEIS,The Insolvency Service,03/04/2019,Travel and Subsistence,Information & Technology,Staff Payment,900007778,5.00,
BEIS,The Insolvency Service,03/04/2019,Travel and Subsistence,Information & Technology,Staff Payment,900007778,15.00,
BEIS,The Insolvency Service,03/04/2019,Travel and Subsistence,Information & Technology,Staff Payment,900007778,5.00,
BEIS,The Insolvency Service,03/04/2019,Travel and Subsistence,Information & Technology,Staff Payment,900007778,10.00,
BEIS,The Insolvency Service,03/04/2019,Travel and Subsistence,Information & Technology,Staff Payment,900007778,15.00,
BEIS,The Insolvency Service,03/04/2019,Travel and Subsistence,Investigations & Enforcement Services,Staff Payment,900007610,5.00,
BEIS,The Insolvency Service,03/04/2019,Travel and Subsistence,Investigations & Enforcement Services,Staff Payment,900007801,33.94,
BEIS,The Insolvency Service,03/04/2019,Travel and Subsistence,Investigations & Enforcement Services,Staff Payment,900007792,15.00,
BEIS,The Insolvency Service,03/04/2019,Travel and Subsistence,Investigations & Enforcement Services,Staff Payment,900007792,4.75,
BEIS,The Insolvency Service,03/04/2019,Travel and Subsistence,Official Receiver Services,Staff Payment,900007872,4.75,
BEIS,The Insolvency Service,03/04/2019,Travel and Subsistence,Official Receiver Services,Staff Payment,900007872,4.39,
BEIS,The Insolvency Service,03/04/2019,Travel and Subsistence,Official Receiver Services,Staff Payment,900007872,15.00,
BEIS,The Insolvency Service,03/04/2019,Travel and Subsistence,Official Receiver Services,Staff Payment,900007872,5.00,
BEIS,The Insolvency Service,03/04/2019,Travel and Subsistence,Official Receiver Services,Staff Payment,900007873,4.67,
BEIS,The Insolvency Service,03/04/2019,Travel and Subsistence,Strategy & Change,Staff Payment,900007633,5.00,
BEIS,The Insolvency Service,03/04/2019,Travel and Subsistence,Strategy & Change,Staff Payment,900007633,5.00,
BEIS,The Insolvency Service,03/04/2019,Travel and Subsistence,Business Service Division,Staff Payment,900007820,3.00,
BEIS,The Insolvency Service,03/04/2019,Travel and Subsistence,Business Service Division,Staff Payment,900007820,14.25,
BEIS,The Insolvency Service,03/04/2019,Travel and Subsistence,Business Service Division,Staff Payment,900007820,5.00,
BEIS,The Insolvency Service,03/04/2019,Travel and Subsistence,Business Service Division,Staff Payment,900007820,3.60,
BEIS,The Insolvency Service,03/04/2019,Travel and Subsistence,Business Service Division,Staff Payment,900007820,11.75,
BEIS,The Insolvency Service,03/04/2019,Travel and Subsistence,Business Service Division,Staff Payment,900007820,5.00,
BEIS,The Insolvency Service,03/04/2019,Travel and Subsistence,Business Service Division,Staff Payment,900007820,15.00,
BEIS,The Insolvency Service,03/04/2019,Travel and Subsistence,Business Service Division,Staff Payment,900007820,5.00,
BEIS,The Insolvency Service,03/04/2019,Travel and Subsistence,Investigations & Enforcement Services,Staff Payment,900007166,10.00,
BEIS,The Insolvency Service,03/04/2019,Travel and Subsistence,Investigations & Enforcement Services,Staff Payment,900007166,12.37,
BEIS,The Insolvency Service,03/04/2019,Travel and Subsistence,Investigations & Enforcement Services,Staff Payment,900007166,4.50,
BEIS,The Insolvency Service,03/04/2019,Travel and Subsistence,Investigations & Enforcement Services,Staff Payment,900007166,14.37,
BEIS,The Insolvency Service,03/04/2019,Travel and Subsistence,Investigations & Enforcement Services,Staff Payment,900007166,4.50,
BEIS,The Insolvency Service,03/04/2019,Travel and Subsistence,Investigations & Enforcement Services,Staff Payment,900007166,5.00,
BEIS,The Insolvency Service,03/04/2019,Travel and Subsistence,Investigations & Enforcement Services,Staff Payment,900007590,5.00,
BEIS,The Insolvency Service,03/04/2019,Travel and Subsistence,Investigations & Enforcement Services,Staff Payment,900007590,3.77,
BEIS,The Insolvency Service,03/04/2019,Travel and Subsistence,Investigations & Enforcement Services,Staff Payment,900007590,15.00,
BEIS,The Insolvency Service,03/04/2019,Travel and Subsistence,Investigations & Enforcement Services,Staff Payment,900007731,5.00,
BEIS,The Insolvency Service,03/04/2019,Travel and Subsistence,Investigations & Enforcement Services,Staff Payment,900007731,15.00,
BEIS,The Insolvency Service,03/04/2019,Travel and Subsistence,Investigations & Enforcement Services,Staff Payment,900007731,3.00,
BEIS,The Insolvency Service,03/04/2019,Travel and Subsistence,Finance & Commercial,Staff Payment,900007676,3.39,
BEIS,The Insolvency Service,03/04/2019,Travel and Subsistence,Investigations & Enforcement Services,Staff Payment,900007770,5.00,
BEIS,The Insolvency Service,03/04/2019,Travel and Subsistence,Legal Services Division,Staff Payment,900007723,5.00,
BEIS,The Insolvency Service,03/04/2019,Travel and Subsistence,Legal Services Division,Staff Payment,900007723,5.00,
BEIS,The Insolvency Service,03/04/2019,Travel and Subsistence,Legal Services Division,Staff Payment,900007877,12.89,
BEIS,The Insolvency Service,03/04/2019,Travel and Subsistence,Legal Services Division,Staff Payment,900007877,5.00,
BEIS,The Insolvency Service,03/04/2019,Travel and Subsistence,Legal Services Division,Staff Payment,900007877,5.00,
BEIS,The Insolvency Service,03/04/2019,Travel and Subsistence,Investigations & Enforcement Services,Staff Payment,900007114,5.00,
BEIS,The Insolvency Service,03/04/2019,Travel and Subsistence,Investigations & Enforcement Services,Staff Payment,900007114,4.50,
BEIS,The Insolvency Service,03/04/2019,Travel and Subsistence,Investigations & Enforcement Services,Staff Payment,900007114,4.50,
BEIS,The Insolvency Service,03/04/2019,Travel and Subsistence,Investigations & Enforcement Services,Staff Payment,900007114,9.44,
BEIS,The Insolvency Service,03/04/2019,Travel and Subsistence,Investigations & Enforcement Services,Staff Payment,900007114,5.00,
BEIS,The Insolvency Service,03/04/2019,Travel and Subsistence,Investigations & Enforcement Services,Staff Payment,900007114,5.00,
BEIS,The Insolvency Service,03/04/2019,Travel and Subsistence,Investigations & Enforcement Services,Staff Payment,900007114,4.65,
BEIS,The Insolvency Service,03/04/2019,Travel and Subsistence,Investigations & Enforcement Services,Staff Payment,900007114,15.00,
BEIS,The Insolvency Service,03/04/2019,Travel and Subsistence,Investigations & Enforcement Services,Staff Payment,900007798,12.37,
BEIS,The Insolvency Service,03/04/2019,Travel and Subsistence,Investigations & Enforcement Services,Staff Payment,900007798,5.00,
BEIS,The Insolvency Service,03/04/2019,Travel and Subsistence,Investigations & Enforcement Services,Staff Payment,900007663,10.00,
BEIS,The Insolvency Service,03/04/2019,Travel and Subsistence,Investigations & Enforcement Services,Staff Payment,900007663,15.00,
BEIS,The Insolvency Service,03/04/2019,Travel and Subsistence,Investigations & Enforcement Services,Staff Payment,900007663,5.00,
BEIS,The Insolvency Service,03/04/2019,Travel and Subsistence,Investigations & Enforcement Services,Staff Payment,900007663,3.50,
BEIS,The Insolvency Service,03/04/2019,Travel and Subsistence,Investigations & Enforcement Services,Staff Payment,900007663,10.00,
BEIS,The Insolvency Service,03/04/2019,Travel and Subsistence,Investigations & Enforcement Services,Staff Payment,900007663,15.00,
BEIS,The Insolvency Service,03/04/2019,Travel and Subsistence,Investigations & Enforcement Services,Staff Payment,900007663,10.00,
BEIS,The Insolvency Service,03/04/2019,Travel and Subsistence,Legal Services Division,Staff Payment,900007732,3.70,
BEIS,The Insolvency Service,03/04/2019,Travel and Subsistence,Legal Services Division,Staff Payment,900007733,4.25,
BEIS,The Insolvency Service,03/04/2019,Travel and Subsistence,Investigations & Enforcement Services,Staff Payment,900007818,5.00,
BEIS,The Insolvency Service,03/04/2019,Travel and Subsistence,Investigations & Enforcement Services,Staff Payment,900007818,5.00,
BEIS,The Insolvency Service,03/04/2019,Travel and Subsistence,Investigations & Enforcement Services,Staff Payment,900007818,5.00,
BEIS,The Insolvency Service,03/04/2019,Travel and Subsistence,Investigations & Enforcement Services,Staff Payment,900007818,5.00,
BEIS,The Insolvency Service,03/04/2019,Travel and Subsistence,Investigations & Enforcement Services,Staff Payment,900007203,5.00,
BEIS,The Insolvency Service,03/04/2019,Travel and Subsistence,Investigations & Enforcement Services,Staff Payment,900007203,4.35,
BEIS,The Insolvency Service,03/04/2019,Travel and Subsistence,Investigations & Enforcement Services,Staff Payment,900007203,5.00,
BEIS,The Insolvency Service,03/04/2019,Travel and Subsistence,Investigations & Enforcement Services,Staff Payment,900007787,3.99,
BEIS,The Insolvency Service,03/04/2019,Travel and Subsistence,Investigations & Enforcement Services,Staff Payment,900007787,5.00,
BEIS,The Insolvency Service,03/04/2019,Travel and Subsistence,Investigations & Enforcement Services,Staff Payment,900007745,5.00,
BEIS,The Insolvency Service,03/04/2019,Travel and Subsistence,Investigations & Enforcement Services,Staff Payment,900007745,15.00,
BEIS,The Insolvency Service,03/04/2019,Travel and Subsistence,Investigations & Enforcement Services,Staff Payment,900007745,4.25,
BEIS,The Insolvency Service,03/04/2019,Travel and Subsistence,Investigations & Enforcement Services,Staff Payment,900007745,3.00,
BEIS,The Insolvency Service,03/04/2019,Travel and Subsistence,Investigations & Enforcement Services,Staff Payment,900007576,5.00,
BEIS,The Insolvency Service,03/04/2019,Travel and Subsistence,Investigations & Enforcement Services,Staff Payment,900007576,15.00,
BEIS,The Insolvency Service,03/04/2019,Travel and Subsistence,Investigations & Enforcement Services,Staff Payment,900007576,5.00,
BEIS,The Insolvency Service,03/04/2019,Travel and Subsistence,Investigations & Enforcement Services,Staff Payment,900007576,4.20,
BEIS,The Insolvency Service,03/04/2019,Travel and Subsistence,Investigations & Enforcement Services,Staff Payment,900007576,20.00,
BEIS,The Insolvency Service,03/04/2019,Travel and Subsistence,Investigations & Enforcement Services,Staff Payment,900007717,2.10,
BEIS,The Insolvency Service,03/04/2019,Travel and Subsistence,Investigations & Enforcement Services,Staff Payment,900007717,5.00,
BEIS,The Insolvency Service,03/04/2019,Travel and Subsistence,Investigations & Enforcement Services,Staff Payment,900007659,5.00,
BEIS,The Insolvency Service,03/04/2019,Travel and Subsistence,Investigations & Enforcement Services,Staff Payment,900007659,5.00,
BEIS,The Insolvency Service,03/04/2019,Travel and Subsistence,Investigations & Enforcement Services,Staff Payment,900007659,5.00,
BEIS,The Insolvency Service,03/04/2019,Travel and Subsistence,Investigations & Enforcement Services,Staff Payment,900007659,5.00,
BEIS,The Insolvency Service,03/04/2019,Travel and Subsistence,Investigations & Enforcement Services,Staff Payment,900007659,5.00,
BEIS,The Insolvency Service,03/04/2019,Travel and Subsistence,Investigations & Enforcement Services,Staff Payment,900007659,5.00,
BEIS,The Insolvency Service,03/04/2019,Travel and Subsistence,Investigations & Enforcement Services,Staff Payment,900007846,4.20,
BEIS,The Insolvency Service,03/04/2019,Travel and Subsistence,Investigations & Enforcement Services,Staff Payment,900007486,5.00,
BEIS,The Insolvency Service,03/04/2019,Travel and Subsistence,Legal Services Division,Staff Payment,900007832,15.00,
BEIS,The Insolvency Service,03/04/2019,Travel and Subsistence,Investigations & Enforcement Services,Staff Payment,900007833,4.20,
BEIS,The Insolvency Service,03/04/2019,Travel and Subsistence,Investigations & Enforcement Services,Staff Payment,900007833,15.00,
BEIS,The Insolvency Service,03/04/2019,Travel and Subsistence,Investigations & Enforcement Services,Staff Payment,900007833,5.00,
BEIS,The Insolvency Service,03/04/2019,Travel and Subsistence,Investigations & Enforcement Services,Staff Payment,900007833,13.90,
BEIS,The Insolvency Service,03/04/2019,Travel and Subsistence,Investigations & Enforcement Services,Staff Payment,900007833,3.80,
BEIS,The Insolvency Service,03/04/2019,Travel and Subsistence,Investigations & Enforcement Services,Staff Payment,900007833,2.70,
BEIS,The Insolvency Service,03/04/2019,Travel and Subsistence,Investigations & Enforcement Services,Staff Payment,900007833,5.00,
BEIS,The Insolvency Service,03/04/2019,Travel and Subsistence,Investigations & Enforcement Services,Staff Payment,900007862,4.75,
BEIS,The Insolvency Service,03/04/2019,Travel and Subsistence,Investigations & Enforcement Services,Staff Payment,900007862,38.90,
BEIS,The Insolvency Service,03/04/2019,Travel and Subsistence,Investigations & Enforcement Services,Staff Payment,900007862,15.00,
BEIS,The Insolvency Service,03/04/2019,Travel and Subsistence,Investigations & Enforcement Services,Staff Payment,900007862,5.00,
BEIS,The Insolvency Service,03/04/2019,Travel and Subsistence,Investigations & Enforcement Services,Staff Payment,900007862,15.00,
BEIS,The Insolvency Service,03/04/2019,Travel and Subsistence,Investigations & Enforcement Services,Staff Payment,900007046,5.00,
BEIS,The Insolvency Service,03/04/2019,Travel and Subsistence,Investigations & Enforcement Services,Staff Payment,900007046,5.00,
BEIS,The Insolvency Service,03/04/2019,Travel and Subsistence,Investigations & Enforcement Services,Staff Payment,900007046,5.00,
BEIS,The Insolvency Service,03/04/2019,Travel and Subsistence,Investigations & Enforcement Services,Staff Payment,900007712,5.00,
BEIS,The Insolvency Service,03/04/2019,Travel and Subsistence,Investigations & Enforcement Services,Staff Payment,900007712,22.70,
BEIS,The Insolvency Service,03/04/2019,Travel and Subsistence,Investigations & Enforcement Services,Staff Payment,900007712,5.00,
BEIS,The Insolvency Service,03/04/2019,Travel and Subsistence,Legal Services Division,Staff Payment,900007766,15.00,
BEIS,The Insolvency Service,03/04/2019,Travel and Subsistence,Investigations & Enforcement Services,Staff Payment,900007642,4.80,
BEIS,The Insolvency Service,03/04/2019,Travel and Subsistence,Investigations & Enforcement Services,Staff Payment,900007642,5.00,
BEIS,The Insolvency Service,03/04/2019,Travel and Subsistence,Investigations & Enforcement Services,Staff Payment,900007642,9.00,
BEIS,The Insolvency Service,03/04/2019,Travel and Subsistence,Investigations & Enforcement Services,Staff Payment,900007642,27.95,
BEIS,The Insolvency Service,03/04/2019,Travel and Subsistence,Investigations & Enforcement Services,Staff Payment,900007642,5.00,
BEIS,The Insolvency Service,03/04/2019,Travel and Subsistence,Investigations & Enforcement Services,Staff Payment,900007642,3.70,
BEIS,The Insolvency Service,03/04/2019,Travel and Subsistence,Investigations & Enforcement Services,Staff Payment,900007642,15.00,
BEIS,The Insolvency Service,03/04/2019,Travel and Subsistence,Investigations & Enforcement Services,Staff Payment,900007642,5.00,
BEIS,The Insolvency Service,03/04/2019,Travel and Subsistence,Investigations & Enforcement Services,Staff Payment,900007642,15.00,
BEIS,The Insolvency Service,03/04/2019,Travel and Subsistence,Investigations & Enforcement Services,Staff Payment,900007642,5.00,
BEIS,The Insolvency Service,03/04/2019,Travel and Subsistence,Investigations & Enforcement Services,Staff Payment,900007777,5.00,
BEIS,The Insolvency Service,03/04/2019,Travel and Subsistence,Investigations & Enforcement Services,Staff Payment,900007777,11.50,
BEIS,The Insolvency Service,03/04/2019,Travel and Subsistence,Investigations & Enforcement Services,Staff Payment,900007777,13.20,
BEIS,The Insolvency Service,03/04/2019,Travel and Subsistence,Investigations & Enforcement Services,Staff Payment,900007777,82.60,
BEIS,The Insolvency Service,03/04/2019,Travel and Subsistence,Investigations & Enforcement Services,Staff Payment,900007777,5.00,
BEIS,The Insolvency Service,03/04/2019,Travel and Subsistence,Investigations & Enforcement Services,Staff Payment,900007823,5.00,
BEIS,The Insolvency Service,03/04/2019,Travel and Subsistence,Investigations & Enforcement Services,Staff Payment,900007823,5.00,
BEIS,The Insolvency Service,03/04/2019,Travel and Subsistence,Investigations & Enforcement Services,Staff Payment,900007823,3.20,
BEIS,The Insolvency Service,03/04/2019,Travel and Subsistence,Investigations & Enforcement Services,Staff Payment,900007615,5.00,
BEIS,The Insolvency Service,03/04/2019,Travel and Subsistence,Investigations & Enforcement Services,Staff Payment,900007615,4.25,
BEIS,The Insolvency Service,03/04/2019,Travel and Subsistence,Investigations & Enforcement Services,Staff Payment,900007615,4.35,
BEIS,The Insolvency Service,03/04/2019,Travel and Subsistence,Investigations & Enforcement Services,Staff Payment,900007408,3.00,
BEIS,The Insolvency Service,03/04/2019,Travel and Subsistence,Investigations & Enforcement Services,Staff Payment,900007408,15.00,
BEIS,The Insolvency Service,03/04/2019,Travel and Subsistence,Investigations & Enforcement Services,Staff Payment,900007408,3.69,
BEIS,The Insolvency Service,03/04/2019,Travel and Subsistence,Investigations & Enforcement Services,Staff Payment,900007408,4.30,
BEIS,The Insolvency Service,03/04/2019,Travel and Subsistence,Investigations & Enforcement Services,Staff Payment,900007408,9.95,
BEIS,The Insolvency Service,03/04/2019,Travel and Subsistence,Investigations & Enforcement Services,Staff Payment,900007408,9.95,
BEIS,The Insolvency Service,03/04/2019,Travel and Subsistence,Investigations & Enforcement Services,Staff Payment,900007408,3.10,
BEIS,The Insolvency Service,03/04/2019,Travel and Subsistence,Investigations & Enforcement Services,Staff Payment,900007408,9.75,
BEIS,The Insolvency Service,03/04/2019,Travel and Subsistence,Investigations & Enforcement Services,Staff Payment,900007408,4.90,
BEIS,The Insolvency Service,03/04/2019,Travel and Subsistence,Investigations & Enforcement Services,Staff Payment,900007797,5.00,
BEIS,The Insolvency Service,03/04/2019,Travel and Subsistence,Investigations & Enforcement Services,Staff Payment,900007797,5.00,
BEIS,The Insolvency Service,03/04/2019,Travel and Subsistence,Investigations & Enforcement Services,Staff Payment,900007797,3.55,
BEIS,The Insolvency Service,03/04/2019,Travel and Subsistence,Investigations & Enforcement Services,Staff Payment,900007797,5.00,
BEIS,The Insolvency Service,03/04/2019,Travel and Subsistence,Investigations & Enforcement Services,Staff Payment,900007637,11.00,
BEIS,The Insolvency Service,03/04/2019,Travel and Subsistence,Investigations & Enforcement Services,Staff Payment,900007637,3.00,
BEIS,The Insolvency Service,03/04/2019,Travel and Subsistence,Investigations & Enforcement Services,Staff Payment,900007637,4.30,
BEIS,The Insolvency Service,03/04/2019,Travel and Subsistence,Investigations & Enforcement Services,Staff Payment,900007710,5.00,
BEIS,The Insolvency Service,03/04/2019,Travel and Subsistence,Investigations & Enforcement Services,Staff Payment,900007710,4.15,
BEIS,The Insolvency Service,03/04/2019,Travel and Subsistence,Finance & Commercial,Staff Payment,900007649,13.69,
BEIS,The Insolvency Service,03/04/2019,Travel and Subsistence,Finance & Commercial,Staff Payment,900007649,10.00,
BEIS,The Insolvency Service,03/04/2019,Travel and Subsistence,Finance & Commercial,Staff Payment,900007649,15.00,
BEIS,The Insolvency Service,03/04/2019,Travel and Subsistence,Finance & Commercial,Staff Payment,900007649,7.05,
BEIS,The Insolvency Service,03/04/2019,Travel and Subsistence,Finance & Commercial,Staff Payment,900007649,5.00,
BEIS,The Insolvency Service,03/04/2019,Travel and Subsistence,Finance & Commercial,Staff Payment,900007649,7.38,
BEIS,The Insolvency Service,03/04/2019,Travel and Subsistence,Business Service Division,Staff Payment,900007108,15.00,
BEIS,The Insolvency Service,03/04/2019,Travel and Subsistence,Business Service Division,Staff Payment,900007108,5.00,
BEIS,The Insolvency Service,03/04/2019,Travel and Subsistence,Business Service Division,Staff Payment,900007108,5.00,
BEIS,The Insolvency Service,03/04/2019,Travel and Subsistence,Business Service Division,Staff Payment,900007816,15.00,
BEIS,The Insolvency Service,03/04/2019,Travel and Subsistence,Business Service Division,Staff Payment,900007816,5.00,
BEIS,The Insolvency Service,03/04/2019,Travel and Subsistence,Business Service Division,Staff Payment,900007816,5.00,
BEIS,The Insolvency Service,03/04/2019,Travel and Subsistence,Business Service Division,Staff Payment,900007426,5.00,
BEIS,The Insolvency Service,03/04/2019,Travel and Subsistence,Business Service Division,Staff Payment,900007426,5.00,
BEIS,The Insolvency Service,03/04/2019,Travel and Subsistence,Business Service Division,Staff Payment,900007426,15.00,
BEIS,The Insolvency Service,03/04/2019,Travel and Subsistence,Business Service Division,Staff Payment,900007426,5.00,
BEIS,The Insolvency Service,03/04/2019,Travel and Subsistence,Finance & Commercial,Staff Payment,900007662,7.50,
BEIS,The Insolvency Service,03/04/2019,Travel and Subsistence,Finance & Commercial,Staff Payment,900007662,6.02,
BEIS,The Insolvency Service,03/04/2019,Travel and Subsistence,Finance & Commercial,Staff Payment,900007662,4.40,
BEIS,The Insolvency Service,03/04/2019,Travel and Subsistence,Finance & Commercial,Staff Payment,900007662,11.99,
BEIS,The Insolvency Service,03/04/2019,Travel and Subsistence,Finance & Commercial,Staff Payment,900007662,20.00,
BEIS,The Insolvency Service,03/04/2019,Travel and Subsistence,Finance & Commercial,Staff Payment,900007662,5.00,
BEIS,The Insolvency Service,03/04/2019,Travel and Subsistence,Finance & Commercial,Staff Payment,900007662,5.00,
BEIS,The Insolvency Service,03/04/2019,Travel and Subsistence,Finance & Commercial,Staff Payment,900007683,5.00,
BEIS,The Insolvency Service,03/04/2019,Travel and Subsistence,Finance & Commercial,Staff Payment,900007683,8.95,
BEIS,The Insolvency Service,03/04/2019,Travel and Subsistence,Investigations & Enforcement Services,Staff Payment,900007822,5.00,
BEIS,The Insolvency Service,03/04/2019,Travel and Subsistence,Finance & Commercial,Staff Payment,900007805,4.70,
BEIS,The Insolvency Service,03/04/2019,Travel and Subsistence,Finance & Commercial,Staff Payment,900007807,5.00,
BEIS,The Insolvency Service,03/04/2019,Travel and Subsistence,Official Receiver Services,Staff Payment,900007854,15.00,
BEIS,The Insolvency Service,03/04/2019,Travel and Subsistence,Official Receiver Services,Staff Payment,900007854,3.00,
BEIS,The Insolvency Service,03/04/2019,Travel and Subsistence,Official Receiver Services,Staff Payment,900007854,6.29,
BEIS,The Insolvency Service,03/04/2019,Travel and Subsistence,Official Receiver Services,Staff Payment,900007854,4.50,
BEIS,The Insolvency Service,03/04/2019,Travel and Subsistence,Official Receiver Services,Staff Payment,900007854,15.00,
BEIS,The Insolvency Service,03/04/2019,Travel and Subsistence,Official Receiver Services,Staff Payment,900007854,3.80,
BEIS,The Insolvency Service,03/04/2019,Travel and Subsistence,Official Receiver Services,Staff Payment,900007854,8.59,
BEIS,The Insolvency Service,03/04/2019,Travel and Subsistence,Official Receiver Services,Staff Payment,900007854,5.00,
BEIS,The Insolvency Service,03/04/2019,Travel and Subsistence,Official Receiver Services,Staff Payment,900007854,14.49,
BEIS,The Insolvency Service,03/04/2019,Travel and Subsistence,Official Receiver Services,Staff Payment,900007854,5.00,
BEIS,The Insolvency Service,03/04/2019,Travel and Subsistence,Finance & Commercial,Staff Payment,900007570,5.00,
BEIS,The Insolvency Service,03/04/2019,Travel and Subsistence,Finance & Commercial,Staff Payment,900007809,5.00,
BEIS,The Insolvency Service,03/04/2019,Travel and Subsistence,Official Receiver Services,Staff Payment,900007616,7.50,
BEIS,The Insolvency Service,03/04/2019,Travel and Subsistence,Official Receiver Services,Staff Payment,900007685,6.00,
BEIS,The Insolvency Service,03/04/2019,Travel and Subsistence,Official Receiver Services,Staff Payment,900007885,20.00,
BEIS,The Insolvency Service,03/04/2019,Travel and Subsistence,Official Receiver Services,Staff Payment,900007639,8.29,
BEIS,The Insolvency Service,03/04/2019,Travel and Subsistence,Official Receiver Services,Staff Payment,900007639,11.80,
BEIS,The Insolvency Service,03/04/2019,Travel and Subsistence,Official Receiver Services,Staff Payment,900007640,20.80,
BEIS,The Insolvency Service,03/04/2019,Travel and Subsistence,Official Receiver Services,Staff Payment,900007643,12.80,
BEIS,The Insolvency Service,03/04/2019,Travel and Subsistence,Official Receiver Services,Staff Payment,900007644,8.60,
BEIS,The Insolvency Service,03/04/2019,Travel and Subsistence,Finance & Commercial,Staff Payment,900007737,10.00,
BEIS,The Insolvency Service,03/04/2019,Travel and Subsistence,Business Service Division,Staff Payment,900007603,5.20,
BEIS,The Insolvency Service,03/04/2019,Travel and Subsistence,Finance & Commercial,Staff Payment,900007681,15.00,
BEIS,The Insolvency Service,03/04/2019,Travel and Subsistence,Investigations & Enforcement Services,Staff Payment,900007623,8.00,
BEIS,The Insolvency Service,03/04/2019,Travel and Subsistence,Investigations & Enforcement Services,Staff Payment,900007623,8.00,
BEIS,The Insolvency Service,03/04/2019,Travel and Subsistence,Investigations & Enforcement Services,Staff Payment,900007738,8.00,
BEIS,The Insolvency Service,03/04/2019,Travel and Subsistence,Investigations & Enforcement Services,Staff Payment,900007738,8.00,
BEIS,The Insolvency Service,03/04/2019,Travel and Subsistence,Chief Executive Office,Staff Payment,900007673,15.00,
BEIS,The Insolvency Service,03/04/2019,Travel and Subsistence,Investigations & Enforcement Services,Staff Payment,900007792,7.40,
BEIS,The Insolvency Service,03/04/2019,Travel and Subsistence,Investigations & Enforcement Services,Staff Payment,900007663,6.00,
BEIS,The Insolvency Service,03/04/2019,Travel and Subsistence,Investigations & Enforcement Services,Staff Payment,900007663,15.00,
BEIS,The Insolvency Service,03/04/2019,Travel and Subsistence,Investigations & Enforcement Services,Staff Payment,900007663,10.00,
BEIS,The Insolvency Service,03/04/2019,Travel and Subsistence,Investigations & Enforcement Services,Staff Payment,900007576,9.00,
BEIS,The Insolvency Service,03/04/2019,Travel and Subsistence,Investigations & Enforcement Services,Staff Payment,900007717,5.00,
BEIS,The Insolvency Service,03/04/2019,Travel and Subsistence,Investigations & Enforcement Services,Staff Payment,900007642,11.00,
BEIS,The Insolvency Service,03/04/2019,Travel and Subsistence,Investigations & Enforcement Services,Staff Payment,900007642,12.00,
BEIS,The Insolvency Service,03/04/2019,Travel and Subsistence,Investigations & Enforcement Services,Staff Payment,900007777,20.00,
BEIS,The Insolvency Service,03/04/2019,Travel and Subsistence,Business Service Division,Staff Payment,900007108,6.50,
BEIS,The Insolvency Service,03/04/2019,Travel and Subsistence,Business Service Division,Staff Payment,900007108,7.00,
BEIS,The Insolvency Service,03/04/2019,Travel and Subsistence,Business Service Division,Staff Payment,900007816,10.00,
BEIS,The Insolvency Service,03/04/2019,Travel and Subsistence,Business Service Division,Staff Payment,900007816,10.40,
BEIS,The Insolvency Service,03/04/2019,Travel and Subsistence,Finance & Commercial,Staff Payment,900007662,6.00,
BEIS,The Insolvency Service,03/04/2019,Travel and Subsistence,Finance & Commercial,Staff Payment,900007662,14.50,
BEIS,The Insolvency Service,03/04/2019,Travel and Subsistence,Finance & Commercial,Staff Payment,900007662,6.00,
BEIS,The Insolvency Service,03/04/2019,Travel and Subsistence,Finance & Commercial,Staff Payment,900007662,15.70,
BEIS,The Insolvency Service,03/04/2019,Travel and Subsistence,Finance & Commercial,Staff Payment,900007662,7.00,
BEIS,The Insolvency Service,03/04/2019,Travel and Subsistence,Finance & Commercial,Staff Payment,900007662,5.90,
BEIS,The Insolvency Service,03/04/2019,Travel and Subsistence,Investigations & Enforcement Services,Staff Payment,900007826,17.00,
BEIS,The Insolvency Service,03/04/2019,Travel and Subsistence,Investigations & Enforcement Services,Staff Payment,900007826,17.00,
BEIS,The Insolvency Service,03/04/2019,Travel and Subsistence,Official Receiver Services,Staff Payment,900007629,417.60,
BEIS,The Insolvency Service,03/04/2019,Travel and Subsistence,Investigations & Enforcement Services,Staff Payment,900007755,2.25,
BEIS,The Insolvency Service,03/04/2019,Travel and Subsistence,Investigations & Enforcement Services,Staff Payment,900007755,2.25,
BEIS,The Insolvency Service,03/04/2019,Travel and Subsistence,Investigations & Enforcement Services,Staff Payment,900007755,2.25,
BEIS,The Insolvency Service,03/04/2019,Travel and Subsistence,Investigations & Enforcement Services,Staff Payment,900007755,93.60,
BEIS,The Insolvency Service,03/04/2019,Travel and Subsistence,Investigations & Enforcement Services,Staff Payment,900007755,2.25,
BEIS,The Insolvency Service,03/04/2019,Travel and Subsistence,Investigations & Enforcement Services,Staff Payment,900007755,2.25,
BEIS,The Insolvency Service,03/04/2019,Travel and Subsistence,Official Receiver Services,Staff Payment,900007535,36.00,
BEIS,The Insolvency Service,03/04/2019,Travel and Subsistence,Official Receiver Services,Staff Payment,900007691,36.00,
BEIS,The Insolvency Service,03/04/2019,Travel and Subsistence,Official Receiver Services,Staff Payment,900007616,14.50,
BEIS,The Insolvency Service,03/04/2019,Travel and Subsistence,Investigations & Enforcement Services,Staff Payment,900004770,13.95,
BEIS,The Insolvency Service,03/04/2019,Travel and Subsistence,Investigations & Enforcement Services,Staff Payment,900007651,5.80,
BEIS,The Insolvency Service,03/04/2019,Travel and Subsistence,Investigations & Enforcement Services,Staff Payment,900007651,2.25,
BEIS,The Insolvency Service,03/04/2019,Travel and Subsistence,Investigations & Enforcement Services,Staff Payment,900007690,2.25,
BEIS,The Insolvency Service,03/04/2019,Travel and Subsistence,People & Capability,Staff Payment,900007859,9.00,
BEIS,The Insolvency Service,03/04/2019,Travel and Subsistence,People & Capability,Staff Payment,900007859,18.00,
BEIS,The Insolvency Service,03/04/2019,Travel and Subsistence,Investigations & Enforcement Services,Staff Payment,900007834,10.00,
BEIS,The Insolvency Service,03/04/2019,Travel and Subsistence,Investigations & Enforcement Services,Staff Payment,900007836,10.00,
BEIS,The Insolvency Service,03/04/2019,Travel and Subsistence,Investigations & Enforcement Services,Staff Payment,900007605,12.00,
BEIS,The Insolvency Service,03/04/2019,Travel and Subsistence,Investigations & Enforcement Services,Staff Payment,900007607,78.00,
BEIS,The Insolvency Service,03/04/2019,Travel and Subsistence,Official Receiver Services,Staff Payment,900007773,6.50,
BEIS,The Insolvency Service,03/04/2019,Travel and Subsistence,Official Receiver Services,Staff Payment,900007773,45.00,
BEIS,The Insolvency Service,03/04/2019,Travel and Subsistence,Investigations & Enforcement Services,Staff Payment,900007657,1.35,
BEIS,The Insolvency Service,03/04/2019,Travel and Subsistence,Investigations & Enforcement Services,Staff Payment,900007657,1.35,
BEIS,The Insolvency Service,03/04/2019,Travel and Subsistence,Investigations & Enforcement Services,Staff Payment,900007657,68.50,
BEIS,The Insolvency Service,03/04/2019,Travel and Subsistence,Investigations & Enforcement Services,Staff Payment,900007599,17.10,
BEIS,The Insolvency Service,03/04/2019,Travel and Subsistence,Investigations & Enforcement Services,Staff Payment,900007599,2.00,
BEIS,The Insolvency Service,03/04/2019,Travel and Subsistence,Official Receiver Services,Staff Payment,900007763,3.50,
BEIS,The Insolvency Service,03/04/2019,Travel and Subsistence,Official Receiver Services,Staff Payment,900007687,24.00,
BEIS,The Insolvency Service,03/04/2019,Travel and Subsistence,Official Receiver Services,Staff Payment,900007688,24.00,
BEIS,The Insolvency Service,03/04/2019,Travel and Subsistence,Official Receiver Services,Staff Payment,900007838,24.00,
BEIS,The Insolvency Service,03/04/2019,Travel and Subsistence,Official Receiver Services,Staff Payment,900007839,24.00,
BEIS,The Insolvency Service,03/04/2019,Travel and Subsistence,Official Receiver Services,Staff Payment,900007840,24.00,
BEIS,The Insolvency Service,03/04/2019,Travel and Subsistence,Official Receiver Services,Staff Payment,900007841,24.00,
BEIS,The Insolvency Service,03/04/2019,Travel and Subsistence,Official Receiver Services,Staff Payment,900007842,24.00,
BEIS,The Insolvency Service,03/04/2019,Travel and Subsistence,Official Receiver Services,Staff Payment,900007843,24.00,
BEIS,The Insolvency Service,03/04/2019,Travel and Subsistence,Official Receiver Services,Staff Payment,900007844,24.00,
BEIS,The Insolvency Service,03/04/2019,Travel and Subsistence,Official Receiver Services,Staff Payment,900007845,24.00,
BEIS,The Insolvency Service,03/04/2019,Travel and Subsistence,Investigations & Enforcement Services,Staff Payment,900007052,9.00,
BEIS,The Insolvency Service,03/04/2019,Travel and Subsistence,Investigations & Enforcement Services,Staff Payment,900007052,62.10,
BEIS,The Insolvency Service,03/04/2019,Travel and Subsistence,Investigations & Enforcement Services,Staff Payment,900007052,11.50,
BEIS,The Insolvency Service,03/04/2019,Travel and Subsistence,Investigations & Enforcement Services,Staff Payment,900007689,3.10,
BEIS,The Insolvency Service,03/04/2019,Travel and Subsistence,Investigations & Enforcement Services,Staff Payment,900007689,47.25,
BEIS,The Insolvency Service,03/04/2019,Travel and Subsistence,Investigations & Enforcement Services,Staff Payment,900007689,10.00,
BEIS,The Insolvency Service,03/04/2019,Travel and Subsistence,Investigations & Enforcement Services,Staff Payment,900007689,2.50,
BEIS,The Insolvency Service,03/04/2019,Travel and Subsistence,Investigations & Enforcement Services,Staff Payment,900007689,8.50,
BEIS,The Insolvency Service,03/04/2019,Travel and Subsistence,Investigations & Enforcement Services,Staff Payment,900007689,14.00,
BEIS,The Insolvency Service,03/04/2019,Travel and Subsistence,Investigations & Enforcement Services,Staff Payment,900007689,1.00,
BEIS,The Insolvency Service,03/04/2019,Travel and Subsistence,Investigations & Enforcement Services,Staff Payment,900007689,6.50,
BEIS,The Insolvency Service,03/04/2019,Travel and Subsistence,Investigations & Enforcement Services,Staff Payment,900007689,22.00,
BEIS,The Insolvency Service,03/04/2019,Travel and Subsistence,Investigations & Enforcement Services,Staff Payment,900007689,47.25,
BEIS,The Insolvency Service,03/04/2019,Travel and Subsistence,Investigations & Enforcement Services,Staff Payment,900007689,0.50,
BEIS,The Insolvency Service,03/04/2019,Travel and Subsistence,Investigations & Enforcement Services,Staff Payment,900007689,6.00,
BEIS,The Insolvency Service,03/04/2019,Travel and Subsistence,Investigations & Enforcement Services,Staff Payment,900007689,12.00,
BEIS,The Insolvency Service,03/04/2019,Travel and Subsistence,Investigations & Enforcement Services,Staff Payment,900007689,91.35,
BEIS,The Insolvency Service,03/04/2019,Travel and Subsistence,Investigations & Enforcement Services,Staff Payment,900007689,2.00,
BEIS,The Insolvency Service,03/04/2019,Travel and Subsistence,Investigations & Enforcement Services,Staff Payment,900007689,92.25,
BEIS,The Insolvency Service,03/04/2019,Travel and Subsistence,Investigations & Enforcement Services,Staff Payment,900007689,1.00,
BEIS,The Insolvency Service,03/04/2019,Travel and Subsistence,Investigations & Enforcement Services,Staff Payment,900007689,3.00,
BEIS,The Insolvency Service,03/04/2019,Travel and Subsistence,Investigations & Enforcement Services,Staff Payment,900007689,3.00,
BEIS,The Insolvency Service,03/04/2019,Travel and Subsistence,Investigations & Enforcement Services,Staff Payment,900007689,7.00,
BEIS,The Insolvency Service,03/04/2019,Travel and Subsistence,Investigations & Enforcement Services,Staff Payment,900007689,2.00,
BEIS,The Insolvency Service,03/04/2019,Travel and Subsistence,Business Service Division,Staff Payment,900007789,54.45,
BEIS,The Insolvency Service,03/04/2019,Travel and Subsistence,Business Service Division,Staff Payment,900007789,3.15,
BEIS,The Insolvency Service,03/04/2019,Travel and Subsistence,Business Service Division,Staff Payment,900007789,57.15,
BEIS,The Insolvency Service,03/04/2019,Travel and Subsistence,Business Service Division,Staff Payment,900007791,25.00,
BEIS,The Insolvency Service,03/04/2019,Travel and Subsistence,Business Service Division,Staff Payment,900007791,40.05,
BEIS,The Insolvency Service,03/04/2019,Travel and Subsistence,Business Service Division,Staff Payment,900007791,40.05,
BEIS,The Insolvency Service,03/04/2019,Travel and Subsistence,Investigations & Enforcement Services,Staff Payment,900007884,11.55,
BEIS,The Insolvency Service,03/04/2019,Travel and Subsistence,Investigations & Enforcement Services,Staff Payment,900007703,22.50,
BEIS,The Insolvency Service,03/04/2019,Travel and Subsistence,Investigations & Enforcement Services,Staff Payment,900007703,12.00,
BEIS,The Insolvency Service,03/04/2019,Travel and Subsistence,Official Receiver Services,Staff Payment,900007825,33.75,
BEIS,The Insolvency Service,03/04/2019,Travel and Subsistence,Investigations & Enforcement Services,Staff Payment,900007423,25.20,
BEIS,The Insolvency Service,03/04/2019,Travel and Subsistence,Investigations & Enforcement Services,Staff Payment,900007423,27.00,
BEIS,The Insolvency Service,03/04/2019,Travel and Subsistence,Information & Technology,Staff Payment,900007778,28.05,
BEIS,The Insolvency Service,03/04/2019,Travel and Subsistence,Information & Technology,Staff Payment,900007778,118.25,
BEIS,The Insolvency Service,03/04/2019,Travel and Subsistence,Information & Technology,Staff Payment,900007778,125.40,
BEIS,The Insolvency Service,03/04/2019,Travel and Subsistence,Information & Technology,Staff Payment,900007778,12.00,
BEIS,The Insolvency Service,03/04/2019,Travel and Subsistence,Information & Technology,Staff Payment,900007778,7.50,
BEIS,The Insolvency Service,03/04/2019,Travel and Subsistence,Investigations & Enforcement Services,Staff Payment,900007801,24.00,
BEIS,The Insolvency Service,03/04/2019,Travel and Subsistence,Investigations & Enforcement Services,Staff Payment,900007801,9.00,
BEIS,The Insolvency Service,03/04/2019,Travel and Subsistence,Investigations & Enforcement Services,Staff Payment,900007166,27.89,
BEIS,The Insolvency Service,03/04/2019,Travel and Subsistence,Investigations & Enforcement Services,Staff Payment,900007590,13.49,
BEIS,The Insolvency Service,03/04/2019,Travel and Subsistence,Investigations & Enforcement Services,Staff Payment,900007731,18.89,
BEIS,The Insolvency Service,03/04/2019,Travel and Subsistence,Official Receiver Services,Staff Payment,900007886,67.95,
BEIS,The Insolvency Service,03/04/2019,Travel and Subsistence,Finance & Commercial,Staff Payment,900007676,124.20,
BEIS,The Insolvency Service,03/04/2019,Travel and Subsistence,Investigations & Enforcement Services,Staff Payment,900007770,9.20,
BEIS,The Insolvency Service,03/04/2019,Travel and Subsistence,Investigations & Enforcement Services,Staff Payment,900007114,32.40,
BEIS,The Insolvency Service,03/04/2019,Travel and Subsistence,Investigations & Enforcement Services,Staff Payment,900007114,26.10,
BEIS,The Insolvency Service,03/04/2019,Travel and Subsistence,Investigations & Enforcement Services,Staff Payment,900007114,35.10,
BEIS,The Insolvency Service,03/04/2019,Travel and Subsistence,Investigations & Enforcement Services,Staff Payment,900007114,70.20,
BEIS,The Insolvency Service,03/04/2019,Travel and Subsistence,Investigations & Enforcement Services,Staff Payment,900007114,62.10,
BEIS,The Insolvency Service,03/04/2019,Travel and Subsistence,Investigations & Enforcement Services,Staff Payment,900007114,11.00,
BEIS,The Insolvency Service,03/04/2019,Travel and Subsistence,Investigations & Enforcement Services,Staff Payment,900007114,62.10,
BEIS,The Insolvency Service,03/04/2019,Travel and Subsistence,Investigations & Enforcement Services,Staff Payment,900007114,65.70,
BEIS,The Insolvency Service,03/04/2019,Travel and Subsistence,Investigations & Enforcement Services,Staff Payment,900007663,54.00,
BEIS,The Insolvency Service,03/04/2019,Travel and Subsistence,Investigations & Enforcement Services,Staff Payment,900007663,4.00,
BEIS,The Insolvency Service,03/04/2019,Travel and Subsistence,Investigations & Enforcement Services,Staff Payment,900007663,54.00,
BEIS,The Insolvency Service,03/04/2019,Travel and Subsistence,Investigations & Enforcement Services,Staff Payment,900007818,1.80,
BEIS,The Insolvency Service,03/04/2019,Travel and Subsistence,Investigations & Enforcement Services,Staff Payment,900007818,11.00,
BEIS,The Insolvency Service,03/04/2019,Travel and Subsistence,Investigations & Enforcement Services,Staff Payment,900007818,1.80,
BEIS,The Insolvency Service,03/04/2019,Travel and Subsistence,Investigations & Enforcement Services,Staff Payment,900007818,11.00,
BEIS,The Insolvency Service,03/04/2019,Travel and Subsistence,Investigations & Enforcement Services,Staff Payment,900007818,1.80,
BEIS,The Insolvency Service,03/04/2019,Travel and Subsistence,Investigations & Enforcement Services,Staff Payment,900007818,1.80,
BEIS,The Insolvency Service,03/04/2019,Travel and Subsistence,Investigations & Enforcement Services,Staff Payment,900007818,11.00,
BEIS,The Insolvency Service,03/04/2019,Travel and Subsistence,Investigations & Enforcement Services,Staff Payment,900007818,1.80,
BEIS,The Insolvency Service,03/04/2019,Travel and Subsistence,Investigations & Enforcement Services,Staff Payment,900007818,11.00,
BEIS,The Insolvency Service,03/04/2019,Travel and Subsistence,Investigations & Enforcement Services,Staff Payment,900007818,1.80,
BEIS,The Insolvency Service,03/04/2019,Travel and Subsistence,Investigations & Enforcement Services,Staff Payment,900007818,11.00,
BEIS,The Insolvency Service,03/04/2019,Travel and Subsistence,Investigations & Enforcement Services,Staff Payment,900007818,6.00,
BEIS,The Insolvency Service,03/04/2019,Travel and Subsistence,Investigations & Enforcement Services,Staff Payment,900007818,11.00,
BEIS,The Insolvency Service,03/04/2019,Travel and Subsistence,Investigations & Enforcement Services,Staff Payment,900007203,4.50,
BEIS,The Insolvency Service,03/04/2019,Travel and Subsistence,Investigations & Enforcement Services,Staff Payment,900007203,4.50,
BEIS,The Insolvency Service,03/04/2019,Travel and Subsistence,Investigations & Enforcement Services,Staff Payment,900007203,4.50,
BEIS,The Insolvency Service,03/04/2019,Travel and Subsistence,Investigations & Enforcement Services,Staff Payment,900007745,12.60,
BEIS,The Insolvency Service,03/04/2019,Travel and Subsistence,Investigations & Enforcement Services,Staff Payment,900007745,4.05,
BEIS,The Insolvency Service,03/04/2019,Travel and Subsistence,Investigations & Enforcement Services,Staff Payment,900007745,4.05,
BEIS,The Insolvency Service,03/04/2019,Travel and Subsistence,Investigations & Enforcement Services,Staff Payment,900007745,7.20,
BEIS,The Insolvency Service,03/04/2019,Travel and Subsistence,Investigations & Enforcement Services,Staff Payment,900007745,24.00,
BEIS,The Insolvency Service,03/04/2019,Travel and Subsistence,Investigations & Enforcement Services,Staff Payment,900007745,23.40,
BEIS,The Insolvency Service,03/04/2019,Travel and Subsistence,Investigations & Enforcement Services,Staff Payment,900007831,9.00,
BEIS,The Insolvency Service,03/04/2019,Travel and Subsistence,Investigations & Enforcement Services,Staff Payment,900007729,6.00,
BEIS,The Insolvency Service,03/04/2019,Travel and Subsistence,Investigations & Enforcement Services,Staff Payment,900007576,104.40,
BEIS,The Insolvency Service,03/04/2019,Travel and Subsistence,Investigations & Enforcement Services,Staff Payment,900007659,5.00,
BEIS,The Insolvency Service,03/04/2019,Travel and Subsistence,Investigations & Enforcement Services,Staff Payment,900007659,19.35,
BEIS,The Insolvency Service,03/04/2019,Travel and Subsistence,Investigations & Enforcement Services,Staff Payment,900007659,5.00,
BEIS,The Insolvency Service,03/04/2019,Travel and Subsistence,Investigations & Enforcement Services,Staff Payment,900007659,5.00,
BEIS,The Insolvency Service,03/04/2019,Travel and Subsistence,Investigations & Enforcement Services,Staff Payment,900007659,97.65,
BEIS,The Insolvency Service,03/04/2019,Travel and Subsistence,Investigations & Enforcement Services,Staff Payment,900007659,95.40,
BEIS,The Insolvency Service,03/04/2019,Travel and Subsistence,Investigations & Enforcement Services,Staff Payment,900007846,38.70,
BEIS,The Insolvency Service,03/04/2019,Travel and Subsistence,Investigations & Enforcement Services,Staff Payment,900007846,7.50,
BEIS,The Insolvency Service,03/04/2019,Travel and Subsistence,Investigations & Enforcement Services,Staff Payment,900007486,63.00,
BEIS,The Insolvency Service,03/04/2019,Travel and Subsistence,Investigations & Enforcement Services,Staff Payment,900007486,63.00,
BEIS,The Insolvency Service,03/04/2019,Travel and Subsistence,Investigations & Enforcement Services,Staff Payment,900007486,4.00,
BEIS,The Insolvency Service,03/04/2019,Travel and Subsistence,Investigations & Enforcement Services,Staff Payment,900007833,48.60,
BEIS,The Insolvency Service,03/04/2019,Travel and Subsistence,Investigations & Enforcement Services,Staff Payment,900007833,4.50,
BEIS,The Insolvency Service,03/04/2019,Travel and Subsistence,Investigations & Enforcement Services,Staff Payment,900007833,23.20,
BEIS,The Insolvency Service,03/04/2019,Travel and Subsistence,Investigations & Enforcement Services,Staff Payment,900007833,4.50,
BEIS,The Insolvency Service,03/04/2019,Travel and Subsistence,Investigations & Enforcement Services,Staff Payment,900007833,9.45,
BEIS,The Insolvency Service,03/04/2019,Travel and Subsistence,Investigations & Enforcement Services,Staff Payment,900007833,21.20,
BEIS,The Insolvency Service,03/04/2019,Travel and Subsistence,Investigations & Enforcement Services,Staff Payment,900007833,48.60,
BEIS,The Insolvency Service,03/04/2019,Travel and Subsistence,Investigations & Enforcement Services,Staff Payment,900007833,10.80,
BEIS,The Insolvency Service,03/04/2019,Travel and Subsistence,Investigations & Enforcement Services,Staff Payment,900007210,107.10,
BEIS,The Insolvency Service,03/04/2019,Travel and Subsistence,Investigations & Enforcement Services,Staff Payment,900007210,14.00,
BEIS,The Insolvency Service,03/04/2019,Travel and Subsistence,Investigations & Enforcement Services,Staff Payment,900007210,4.00,
BEIS,The Insolvency Service,03/04/2019,Travel and Subsistence,Investigations & Enforcement Services,Staff Payment,900007862,16.00,
BEIS,The Insolvency Service,03/04/2019,Travel and Subsistence,Investigations & Enforcement Services,Staff Payment,900007862,4.00,
BEIS,The Insolvency Service,03/04/2019,Travel and Subsistence,Investigations & Enforcement Services,Staff Payment,900007862,14.30,
BEIS,The Insolvency Service,03/04/2019,Travel and Subsistence,Investigations & Enforcement Services,Staff Payment,900007862,6.75,
BEIS,The Insolvency Service,03/04/2019,Travel and Subsistence,Investigations & Enforcement Services,Staff Payment,900007862,6.75,
BEIS,The Insolvency Service,03/04/2019,Travel and Subsistence,Investigations & Enforcement Services,Staff Payment,900007862,26.10,
BEIS,The Insolvency Service,03/04/2019,Travel and Subsistence,Investigations & Enforcement Services,Staff Payment,900007862,12.60,
BEIS,The Insolvency Service,03/04/2019,Travel and Subsistence,Investigations & Enforcement Services,Staff Payment,900007862,3.60,
BEIS,The Insolvency Service,03/04/2019,Travel and Subsistence,Investigations & Enforcement Services,Staff Payment,900007862,21.60,
BEIS,The Insolvency Service,03/04/2019,Travel and Subsistence,Investigations & Enforcement Services,Staff Payment,900007862,3.60,
BEIS,The Insolvency Service,03/04/2019,Travel and Subsistence,Investigations & Enforcement Services,Staff Payment,900007862,43.20,
BEIS,The Insolvency Service,03/04/2019,Travel and Subsistence,Investigations & Enforcement Services,Staff Payment,900007862,43.20,
BEIS,The Insolvency Service,03/04/2019,Travel and Subsistence,Investigations & Enforcement Services,Staff Payment,900007862,25.20,
BEIS,The Insolvency Service,03/04/2019,Travel and Subsistence,Investigations & Enforcement Services,Staff Payment,900007862,12.60,
BEIS,The Insolvency Service,03/04/2019,Travel and Subsistence,Investigations & Enforcement Services,Staff Payment,900007862,3.60,
BEIS,The Insolvency Service,03/04/2019,Travel and Subsistence,Business Service Division,Staff Payment,900007046,2.25,
BEIS,The Insolvency Service,03/04/2019,Travel and Subsistence,Investigations & Enforcement Services,Staff Payment,900007712,29.70,
BEIS,The Insolvency Service,03/04/2019,Travel and Subsistence,Investigations & Enforcement Services,Staff Payment,900007642,15.00,
BEIS,The Insolvency Service,03/04/2019,Travel and Subsistence,Investigations & Enforcement Services,Staff Payment,900007642,29.70,
BEIS,The Insolvency Service,03/04/2019,Travel and Subsistence,Investigations & Enforcement Services,Staff Payment,900007777,4.50,
BEIS,The Insolvency Service,03/04/2019,Travel and Subsistence,Investigations & Enforcement Services,Staff Payment,900007777,41.85,
BEIS,The Insolvency Service,03/04/2019,Travel and Subsistence,Investigations & Enforcement Services,Staff Payment,900007777,25.65,
BEIS,The Insolvency Service,03/04/2019,Travel and Subsistence,Investigations & Enforcement Services,Staff Payment,900007777,18.90,
BEIS,The Insolvency Service,03/04/2019,Travel and Subsistence,Investigations & Enforcement Services,Staff Payment,900007777,4.50,
BEIS,The Insolvency Service,03/04/2019,Travel and Subsistence,Investigations & Enforcement Services,Staff Payment,900007777,29.50,
BEIS,The Insolvency Service,03/04/2019,Travel and Subsistence,Investigations & Enforcement Services,Staff Payment,900007777,70.85,
BEIS,The Insolvency Service,03/04/2019,Travel and Subsistence,Investigations & Enforcement Services,Staff Payment,900007823,124.47,
BEIS,The Insolvency Service,03/04/2019,Travel and Subsistence,Investigations & Enforcement Services,Staff Payment,900007823,11.61,
BEIS,The Insolvency Service,03/04/2019,Travel and Subsistence,Investigations & Enforcement Services,Staff Payment,900007823,10.00,
BEIS,The Insolvency Service,03/04/2019,Travel and Subsistence,Investigations & Enforcement Services,Staff Payment,900007823,11.61,
BEIS,The Insolvency Service,03/04/2019,Travel and Subsistence,Investigations & Enforcement Services,Staff Payment,900007823,45.18,
BEIS,The Insolvency Service,03/04/2019,Travel and Subsistence,Investigations & Enforcement Services,Staff Payment,900007823,12.24,
BEIS,The Insolvency Service,03/04/2019,Travel and Subsistence,Investigations & Enforcement Services,Staff Payment,900007615,3.50,
BEIS,The Insolvency Service,03/04/2019,Travel and Subsistence,Investigations & Enforcement Services,Staff Payment,900007615,12.00,
BEIS,The Insolvency Service,03/04/2019,Travel and Subsistence,Investigations & Enforcement Services,Staff Payment,900007615,40.05,
BEIS,The Insolvency Service,03/04/2019,Travel and Subsistence,Investigations & Enforcement Services,Staff Payment,900007615,5.00,
BEIS,The Insolvency Service,03/04/2019,Travel and Subsistence,Investigations & Enforcement Services,Staff Payment,900007615,3.60,
BEIS,The Insolvency Service,03/04/2019,Travel and Subsistence,Investigations & Enforcement Services,Staff Payment,900007615,72.00,
BEIS,The Insolvency Service,03/04/2019,Travel and Subsistence,Investigations & Enforcement Services,Staff Payment,900007615,39.60,
BEIS,The Insolvency Service,03/04/2019,Travel and Subsistence,Investigations & Enforcement Services,Staff Payment,900007615,8.00,
BEIS,The Insolvency Service,03/04/2019,Travel and Subsistence,Investigations & Enforcement Services,Staff Payment,900007615,7.00,
BEIS,The Insolvency Service,03/04/2019,Travel and Subsistence,Investigations & Enforcement Services,Staff Payment,900007615,86.40,
BEIS,The Insolvency Service,03/04/2019,Travel and Subsistence,Investigations & Enforcement Services,Staff Payment,900007615,39.60,
BEIS,The Insolvency Service,03/04/2019,Travel and Subsistence,Investigations & Enforcement Services,Staff Payment,900007615,5.00,
BEIS,The Insolvency Service,03/04/2019,Travel and Subsistence,Investigations & Enforcement Services,Staff Payment,900007408,4.00,
BEIS,The Insolvency Service,03/04/2019,Travel and Subsistence,Investigations & Enforcement Services,Staff Payment,900007408,62.95,
BEIS,The Insolvency Service,03/04/2019,Travel and Subsistence,Investigations & Enforcement Services,Staff Payment,900007408,11.00,
BEIS,The Insolvency Service,03/04/2019,Travel and Subsistence,Investigations & Enforcement Services,Staff Payment,900007408,23.13,
BEIS,The Insolvency Service,03/04/2019,Travel and Subsistence,Investigations & Enforcement Services,Staff Payment,900007408,22.50,
BEIS,The Insolvency Service,03/04/2019,Travel and Subsistence,Investigations & Enforcement Services,Staff Payment,900007408,48.05,
BEIS,The Insolvency Service,03/04/2019,Travel and Subsistence,Investigations & Enforcement Services,Staff Payment,900007408,71.46,
BEIS,The Insolvency Service,03/04/2019,Travel and Subsistence,Investigations & Enforcement Services,Staff Payment,900007408,11.00,
BEIS,The Insolvency Service,03/04/2019,Travel and Subsistence,Investigations & Enforcement Services,Staff Payment,900007408,71.46,
BEIS,The Insolvency Service,03/04/2019,Travel and Subsistence,Investigations & Enforcement Services,Staff Payment,900007408,17.64,
BEIS,The Insolvency Service,03/04/2019,Travel and Subsistence,Investigations & Enforcement Services,Staff Payment,900007408,13.10,
BEIS,The Insolvency Service,03/04/2019,Travel and Subsistence,Investigations & Enforcement Services,Staff Payment,900007408,8.82,
BEIS,The Insolvency Service,03/04/2019,Travel and Subsistence,Investigations & Enforcement Services,Staff Payment,900007797,14.85,
BEIS,The Insolvency Service,03/04/2019,Travel and Subsistence,Investigations & Enforcement Services,Staff Payment,900007637,4.00,
BEIS,The Insolvency Service,03/04/2019,Travel and Subsistence,Investigations & Enforcement Services,Staff Payment,900007637,53.10,
BEIS,The Insolvency Service,03/04/2019,Travel and Subsistence,Investigations & Enforcement Services,Staff Payment,900007637,4.00,
BEIS,The Insolvency Service,03/04/2019,Travel and Subsistence,Investigations & Enforcement Services,Staff Payment,900007637,18.45,
BEIS,The Insolvency Service,03/04/2019,Travel and Subsistence,Investigations & Enforcement Services,Staff Payment,900007637,52.65,
BEIS,The Insolvency Service,03/04/2019,Travel and Subsistence,Investigations & Enforcement Services,Staff Payment,900007794,135.00,
BEIS,The Insolvency Service,03/04/2019,Travel and Subsistence,Investigations & Enforcement Services,Staff Payment,900007794,4.60,
BEIS,The Insolvency Service,03/04/2019,Travel and Subsistence,Investigations & Enforcement Services,Staff Payment,900007794,11.28,
BEIS,The Insolvency Service,03/04/2019,Travel and Subsistence,Investigations & Enforcement Services,Staff Payment,900007794,134.10,
BEIS,The Insolvency Service,03/04/2019,Travel and Subsistence,Investigations & Enforcement Services,Staff Payment,900007794,4.60,
BEIS,The Insolvency Service,03/04/2019,Travel and Subsistence,Investigations & Enforcement Services,Staff Payment,900007794,67.50,
BEIS,The Insolvency Service,03/04/2019,Travel and Subsistence,Investigations & Enforcement Services,Staff Payment,900007794,135.45,
BEIS,The Insolvency Service,03/04/2019,Travel and Subsistence,Investigations & Enforcement Services,Staff Payment,900007794,15.00,
BEIS,The Insolvency Service,03/04/2019,Travel and Subsistence,Investigations & Enforcement Services,Staff Payment,900007794,57.60,
BEIS,The Insolvency Service,03/04/2019,Travel and Subsistence,Investigations & Enforcement Services,Staff Payment,900007794,18.72,
BEIS,The Insolvency Service,03/04/2019,Travel and Subsistence,Investigations & Enforcement Services,Staff Payment,900007710,15.30,
BEIS,The Insolvency Service,03/04/2019,Travel and Subsistence,Investigations & Enforcement Services,Staff Payment,900007710,146.25,
BEIS,The Insolvency Service,03/04/2019,Travel and Subsistence,Investigations & Enforcement Services,Staff Payment,900007710,67.05,
BEIS,The Insolvency Service,03/04/2019,Travel and Subsistence,Investigations & Enforcement Services,Staff Payment,900007537,47.70,
BEIS,The Insolvency Service,03/04/2019,Travel and Subsistence,Strategy & Change,Staff Payment,900007764,52.20,
BEIS,The Insolvency Service,03/04/2019,Travel and Subsistence,Strategy & Change,Staff Payment,900007764,4.50,
BEIS,The Insolvency Service,03/04/2019,Travel and Subsistence,Strategy & Change,Staff Payment,900007764,107.10,
BEIS,The Insolvency Service,03/04/2019,Travel and Subsistence,Strategy & Change,Staff Payment,900007764,8.00,
BEIS,The Insolvency Service,03/04/2019,Travel and Subsistence,Investigations & Enforcement Services,Staff Payment,900007771,22.00,
BEIS,The Insolvency Service,03/04/2019,Travel and Subsistence,Finance & Commercial,Staff Payment,900007805,10.00,
BEIS,The Insolvency Service,03/04/2019,Travel and Subsistence,Finance & Commercial,Staff Payment,900007807,10.00,
BEIS,The Insolvency Service,03/04/2019,Travel and Subsistence,Finance & Commercial,Staff Payment,900007570,12.00,
BEIS,The Insolvency Service,03/04/2019,Travel and Subsistence,Finance & Commercial,Staff Payment,900007809,12.00,
BEIS,The Insolvency Service,03/04/2019,Travel and Subsistence,Finance & Commercial,Staff Payment,900007827,793.80,
BEIS,The Insolvency Service,04/04/2019,Travel and Subsistence,Investigations & Enforcement Services,Staff Payment,900007919,5.00,
BEIS,The Insolvency Service,04/04/2019,Travel and Subsistence,Investigations & Enforcement Services,Staff Payment,900007922,5.00,
BEIS,The Insolvency Service,04/04/2019,Travel and Subsistence,Business Service Division,Staff Payment,900007752,1.70,
BEIS,The Insolvency Service,04/04/2019,Travel and Subsistence,Business Service Division,Staff Payment,900007752,1.70,
BEIS,The Insolvency Service,04/04/2019,Travel and Subsistence,Business Service Division,Staff Payment,900007779,5.00,
BEIS,The Insolvency Service,04/04/2019,Travel and Subsistence,Business Service Division,Staff Payment,900007780,1.70,
BEIS,The Insolvency Service,04/04/2019,Travel and Subsistence,Business Service Division,Staff Payment,900007782,1.70,
BEIS,The Insolvency Service,04/04/2019,Travel and Subsistence,Investigations & Enforcement Services,Staff Payment,900007915,15.00,
BEIS,The Insolvency Service,04/04/2019,Travel and Subsistence,Investigations & Enforcement Services,Staff Payment,900007916,5.00,
BEIS,The Insolvency Service,04/04/2019,Travel and Subsistence,Investigations & Enforcement Services,Staff Payment,900007916,10.00,
BEIS,The Insolvency Service,04/04/2019,Travel and Subsistence,Investigations & Enforcement Services,Staff Payment,900007916,5.00,
BEIS,The Insolvency Service,04/04/2019,Travel and Subsistence,Official Receiver Services,Staff Payment,900007890,1.70,
BEIS,The Insolvency Service,04/04/2019,Travel and Subsistence,Official Receiver Services,Staff Payment,900007891,5.80,
BEIS,The Insolvency Service,04/04/2019,Travel and Subsistence,Official Receiver Services,Staff Payment,900007896,3.75,
BEIS,The Insolvency Service,04/04/2019,Travel and Subsistence,Official Receiver Services,Staff Payment,900007896,5.00,
BEIS,The Insolvency Service,04/04/2019,Travel and Subsistence,Official Receiver Services,Staff Payment,900007899,3.75,
BEIS,The Insolvency Service,04/04/2019,Travel and Subsistence,Official Receiver Services,Staff Payment,900007899,5.00,
BEIS,The Insolvency Service,04/04/2019,Travel and Subsistence,Official Receiver Services,Staff Payment,900007900,2.00,
BEIS,The Insolvency Service,04/04/2019,Travel and Subsistence,Official Receiver Services,Staff Payment,900007900,6.30,
BEIS,The Insolvency Service,04/04/2019,Travel and Subsistence,Official Receiver Services,Staff Payment,900007901,5.50,
BEIS,The Insolvency Service,04/04/2019,Travel and Subsistence,Chief Executive Office,Staff Payment,900007937,7.50,
BEIS,The Insolvency Service,04/04/2019,Travel and Subsistence,Finance & Commercial,Staff Payment,900007853,26.00,
BEIS,The Insolvency Service,04/04/2019,Travel and Subsistence,Investigations & Enforcement Services,Staff Payment,900007910,12.60,
BEIS,The Insolvency Service,04/04/2019,Travel and Subsistence,Investigations & Enforcement Services,Staff Payment,900007919,1.50,
BEIS,The Insolvency Service,04/04/2019,Travel and Subsistence,Investigations & Enforcement Services,Staff Payment,900007920,1.60,
BEIS,The Insolvency Service,04/04/2019,Travel and Subsistence,Finance & Commercial,Staff Payment,900007906,4.80,
BEIS,The Insolvency Service,04/04/2019,Travel and Subsistence,Investigations & Enforcement Services,Staff Payment,900007910,5.00,
BEIS,The Insolvency Service,04/04/2019,Travel and Subsistence,Chief Executive Office,Staff Payment,900007821,9.30,
BEIS,The Insolvency Service,04/04/2019,Travel and Subsistence,Chief Executive Office,Staff Payment,900007821,15.00,
BEIS,The Insolvency Service,04/04/2019,Travel and Subsistence,Chief Executive Office,Staff Payment,900007821,5.00,
BEIS,The Insolvency Service,04/04/2019,Travel and Subsistence,Investigations & Enforcement Services,Staff Payment,900007919,15.00,
BEIS,The Insolvency Service,04/04/2019,Travel and Subsistence,Strategy & Change,Staff Payment,900007709,15.00,
BEIS,The Insolvency Service,04/04/2019,Travel and Subsistence,Strategy & Change,Staff Payment,900007709,5.00,
BEIS,The Insolvency Service,04/04/2019,Travel and Subsistence,Official Receiver Services,Staff Payment,900007656,4.85,
BEIS,The Insolvency Service,04/04/2019,Travel and Subsistence,Investigations & Enforcement Services,Staff Payment,900007922,15.00,
BEIS,The Insolvency Service,04/04/2019,Travel and Subsistence,Chief Executive Office,Staff Payment,900007939,5.00,
BEIS,The Insolvency Service,04/04/2019,Travel and Subsistence,Chief Executive Office,Staff Payment,900007939,15.00,
BEIS,The Insolvency Service,04/04/2019,Travel and Subsistence,Chief Executive Office,Staff Payment,900007939,15.00,
BEIS,The Insolvency Service,04/04/2019,Travel and Subsistence,Chief Executive Office,Staff Payment,900007939,5.00,
BEIS,The Insolvency Service,04/04/2019,Travel and Subsistence,Chief Executive Office,Staff Payment,900007939,15.00,
BEIS,The Insolvency Service,04/04/2019,Travel and Subsistence,Chief Executive Office,Staff Payment,900007939,2.00,
BEIS,The Insolvency Service,04/04/2019,Travel and Subsistence,Chief Executive Office,Staff Payment,900007939,15.00,
BEIS,The Insolvency Service,04/04/2019,Travel and Subsistence,Business Service Division,Staff Payment,900007752,5.00,
BEIS,The Insolvency Service,04/04/2019,Travel and Subsistence,Business Service Division,Staff Payment,900007752,8.95,
BEIS,The Insolvency Service,04/04/2019,Travel and Subsistence,Business Service Division,Staff Payment,900007752,5.00,
BEIS,The Insolvency Service,04/04/2019,Travel and Subsistence,Business Service Division,Staff Payment,900007752,4.85,
BEIS,The Insolvency Service,04/04/2019,Travel and Subsistence,Business Service Division,Staff Payment,900007752,13.95,
BEIS,The Insolvency Service,04/04/2019,Travel and Subsistence,Business Service Division,Staff Payment,900007752,5.00,
BEIS,The Insolvency Service,04/04/2019,Travel and Subsistence,Business Service Division,Staff Payment,900007752,2.10,
BEIS,The Insolvency Service,04/04/2019,Travel and Subsistence,Business Service Division,Staff Payment,900007779,5.00,
BEIS,The Insolvency Service,04/04/2019,Travel and Subsistence,Business Service Division,Staff Payment,900007780,5.00,
BEIS,The Insolvency Service,04/04/2019,Travel and Subsistence,Business Service Division,Staff Payment,900007780,4.90,
BEIS,The Insolvency Service,04/04/2019,Travel and Subsistence,Business Service Division,Staff Payment,900007780,9.85,
BEIS,The Insolvency Service,04/04/2019,Travel and Subsistence,Business Service Division,Staff Payment,900007781,5.00,
BEIS,The Insolvency Service,04/04/2019,Travel and Subsistence,Business Service Division,Staff Payment,900007781,4.35,
BEIS,The Insolvency Service,04/04/2019,Travel and Subsistence,Business Service Division,Staff Payment,900007781,15.00,
BEIS,The Insolvency Service,04/04/2019,Travel and Subsistence,Business Service Division,Staff Payment,900007781,5.00,
BEIS,The Insolvency Service,04/04/2019,Travel and Subsistence,Business Service Division,Staff Payment,900007782,5.00,
BEIS,The Insolvency Service,04/04/2019,Travel and Subsistence,Business Service Division,Staff Payment,900007782,4.49,
BEIS,The Insolvency Service,04/04/2019,Travel and Subsistence,Finance & Commercial,Staff Payment,900007906,12.10,
BEIS,The Insolvency Service,04/04/2019,Travel and Subsistence,Finance & Commercial,Staff Payment,900007906,15.00,
BEIS,The Insolvency Service,04/04/2019,Travel and Subsistence,Finance & Commercial,Staff Payment,900007906,5.00,
BEIS,The Insolvency Service,04/04/2019,Travel and Subsistence,Investigations & Enforcement Services,Staff Payment,900007915,30.00,
BEIS,The Insolvency Service,04/04/2019,Travel and Subsistence,Investigations & Enforcement Services,Staff Payment,900007916,15.00,
BEIS,The Insolvency Service,04/04/2019,Travel and Subsistence,Investigations & Enforcement Services,Staff Payment,900007916,15.00,
BEIS,The Insolvency Service,04/04/2019,Travel and Subsistence,Official Receiver Services,Staff Payment,900007890,5.00,
BEIS,The Insolvency Service,04/04/2019,Travel and Subsistence,Official Receiver Services,Staff Payment,900007890,15.00,
BEIS,The Insolvency Service,04/04/2019,Travel and Subsistence,Official Receiver Services,Staff Payment,900007891,5.00,
BEIS,The Insolvency Service,04/04/2019,Travel and Subsistence,Official Receiver Services,Staff Payment,900007891,15.00,
BEIS,The Insolvency Service,04/04/2019,Travel and Subsistence,Official Receiver Services,Staff Payment,900007891,5.00,
BEIS,The Insolvency Service,04/04/2019,Travel and Subsistence,Official Receiver Services,Staff Payment,900007896,4.80,
BEIS,The Insolvency Service,04/04/2019,Travel and Subsistence,Official Receiver Services,Staff Payment,900007896,15.00,
BEIS,The Insolvency Service,04/04/2019,Travel and Subsistence,Official Receiver Services,Staff Payment,900007899,4.80,
BEIS,The Insolvency Service,04/04/2019,Travel and Subsistence,Official Receiver Services,Staff Payment,900007899,10.30,
BEIS,The Insolvency Service,04/04/2019,Travel and Subsistence,Official Receiver Services,Staff Payment,900007900,4.80,
BEIS,The Insolvency Service,04/04/2019,Travel and Subsistence,Business Service Division,Staff Payment,900007779,5.50,
BEIS,The Insolvency Service,04/04/2019,Travel and Subsistence,Business Service Division,Staff Payment,900007780,6.00,
BEIS,The Insolvency Service,04/04/2019,Travel and Subsistence,Chief Executive Office,Staff Payment,900007937,39.76,
BEIS,The Insolvency Service,04/04/2019,Travel and Subsistence,Chief Executive Office,Staff Payment,900007937,42.65,
BEIS,The Insolvency Service,04/04/2019,Travel and Subsistence,Official Receiver Services,Staff Payment,900007883,26.10,
BEIS,The Insolvency Service,04/04/2019,Travel and Subsistence,Official Receiver Services,Staff Payment,900007883,26.10,
BEIS,The Insolvency Service,04/04/2019,Travel and Subsistence,Investigations & Enforcement Services,Staff Payment,900007908,87.30,
BEIS,The Insolvency Service,04/04/2019,Travel and Subsistence,Investigations & Enforcement Services,Staff Payment,900007909,87.30,
BEIS,The Insolvency Service,04/04/2019,Travel and Subsistence,Official Receiver Services,Staff Payment,900007601,11.93,
BEIS,The Insolvency Service,04/04/2019,Travel and Subsistence,Official Receiver Services,Staff Payment,900007601,8.06,
BEIS,The Insolvency Service,04/04/2019,Travel and Subsistence,Official Receiver Services,Staff Payment,900007601,4.07,
BEIS,The Insolvency Service,04/04/2019,Travel and Subsistence,Official Receiver Services,Staff Payment,900007601,11.93,
BEIS,The Insolvency Service,04/04/2019,Travel and Subsistence,Official Receiver Services,Staff Payment,900007601,8.06,
BEIS,The Insolvency Service,04/04/2019,Travel and Subsistence,Official Receiver Services,Staff Payment,900007601,4.07,
BEIS,The Insolvency Service,04/04/2019,Travel and Subsistence,Investigations & Enforcement Services,Staff Payment,900007910,4.50,
BEIS,The Insolvency Service,04/04/2019,Travel and Subsistence,Official Receiver Services,Staff Payment,900007925,8.38,
BEIS,The Insolvency Service,04/04/2019,Travel and Subsistence,Official Receiver Services,Staff Payment,900007925,48.15,
BEIS,The Insolvency Service,04/04/2019,Travel and Subsistence,Official Receiver Services,Staff Payment,900007926,5.00,
BEIS,The Insolvency Service,04/04/2019,Travel and Subsistence,Official Receiver Services,Staff Payment,900007926,22.68,
BEIS,The Insolvency Service,04/04/2019,Travel and Subsistence,Official Receiver Services,Staff Payment,900007926,22.68,
BEIS,The Insolvency Service,04/04/2019,Travel and Subsistence,Official Receiver Services,Staff Payment,900007882,5.00,
BEIS,The Insolvency Service,04/04/2019,Travel and Subsistence,Investigations & Enforcement Services,Staff Payment,900007894,31.50,
BEIS,The Insolvency Service,04/04/2019,Travel and Subsistence,Investigations & Enforcement Services,Staff Payment,900007915,18.00,
BEIS,The Insolvency Service,04/04/2019,Travel and Subsistence,Investigations & Enforcement Services,Staff Payment,900007915,60.00,
BEIS,The Insolvency Service,04/04/2019,Travel and Subsistence,Investigations & Enforcement Services,Staff Payment,900007915,60.00,
BEIS,The Insolvency Service,04/04/2019,Travel and Subsistence,Investigations & Enforcement Services,Staff Payment,900007916,54.00,
BEIS,The Insolvency Service,04/04/2019,Travel and Subsistence,Investigations & Enforcement Services,Staff Payment,900007916,60.00,
BEIS,The Insolvency Service,04/04/2019,Travel and Subsistence,Investigations & Enforcement Services,Staff Payment,900007916,43.20,
BEIS,The Insolvency Service,04/04/2019,Travel and Subsistence,Investigations & Enforcement Services,Staff Payment,900007916,42.30,
BEIS,The Insolvency Service,04/04/2019,Travel and Subsistence,Investigations & Enforcement Services,Staff Payment,900007916,4.00,
BEIS,The Insolvency Service,04/04/2019,Travel and Subsistence,Investigations & Enforcement Services,Staff Payment,900007916,4.00,
BEIS,The Insolvency Service,04/04/2019,Travel and Subsistence,Investigations & Enforcement Services,Staff Payment,900007916,4.00,
BEIS,The Insolvency Service,04/04/2019,Travel and Subsistence,Official Receiver Services,Staff Payment,900007901,24.40,
BEIS,The Insolvency Service,05/04/2019,Travel and Subsistence,Investigations & Enforcement Services,Staff Payment,900007923,5.00,
BEIS,The Insolvency Service,05/04/2019,Travel and Subsistence,Finance & Commercial,Staff Payment,900007931,196.00,
BEIS,The Insolvency Service,05/04/2019,Travel and Subsistence,Business Service Division,Staff Payment,900007958,12.00,
BEIS,The Insolvency Service,05/04/2019,Travel and Subsistence,Investigations & Enforcement Services,Staff Payment,900007819,3.05,
BEIS,The Insolvency Service,05/04/2019,Travel and Subsistence,Investigations & Enforcement Services,Staff Payment,900007921,1.40,
BEIS,The Insolvency Service,05/04/2019,Travel and Subsistence,Investigations & Enforcement Services,Staff Payment,900007921,25.00,
BEIS,The Insolvency Service,05/04/2019,Travel and Subsistence,Investigations & Enforcement Services,Staff Payment,900007516,52.42,
BEIS,The Insolvency Service,05/04/2019,Travel and Subsistence,Investigations & Enforcement Services,Staff Payment,900007516,5.00,
BEIS,The Insolvency Service,05/04/2019,Travel and Subsistence,Investigations & Enforcement Services,Staff Payment,900007516,3.25,
BEIS,The Insolvency Service,05/04/2019,Travel and Subsistence,Investigations & Enforcement Services,Staff Payment,900007516,46.77,
BEIS,The Insolvency Service,05/04/2019,Travel and Subsistence,People & Capability,Staff Payment,900007506,5.00,
BEIS,The Insolvency Service,05/04/2019,Travel and Subsistence,Investigations & Enforcement Services,Staff Payment,900007923,15.00,
BEIS,The Insolvency Service,05/04/2019,Travel and Subsistence,Finance & Commercial,Staff Payment,900007930,3.00,
BEIS,The Insolvency Service,05/04/2019,Travel and Subsistence,Strategy & Change,Staff Payment,900007124,35.20,
BEIS,The Insolvency Service,05/04/2019,Travel and Subsistence,Business Service Division,Staff Payment,900007958,15.00,
BEIS,The Insolvency Service,05/04/2019,Travel and Subsistence,Business Service Division,Staff Payment,900007958,4.65,
BEIS,The Insolvency Service,05/04/2019,Travel and Subsistence,Business Service Division,Staff Payment,900007958,7.19,
BEIS,The Insolvency Service,05/04/2019,Travel and Subsistence,Business Service Division,Staff Payment,900007958,11.30,
BEIS,The Insolvency Service,05/04/2019,Travel and Subsistence,Business Service Division,Staff Payment,900007958,4.00,
BEIS,The Insolvency Service,05/04/2019,Travel and Subsistence,Business Service Division,Staff Payment,900007958,13.15,
BEIS,The Insolvency Service,05/04/2019,Travel and Subsistence,Business Service Division,Staff Payment,900007958,14.00,
BEIS,The Insolvency Service,05/04/2019,Travel and Subsistence,Business Service Division,Staff Payment,900007958,5.00,
BEIS,The Insolvency Service,05/04/2019,Travel and Subsistence,Business Service Division,Staff Payment,900007958,15.00,
BEIS,The Insolvency Service,05/04/2019,Travel and Subsistence,Business Service Division,Staff Payment,900007958,5.00,
BEIS,The Insolvency Service,05/04/2019,Travel and Subsistence,Strategy & Change,Staff Payment,900007830,30.00,
BEIS,The Insolvency Service,05/04/2019,Travel and Subsistence,Investigations & Enforcement Services,Staff Payment,900007921,14.50,
BEIS,The Insolvency Service,05/04/2019,Travel and Subsistence,Investigations & Enforcement Services,Staff Payment,900007921,3.49,
BEIS,The Insolvency Service,05/04/2019,Travel and Subsistence,Investigations & Enforcement Services,Staff Payment,900007921,14.50,
BEIS,The Insolvency Service,05/04/2019,Travel and Subsistence,Investigations & Enforcement Services,Staff Payment,900007942,15.00,
BEIS,The Insolvency Service,05/04/2019,Travel and Subsistence,Investigations & Enforcement Services,Staff Payment,900007942,3.95,
BEIS,The Insolvency Service,05/04/2019,Travel and Subsistence,Investigations & Enforcement Services,Staff Payment,900007942,3.35,
BEIS,The Insolvency Service,05/04/2019,Travel and Subsistence,Investigations & Enforcement Services,Staff Payment,900007898,4.35,
BEIS,The Insolvency Service,05/04/2019,Travel and Subsistence,Investigations & Enforcement Services,Staff Payment,900007898,15.00,
BEIS,The Insolvency Service,05/04/2019,Travel and Subsistence,Investigations & Enforcement Services,Staff Payment,900007898,5.00,
BEIS,The Insolvency Service,05/04/2019,Travel and Subsistence,Investigations & Enforcement Services,Staff Payment,900007898,2.80,
BEIS,The Insolvency Service,05/04/2019,Travel and Subsistence,Investigations & Enforcement Services,Staff Payment,900007864,9.00,
BEIS,The Insolvency Service,05/04/2019,Travel and Subsistence,Investigations & Enforcement Services,Staff Payment,900007516,5.00,
BEIS,The Insolvency Service,05/04/2019,Travel and Subsistence,Investigations & Enforcement Services,Staff Payment,900007516,15.00,
BEIS,The Insolvency Service,05/04/2019,Travel and Subsistence,Investigations & Enforcement Services,Staff Payment,900007516,4.34,
BEIS,The Insolvency Service,05/04/2019,Travel and Subsistence,Investigations & Enforcement Services,Staff Payment,900007516,4.25,
BEIS,The Insolvency Service,05/04/2019,Travel and Subsistence,People & Capability,Staff Payment,900007505,7.84,
BEIS,The Insolvency Service,05/04/2019,Travel and Subsistence,People & Capability,Staff Payment,900007506,8.59,
BEIS,The Insolvency Service,05/04/2019,Travel and Subsistence,People & Capability,Staff Payment,900007507,5.00,
BEIS,The Insolvency Service,05/04/2019,Travel and Subsistence,People & Capability,Staff Payment,900007509,6.85,
BEIS,The Insolvency Service,05/04/2019,Travel and Subsistence,People & Capability,Staff Payment,900007511,3.80,
BEIS,The Insolvency Service,05/04/2019,Travel and Subsistence,Information & Technology,Staff Payment,900007866,3.00,
BEIS,The Insolvency Service,05/04/2019,Travel and Subsistence,Information & Technology,Staff Payment,900007866,14.35,
BEIS,The Insolvency Service,05/04/2019,Travel and Subsistence,Information & Technology,Staff Payment,900007866,5.00,
BEIS,The Insolvency Service,05/04/2019,Travel and Subsistence,Information & Technology,Staff Payment,900007867,4.00,
BEIS,The Insolvency Service,05/04/2019,Travel and Subsistence,Information & Technology,Staff Payment,900007867,5.00,
BEIS,The Insolvency Service,05/04/2019,Travel and Subsistence,Information & Technology,Staff Payment,900007868,3.00,
BEIS,The Insolvency Service,05/04/2019,Travel and Subsistence,Information & Technology,Staff Payment,900007874,15.00,
BEIS,The Insolvency Service,05/04/2019,Travel and Subsistence,Information & Technology,Staff Payment,900007874,5.00,
BEIS,The Insolvency Service,05/04/2019,Travel and Subsistence,Information & Technology,Staff Payment,900007875,5.00,
BEIS,The Insolvency Service,05/04/2019,Travel and Subsistence,Information & Technology,Staff Payment,900007875,4.00,
BEIS,The Insolvency Service,05/04/2019,Travel and Subsistence,Information & Technology,Staff Payment,900007875,12.05,
BEIS,The Insolvency Service,05/04/2019,Travel and Subsistence,Information & Technology,Staff Payment,900007876,5.00,
BEIS,The Insolvency Service,05/04/2019,Travel and Subsistence,Finance & Commercial,Staff Payment,900007930,13.00,
BEIS,The Insolvency Service,05/04/2019,Travel and Subsistence,Business Service Division,Staff Payment,900007958,13.65,
BEIS,The Insolvency Service,05/04/2019,Travel and Subsistence,Business Service Division,Staff Payment,900007958,6.15,
BEIS,The Insolvency Service,05/04/2019,Travel and Subsistence,Business Service Division,Staff Payment,900007958,7.50,
BEIS,The Insolvency Service,05/04/2019,Travel and Subsistence,Strategy & Change,Staff Payment,900007830,5.50,
BEIS,The Insolvency Service,05/04/2019,Travel and Subsistence,Strategy & Change,Staff Payment,900007830,6.00,
BEIS,The Insolvency Service,05/04/2019,Travel and Subsistence,Investigations & Enforcement Services,Staff Payment,900007921,25.00,
BEIS,The Insolvency Service,05/04/2019,Travel and Subsistence,Finance & Commercial,Staff Payment,900007932,15.30,
BEIS,The Insolvency Service,05/04/2019,Travel and Subsistence,Official Receiver Services,Staff Payment,900007935,8.10,
BEIS,The Insolvency Service,05/04/2019,Travel and Subsistence,Official Receiver Services,Staff Payment,900007935,8.10,
BEIS,The Insolvency Service,05/04/2019,Travel and Subsistence,Official Receiver Services,Staff Payment,900007902,8.10,
BEIS,The Insolvency Service,05/04/2019,Travel and Subsistence,Business Service Division,Staff Payment,900007958,60.00,
BEIS,The Insolvency Service,05/04/2019,Travel and Subsistence,Business Service Division,Staff Payment,900007958,24.30,
BEIS,The Insolvency Service,05/04/2019,Travel and Subsistence,Investigations & Enforcement Services,Staff Payment,900007942,12.00,
BEIS,The Insolvency Service,05/04/2019,Travel and Subsistence,Investigations & Enforcement Services,Staff Payment,900007942,12.00,
BEIS,The Insolvency Service,05/04/2019,Travel and Subsistence,Investigations & Enforcement Services,Staff Payment,900007942,5.40,
BEIS,The Insolvency Service,05/04/2019,Travel and Subsistence,Investigations & Enforcement Services,Staff Payment,900007898,3.00,
BEIS,The Insolvency Service,05/04/2019,Travel and Subsistence,Investigations & Enforcement Services,Staff Payment,900007898,68.50,
BEIS,The Insolvency Service,05/04/2019,Travel and Subsistence,Investigations & Enforcement Services,Staff Payment,900007898,45.45,
BEIS,The Insolvency Service,05/04/2019,Travel and Subsistence,Investigations & Enforcement Services,Staff Payment,900007898,6.00,
BEIS,The Insolvency Service,05/04/2019,Travel and Subsistence,Investigations & Enforcement Services,Staff Payment,900007864,99.90,
BEIS,The Insolvency Service,05/04/2019,Travel and Subsistence,Investigations & Enforcement Services,Staff Payment,900007864,81.00,
BEIS,The Insolvency Service,05/04/2019,Travel and Subsistence,Investigations & Enforcement Services,Staff Payment,900007516,15.30,
BEIS,The Insolvency Service,05/04/2019,Travel and Subsistence,Investigations & Enforcement Services,Staff Payment,900007516,13.00,
BEIS,The Insolvency Service,05/04/2019,Travel and Subsistence,Investigations & Enforcement Services,Staff Payment,900007516,13.00,
BEIS,The Insolvency Service,05/04/2019,Travel and Subsistence,Investigations & Enforcement Services,Staff Payment,900007516,4.20,
BEIS,The Insolvency Service,05/04/2019,Travel and Subsistence,People & Capability,Staff Payment,900007505,16.20,
BEIS,The Insolvency Service,05/04/2019,Travel and Subsistence,People & Capability,Staff Payment,900007506,8.10,
BEIS,The Insolvency Service,05/04/2019,Travel and Subsistence,People & Capability,Staff Payment,900007506,8.10,
BEIS,The Insolvency Service,05/04/2019,Travel and Subsistence,People & Capability,Staff Payment,900007507,16.20,
BEIS,The Insolvency Service,05/04/2019,Travel and Subsistence,People & Capability,Staff Payment,900007509,16.20,
BEIS,The Insolvency Service,05/04/2019,Travel and Subsistence,People & Capability,Staff Payment,900007511,16.20,
BEIS,The Insolvency Service,05/04/2019,Travel and Subsistence,Official Receiver Services,Staff Payment,900007902,3.00,
BEIS,The Insolvency Service,08/04/2019,Travel and Subsistence,Official Receiver Services,Staff Payment,900007965,5.50,
BEIS,The Insolvency Service,08/04/2019,Travel and Subsistence,Official Receiver Services,Staff Payment,900007521,12.80,
BEIS,The Insolvency Service,08/04/2019,Travel and Subsistence,Chief Executive Office,Staff Payment,900007337,200.00,
BEIS,The Insolvency Service,08/04/2019,Travel and Subsistence,Investigations & Enforcement Services,Staff Payment,900007951,20.00,
BEIS,The Insolvency Service,08/04/2019,Travel and Subsistence,Investigations & Enforcement Services,Staff Payment,900007952,20.00,
BEIS,The Insolvency Service,08/04/2019,Travel and Subsistence,Finance & Commercial,Staff Payment,900007578,10.00,
BEIS,The Insolvency Service,08/04/2019,Travel and Subsistence,Official Receiver Services,Staff Payment,900007949,7.60,
BEIS,The Insolvency Service,08/04/2019,Travel and Subsistence,Chief Executive Office,Staff Payment,900007661,4.15,
BEIS,The Insolvency Service,08/04/2019,Travel and Subsistence,Chief Executive Office,Staff Payment,900007661,3.05,
BEIS,The Insolvency Service,08/04/2019,Travel and Subsistence,Chief Executive Office,Staff Payment,900007661,6.70,
BEIS,The Insolvency Service,08/04/2019,Travel and Subsistence,Chief Executive Office,Staff Payment,900007661,14.40,
BEIS,The Insolvency Service,08/04/2019,Travel and Subsistence,Chief Executive Office,Staff Payment,900007661,3.35,
BEIS,The Insolvency Service,08/04/2019,Travel and Subsistence,Business Service Division,Staff Payment,900007824,10.40,
BEIS,The Insolvency Service,08/04/2019,Travel and Subsistence,Chief Executive Office,Staff Payment,900007337,62.45,
BEIS,The Insolvency Service,08/04/2019,Travel and Subsistence,Chief Executive Office,Staff Payment,900007337,27.50,
BEIS,The Insolvency Service,08/04/2019,Travel and Subsistence,Chief Executive Office,Staff Payment,900007593,84.95,
BEIS,The Insolvency Service,08/04/2019,Travel and Subsistence,Business Service Division,Staff Payment,900007996,92.00,
BEIS,The Insolvency Service,08/04/2019,Travel and Subsistence,Business Service Division,Staff Payment,900007996,4.90,
BEIS,The Insolvency Service,08/04/2019,Travel and Subsistence,Chief Executive Office,Staff Payment,900007594,16.50,
BEIS,The Insolvency Service,08/04/2019,Travel and Subsistence,Chief Executive Office,Staff Payment,900007594,10.55,
BEIS,The Insolvency Service,08/04/2019,Travel and Subsistence,Chief Executive Office,Staff Payment,900007596,19.10,
BEIS,The Insolvency Service,08/04/2019,Travel and Subsistence,Chief Executive Office,Staff Payment,900007597,39.50,
BEIS,The Insolvency Service,08/04/2019,Travel and Subsistence,Investigations & Enforcement Services,Staff Payment,900007951,9.60,
BEIS,The Insolvency Service,08/04/2019,Travel and Subsistence,Investigations & Enforcement Services,Staff Payment,900007952,9.60,
BEIS,The Insolvency Service,08/04/2019,Travel and Subsistence,Business Service Division,Staff Payment,900007800,4.75,
BEIS,The Insolvency Service,08/04/2019,Travel and Subsistence,Business Service Division,Staff Payment,900007800,4.75,
BEIS,The Insolvency Service,08/04/2019,Travel and Subsistence,Official Receiver Services,Staff Payment,900007892,3.20,
BEIS,The Insolvency Service,08/04/2019,Travel and Subsistence,Official Receiver Services,Staff Payment,900007892,5.00,
BEIS,The Insolvency Service,08/04/2019,Travel and Subsistence,Official Receiver Services,Staff Payment,900007892,4.50,
BEIS,The Insolvency Service,08/04/2019,Travel and Subsistence,Official Receiver Services,Staff Payment,900007892,15.00,
BEIS,The Insolvency Service,08/04/2019,Travel and Subsistence,Official Receiver Services,Staff Payment,900007892,10.00,
BEIS,The Insolvency Service,08/04/2019,Travel and Subsistence,Official Receiver Services,Staff Payment,900007892,5.00,
BEIS,The Insolvency Service,08/04/2019,Travel and Subsistence,Official Receiver Services,Staff Payment,900007892,15.00,
BEIS,The Insolvency Service,08/04/2019,Travel and Subsistence,Official Receiver Services,Staff Payment,900007962,4.99,
BEIS,The Insolvency Service,08/04/2019,Travel and Subsistence,Business Service Division,Staff Payment,900007966,14.55,
BEIS,The Insolvency Service,08/04/2019,Travel and Subsistence,Business Service Division,Staff Payment,900007966,11.75,
BEIS,The Insolvency Service,08/04/2019,Travel and Subsistence,Business Service Division,Staff Payment,900007966,5.00,
BEIS,The Insolvency Service,08/04/2019,Travel and Subsistence,Investigations & Enforcement Services,Staff Payment,900007947,5.00,
BEIS,The Insolvency Service,08/04/2019,Travel and Subsistence,Investigations & Enforcement Services,Staff Payment,900007947,15.00,
BEIS,The Insolvency Service,08/04/2019,Travel and Subsistence,Official Receiver Services,Staff Payment,900007949,5.00,
BEIS,The Insolvency Service,08/04/2019,Travel and Subsistence,Official Receiver Services,Staff Payment,900007949,4.65,
BEIS,The Insolvency Service,08/04/2019,Travel and Subsistence,Official Receiver Services,Staff Payment,900007959,4.60,
BEIS,The Insolvency Service,08/04/2019,Travel and Subsistence,Official Receiver Services,Staff Payment,900007959,10.00,
BEIS,The Insolvency Service,08/04/2019,Travel and Subsistence,Official Receiver Services,Staff Payment,900007959,4.95,
BEIS,The Insolvency Service,08/04/2019,Travel and Subsistence,Official Receiver Services,Staff Payment,900007959,3.99,
BEIS,The Insolvency Service,08/04/2019,Travel and Subsistence,Official Receiver Services,Staff Payment,900007959,4.45,
BEIS,The Insolvency Service,08/04/2019,Travel and Subsistence,Official Receiver Services,Staff Payment,900007959,5.00,
BEIS,The Insolvency Service,08/04/2019,Travel and Subsistence,Official Receiver Services,Staff Payment,900007959,2.40,
BEIS,The Insolvency Service,08/04/2019,Travel and Subsistence,Official Receiver Services,Staff Payment,900007959,3.00,
BEIS,The Insolvency Service,08/04/2019,Travel and Subsistence,Official Receiver Services,Staff Payment,900007960,5.00,
BEIS,The Insolvency Service,08/04/2019,Travel and Subsistence,Official Receiver Services,Staff Payment,900007960,5.00,
BEIS,The Insolvency Service,08/04/2019,Travel and Subsistence,Official Receiver Services,Staff Payment,900007960,15.00,
BEIS,The Insolvency Service,08/04/2019,Travel and Subsistence,Chief Executive Office,Staff Payment,900007661,5.00,
BEIS,The Insolvency Service,08/04/2019,Travel and Subsistence,Chief Executive Office,Staff Payment,900007661,4.50,
BEIS,The Insolvency Service,08/04/2019,Travel and Subsistence,Chief Executive Office,Staff Payment,900007661,14.15,
BEIS,The Insolvency Service,08/04/2019,Travel and Subsistence,Chief Executive Office,Staff Payment,900007661,5.00,
BEIS,The Insolvency Service,08/04/2019,Travel and Subsistence,Chief Executive Office,Staff Payment,900007661,5.00,
BEIS,The Insolvency Service,08/04/2019,Travel and Subsistence,Chief Executive Office,Staff Payment,900007661,5.00,
BEIS,The Insolvency Service,08/04/2019,Travel and Subsistence,Chief Executive Office,Staff Payment,900007661,12.53,
BEIS,The Insolvency Service,08/04/2019,Travel and Subsistence,Chief Executive Office,Staff Payment,900007661,4.55,
BEIS,The Insolvency Service,08/04/2019,Travel and Subsistence,Chief Executive Office,Staff Payment,900007661,4.55,
BEIS,The Insolvency Service,08/04/2019,Travel and Subsistence,Business Service Division,Staff Payment,900007783,4.00,
BEIS,The Insolvency Service,08/04/2019,Travel and Subsistence,Business Service Division,Staff Payment,900007784,4.80,
BEIS,The Insolvency Service,08/04/2019,Travel and Subsistence,Business Service Division,Staff Payment,900007784,5.00,
BEIS,The Insolvency Service,08/04/2019,Travel and Subsistence,Business Service Division,Staff Payment,900007785,5.00,
BEIS,The Insolvency Service,08/04/2019,Travel and Subsistence,Business Service Division,Staff Payment,900007785,5.00,
BEIS,The Insolvency Service,08/04/2019,Travel and Subsistence,Business Service Division,Staff Payment,900007785,15.00,
BEIS,The Insolvency Service,08/04/2019,Travel and Subsistence,Business Service Division,Staff Payment,900007824,5.00,
BEIS,The Insolvency Service,08/04/2019,Travel and Subsistence,Chief Executive Office,Staff Payment,900007337,10.00,
BEIS,The Insolvency Service,08/04/2019,Travel and Subsistence,Chief Executive Office,Staff Payment,900007593,5.00,
BEIS,The Insolvency Service,08/04/2019,Travel and Subsistence,Business Service Division,Staff Payment,900007987,5.00,
BEIS,The Insolvency Service,08/04/2019,Travel and Subsistence,Business Service Division,Staff Payment,900007987,5.00,
BEIS,The Insolvency Service,08/04/2019,Travel and Subsistence,Business Service Division,Staff Payment,900007988,5.00,
BEIS,The Insolvency Service,08/04/2019,Travel and Subsistence,Business Service Division,Staff Payment,900007989,2.30,
BEIS,The Insolvency Service,08/04/2019,Travel and Subsistence,Business Service Division,Staff Payment,900007989,5.00,
BEIS,The Insolvency Service,08/04/2019,Travel and Subsistence,Business Service Division,Staff Payment,900007990,5.00,
BEIS,The Insolvency Service,08/04/2019,Travel and Subsistence,Business Service Division,Staff Payment,900007991,2.30,
BEIS,The Insolvency Service,08/04/2019,Travel and Subsistence,Business Service Division,Staff Payment,900007992,5.00,
BEIS,The Insolvency Service,08/04/2019,Travel and Subsistence,Business Service Division,Staff Payment,900007992,5.00,
BEIS,The Insolvency Service,08/04/2019,Travel and Subsistence,Business Service Division,Staff Payment,900007992,5.00,
BEIS,The Insolvency Service,08/04/2019,Travel and Subsistence,Business Service Division,Staff Payment,900007992,15.00,
BEIS,The Insolvency Service,08/04/2019,Travel and Subsistence,Business Service Division,Staff Payment,900007992,5.00,
BEIS,The Insolvency Service,08/04/2019,Travel and Subsistence,Business Service Division,Staff Payment,900007993,5.00,
BEIS,The Insolvency Service,08/04/2019,Travel and Subsistence,Business Service Division,Staff Payment,900007993,5.00,
BEIS,The Insolvency Service,08/04/2019,Travel and Subsistence,Business Service Division,Staff Payment,900007993,5.00,
BEIS,The Insolvency Service,08/04/2019,Travel and Subsistence,Business Service Division,Staff Payment,900007994,5.00,
BEIS,The Insolvency Service,08/04/2019,Travel and Subsistence,Business Service Division,Staff Payment,900007994,5.00,
BEIS,The Insolvency Service,08/04/2019,Travel and Subsistence,Business Service Division,Staff Payment,900007994,15.00,
BEIS,The Insolvency Service,08/04/2019,Travel and Subsistence,Business Service Division,Staff Payment,900007995,5.00,
BEIS,The Insolvency Service,08/04/2019,Travel and Subsistence,Business Service Division,Staff Payment,900007995,5.00,
BEIS,The Insolvency Service,08/04/2019,Travel and Subsistence,Business Service Division,Staff Payment,900007995,5.00,
BEIS,The Insolvency Service,08/04/2019,Travel and Subsistence,Business Service Division,Staff Payment,900007995,15.00,
BEIS,The Insolvency Service,08/04/2019,Travel and Subsistence,Business Service Division,Staff Payment,900007996,5.00,
BEIS,The Insolvency Service,08/04/2019,Travel and Subsistence,Business Service Division,Staff Payment,900007996,5.00,
BEIS,The Insolvency Service,08/04/2019,Travel and Subsistence,Investigations & Enforcement Services,Staff Payment,900007913,10.90,
BEIS,The Insolvency Service,08/04/2019,Travel and Subsistence,Investigations & Enforcement Services,Staff Payment,900007953,4.70,
BEIS,The Insolvency Service,08/04/2019,Travel and Subsistence,Investigations & Enforcement Services,Staff Payment,900007953,4.20,
BEIS,The Insolvency Service,08/04/2019,Travel and Subsistence,Investigations & Enforcement Services,Staff Payment,900007953,5.00,
BEIS,The Insolvency Service,08/04/2019,Travel and Subsistence,Investigations & Enforcement Services,Staff Payment,900007953,5.00,
BEIS,The Insolvency Service,08/04/2019,Travel and Subsistence,Investigations & Enforcement Services,Staff Payment,900007917,14.55,
BEIS,The Insolvency Service,08/04/2019,Travel and Subsistence,Investigations & Enforcement Services,Staff Payment,900007951,5.00,
BEIS,The Insolvency Service,08/04/2019,Travel and Subsistence,Investigations & Enforcement Services,Staff Payment,900007952,10.00,
BEIS,The Insolvency Service,08/04/2019,Travel and Subsistence,Finance & Commercial,Staff Payment,900007578,15.00,
BEIS,The Insolvency Service,08/04/2019,Travel and Subsistence,Finance & Commercial,Staff Payment,900007578,5.00,
BEIS,The Insolvency Service,08/04/2019,Travel and Subsistence,Finance & Commercial,Staff Payment,900007578,4.95,
BEIS,The Insolvency Service,08/04/2019,Travel and Subsistence,Finance & Commercial,Staff Payment,900007578,14.95,
BEIS,The Insolvency Service,08/04/2019,Travel and Subsistence,Business Service Division,Staff Payment,900007785,35.00,
BEIS,The Insolvency Service,08/04/2019,Travel and Subsistence,Business Service Division,Staff Payment,900007785,13.15,
BEIS,The Insolvency Service,08/04/2019,Travel and Subsistence,Chief Executive Office,Staff Payment,900007337,54.00,
BEIS,The Insolvency Service,08/04/2019,Travel and Subsistence,Chief Executive Office,Staff Payment,900007593,56.00,
BEIS,The Insolvency Service,08/04/2019,Travel and Subsistence,Business Service Division,Staff Payment,900007992,6.80,
BEIS,The Insolvency Service,08/04/2019,Travel and Subsistence,Business Service Division,Staff Payment,900007993,15.00,
BEIS,The Insolvency Service,08/04/2019,Travel and Subsistence,Business Service Division,Staff Payment,900007995,4.30,
BEIS,The Insolvency Service,08/04/2019,Travel and Subsistence,Business Service Division,Staff Payment,900007995,6.00,
BEIS,The Insolvency Service,08/04/2019,Travel and Subsistence,Business Service Division,Staff Payment,900007995,5.00,
BEIS,The Insolvency Service,08/04/2019,Travel and Subsistence,Business Service Division,Staff Payment,900007995,6.10,
BEIS,The Insolvency Service,08/04/2019,Travel and Subsistence,Official Receiver Services,Staff Payment,900007965,24.40,
BEIS,The Insolvency Service,08/04/2019,Travel and Subsistence,Official Receiver Services,Staff Payment,900007871,2.50,
BEIS,The Insolvency Service,08/04/2019,Travel and Subsistence,Official Receiver Services,Staff Payment,900007871,36.00,
BEIS,The Insolvency Service,08/04/2019,Travel and Subsistence,Official Receiver Services,Staff Payment,900007981,2.00,
BEIS,The Insolvency Service,08/04/2019,Travel and Subsistence,Official Receiver Services,Staff Payment,900007981,1.80,
BEIS,The Insolvency Service,08/04/2019,Travel and Subsistence,Official Receiver Services,Staff Payment,900007962,2.40,
BEIS,The Insolvency Service,08/04/2019,Travel and Subsistence,Official Receiver Services,Staff Payment,900007521,18.00,
BEIS,The Insolvency Service,08/04/2019,Travel and Subsistence,Official Receiver Services,Staff Payment,900007521,194.85,
BEIS,The Insolvency Service,08/04/2019,Travel and Subsistence,Chief Executive Office,Staff Payment,900007337,24.40,
BEIS,The Insolvency Service,08/04/2019,Travel and Subsistence,Chief Executive Office,Staff Payment,900007337,18.00,
BEIS,The Insolvency Service,08/04/2019,Travel and Subsistence,Chief Executive Office,Staff Payment,900007593,18.00,
BEIS,The Insolvency Service,08/04/2019,Travel and Subsistence,Investigations & Enforcement Services,Staff Payment,900007913,104.40,
BEIS,The Insolvency Service,08/04/2019,Travel and Subsistence,Investigations & Enforcement Services,Staff Payment,900007953,8.40,
BEIS,The Insolvency Service,08/04/2019,Travel and Subsistence,Investigations & Enforcement Services,Staff Payment,900007953,2.70,
BEIS,The Insolvency Service,08/04/2019,Travel and Subsistence,Investigations & Enforcement Services,Staff Payment,900007953,2.70,
BEIS,The Insolvency Service,08/04/2019,Travel and Subsistence,Investigations & Enforcement Services,Staff Payment,900007953,47.25,
BEIS,The Insolvency Service,08/04/2019,Travel and Subsistence,Investigations & Enforcement Services,Staff Payment,900007953,7.50,
BEIS,The Insolvency Service,08/04/2019,Travel and Subsistence,Investigations & Enforcement Services,Staff Payment,900007953,25.15,
BEIS,The Insolvency Service,08/04/2019,Travel and Subsistence,Investigations & Enforcement Services,Staff Payment,900007953,8.40,
BEIS,The Insolvency Service,08/04/2019,Travel and Subsistence,Chief Executive Office,Staff Payment,900007596,5.40,
BEIS,The Insolvency Service,08/04/2019,Travel and Subsistence,Chief Executive Office,Staff Payment,900007596,5.10,
BEIS,The Insolvency Service,08/04/2019,Travel and Subsistence,Chief Executive Office,Staff Payment,900007597,5.10,
BEIS,The Insolvency Service,08/04/2019,Travel and Subsistence,Chief Executive Office,Staff Payment,900007597,5.40,
BEIS,The Insolvency Service,08/04/2019,Travel and Subsistence,Finance & Commercial,Staff Payment,900007578,36.00,
BEIS,The Insolvency Service,09/04/2019,Travel and Subsistence,Official Receiver Services,Staff Payment,900007772,4.60,
BEIS,The Insolvency Service,09/04/2019,Travel and Subsistence,Finance & Commercial,Staff Payment,900008013,245.00,
BEIS,The Insolvency Service,09/04/2019,Travel and Subsistence,Investigations & Enforcement Services,Staff Payment,900008011,5.00,
BEIS,The Insolvency Service,09/04/2019,Travel and Subsistence,Official Receiver Services,Staff Payment,900007548,3.60,
BEIS,The Insolvency Service,09/04/2019,Travel and Subsistence,Official Receiver Services,Staff Payment,900007811,3.60,
BEIS,The Insolvency Service,09/04/2019,Travel and Subsistence,Finance & Commercial,Staff Payment,900007888,196.00,
BEIS,The Insolvency Service,09/04/2019,Travel and Subsistence,Chief Executive Office,Staff Payment,900008008,32.25,
BEIS,The Insolvency Service,09/04/2019,Travel and Subsistence,People & Capability,Staff Payment,900007979,4.80,
BEIS,The Insolvency Service,09/04/2019,Travel and Subsistence,People & Capability,Staff Payment,900007979,3.30,
BEIS,The Insolvency Service,09/04/2019,Travel and Subsistence,People & Capability,Staff Payment,900007979,5.70,
BEIS,The Insolvency Service,09/04/2019,Travel and Subsistence,Chief Executive Office,Staff Payment,900007863,5.00,
BEIS,The Insolvency Service,09/04/2019,Travel and Subsistence,Chief Executive Office,Staff Payment,900007975,2.40,
BEIS,The Insolvency Service,09/04/2019,Travel and Subsistence,Legal Services Division,Staff Payment,900007964,66.60,
BEIS,The Insolvency Service,09/04/2019,Travel and Subsistence,Chief Executive Office,Staff Payment,900007747,7.30,
BEIS,The Insolvency Service,09/04/2019,Travel and Subsistence,Chief Executive Office,Staff Payment,900007750,3.05,
BEIS,The Insolvency Service,09/04/2019,Travel and Subsistence,Chief Executive Office,Staff Payment,900007751,3.05,
BEIS,The Insolvency Service,09/04/2019,Travel and Subsistence,Chief Executive Office,Staff Payment,900007753,3.20,
BEIS,The Insolvency Service,09/04/2019,Travel and Subsistence,Chief Executive Office,Staff Payment,900007753,4.20,
BEIS,The Insolvency Service,09/04/2019,Travel and Subsistence,Chief Executive Office,Staff Payment,900007754,4.20,
BEIS,The Insolvency Service,09/04/2019,Travel and Subsistence,Official Receiver Services,Staff Payment,900007772,4.90,
BEIS,The Insolvency Service,09/04/2019,Travel and Subsistence,Official Receiver Services,Staff Payment,900007772,10.00,
BEIS,The Insolvency Service,09/04/2019,Travel and Subsistence,Official Receiver Services,Staff Payment,900007772,3.98,
BEIS,The Insolvency Service,09/04/2019,Travel and Subsistence,Official Receiver Services,Staff Payment,900007772,13.93,
BEIS,The Insolvency Service,09/04/2019,Travel and Subsistence,Official Receiver Services,Staff Payment,900007772,14.66,
BEIS,The Insolvency Service,09/04/2019,Travel and Subsistence,Information & Technology,Staff Payment,900007971,15.00,
BEIS,The Insolvency Service,09/04/2019,Travel and Subsistence,Information & Technology,Staff Payment,900007971,5.00,
BEIS,The Insolvency Service,09/04/2019,Travel and Subsistence,Information & Technology,Staff Payment,900007971,3.99,
BEIS,The Insolvency Service,09/04/2019,Travel and Subsistence,People & Capability,Staff Payment,900007999,12.50,
BEIS,The Insolvency Service,09/04/2019,Travel and Subsistence,People & Capability,Staff Payment,900007999,2.99,
BEIS,The Insolvency Service,09/04/2019,Travel and Subsistence,Business Service Division,Staff Payment,900007997,5.00,
BEIS,The Insolvency Service,09/04/2019,Travel and Subsistence,Investigations & Enforcement Services,Staff Payment,900008011,5.00,
BEIS,The Insolvency Service,09/04/2019,Travel and Subsistence,Investigations & Enforcement Services,Staff Payment,900008011,5.00,
BEIS,The Insolvency Service,09/04/2019,Travel and Subsistence,Investigations & Enforcement Services,Staff Payment,900008011,15.00,
BEIS,The Insolvency Service,09/04/2019,Travel and Subsistence,Investigations & Enforcement Services,Staff Payment,900008011,5.00,
BEIS,The Insolvency Service,09/04/2019,Travel and Subsistence,Investigations & Enforcement Services,Staff Payment,900008011,2.80,
BEIS,The Insolvency Service,09/04/2019,Travel and Subsistence,Investigations & Enforcement Services,Staff Payment,900008011,3.50,
BEIS,The Insolvency Service,09/04/2019,Travel and Subsistence,Investigations & Enforcement Services,Staff Payment,900008011,15.00,
BEIS,The Insolvency Service,09/04/2019,Travel and Subsistence,Investigations & Enforcement Services,Staff Payment,900008011,10.00,
BEIS,The Insolvency Service,09/04/2019,Travel and Subsistence,Investigations & Enforcement Services,Staff Payment,900008011,5.00,
BEIS,The Insolvency Service,09/04/2019,Travel and Subsistence,Investigations & Enforcement Services,Staff Payment,900008011,15.00,
BEIS,The Insolvency Service,09/04/2019,Travel and Subsistence,Investigations & Enforcement Services,Staff Payment,900008011,4.65,
BEIS,The Insolvency Service,09/04/2019,Travel and Subsistence,Investigations & Enforcement Services,Staff Payment,900008011,5.00,
BEIS,The Insolvency Service,09/04/2019,Travel and Subsistence,Investigations & Enforcement Services,Staff Payment,900008011,24.99,
BEIS,The Insolvency Service,09/04/2019,Travel and Subsistence,Investigations & Enforcement Services,Staff Payment,900008011,25.10,
BEIS,The Insolvency Service,09/04/2019,Travel and Subsistence,Investigations & Enforcement Services,Staff Payment,900008011,5.00,
BEIS,The Insolvency Service,09/04/2019,Travel and Subsistence,Official Receiver Services,Staff Payment,900007548,5.00,
BEIS,The Insolvency Service,09/04/2019,Travel and Subsistence,Official Receiver Services,Staff Payment,900007811,5.00,
BEIS,The Insolvency Service,09/04/2019,Travel and Subsistence,Investigations & Enforcement Services,Staff Payment,900007974,8.79,
BEIS,The Insolvency Service,09/04/2019,Travel and Subsistence,Chief Executive Office,Staff Payment,900007980,5.00,
BEIS,The Insolvency Service,09/04/2019,Travel and Subsistence,Chief Executive Office,Staff Payment,900007980,15.00,
BEIS,The Insolvency Service,09/04/2019,Travel and Subsistence,Strategy & Change,Staff Payment,900007982,5.00,
BEIS,The Insolvency Service,09/04/2019,Travel and Subsistence,Strategy & Change,Staff Payment,900007982,25.00,
BEIS,The Insolvency Service,09/04/2019,Travel and Subsistence,Official Receiver Services,Staff Payment,900007472,5.00,
BEIS,The Insolvency Service,09/04/2019,Travel and Subsistence,Official Receiver Services,Staff Payment,900007480,4.90,
BEIS,The Insolvency Service,09/04/2019,Travel and Subsistence,Official Receiver Services,Staff Payment,900007480,5.00,
BEIS,The Insolvency Service,09/04/2019,Travel and Subsistence,Investigations & Enforcement Services,Staff Payment,900008002,10.00,
BEIS,The Insolvency Service,09/04/2019,Travel and Subsistence,Strategy & Change,Staff Payment,900007911,20.00,
BEIS,The Insolvency Service,09/04/2019,Travel and Subsistence,Chief Executive Office,Staff Payment,900008008,5.00,
BEIS,The Insolvency Service,09/04/2019,Travel and Subsistence,Chief Executive Office,Staff Payment,900008008,15.00,
BEIS,The Insolvency Service,09/04/2019,Travel and Subsistence,Chief Executive Office,Staff Payment,900008008,15.00,
BEIS,The Insolvency Service,09/04/2019,Travel and Subsistence,Chief Executive Office,Staff Payment,900008008,15.00,
BEIS,The Insolvency Service,09/04/2019,Travel and Subsistence,Chief Executive Office,Staff Payment,900008008,15.00,
BEIS,The Insolvency Service,09/04/2019,Travel and Subsistence,Official Receiver Services,Staff Payment,900007977,4.28,
BEIS,The Insolvency Service,09/04/2019,Travel and Subsistence,Official Receiver Services,Staff Payment,900007977,3.89,
BEIS,The Insolvency Service,09/04/2019,Travel and Subsistence,Official Receiver Services,Staff Payment,900007977,14.00,
BEIS,The Insolvency Service,09/04/2019,Travel and Subsistence,Official Receiver Services,Staff Payment,900007977,5.00,
BEIS,The Insolvency Service,09/04/2019,Travel and Subsistence,Official Receiver Services,Staff Payment,900007978,4.74,
BEIS,The Insolvency Service,09/04/2019,Travel and Subsistence,Strategy & Change,Staff Payment,900007614,10.95,
BEIS,The Insolvency Service,09/04/2019,Travel and Subsistence,Strategy & Change,Staff Payment,900007614,15.00,
BEIS,The Insolvency Service,09/04/2019,Travel and Subsistence,Strategy & Change,Staff Payment,900007614,15.00,
BEIS,The Insolvency Service,09/04/2019,Travel and Subsistence,Strategy & Change,Staff Payment,900007614,14.00,
BEIS,The Insolvency Service,09/04/2019,Travel and Subsistence,People & Capability,Staff Payment,900007979,14.50,
BEIS,The Insolvency Service,09/04/2019,Travel and Subsistence,People & Capability,Staff Payment,900007979,5.00,
BEIS,The Insolvency Service,09/04/2019,Travel and Subsistence,People & Capability,Staff Payment,900007979,2.60,
BEIS,The Insolvency Service,09/04/2019,Travel and Subsistence,Chief Executive Office,Staff Payment,900007748,3.39,
BEIS,The Insolvency Service,09/04/2019,Travel and Subsistence,Chief Executive Office,Staff Payment,900007856,3.39,
BEIS,The Insolvency Service,09/04/2019,Travel and Subsistence,Chief Executive Office,Staff Payment,900007860,4.00,
BEIS,The Insolvency Service,09/04/2019,Travel and Subsistence,Chief Executive Office,Staff Payment,900007860,3.50,
BEIS,The Insolvency Service,09/04/2019,Travel and Subsistence,Chief Executive Office,Staff Payment,900007861,5.00,
BEIS,The Insolvency Service,09/04/2019,Travel and Subsistence,Chief Executive Office,Staff Payment,900007861,5.00,
BEIS,The Insolvency Service,09/04/2019,Travel and Subsistence,Chief Executive Office,Staff Payment,900007863,4.95,
BEIS,The Insolvency Service,09/04/2019,Travel and Subsistence,Chief Executive Office,Staff Payment,900007863,12.30,
BEIS,The Insolvency Service,09/04/2019,Travel and Subsistence,Chief Executive Office,Staff Payment,900007880,3.00,
BEIS,The Insolvency Service,09/04/2019,Travel and Subsistence,Chief Executive Office,Staff Payment,900007880,17.04,
BEIS,The Insolvency Service,09/04/2019,Travel and Subsistence,Chief Executive Office,Staff Payment,900007880,5.00,
BEIS,The Insolvency Service,09/04/2019,Travel and Subsistence,Chief Executive Office,Staff Payment,900007880,5.00,
BEIS,The Insolvency Service,09/04/2019,Travel and Subsistence,Chief Executive Office,Staff Payment,900007880,14.20,
BEIS,The Insolvency Service,09/04/2019,Travel and Subsistence,Chief Executive Office,Staff Payment,900007940,2.25,
BEIS,The Insolvency Service,09/04/2019,Travel and Subsistence,Chief Executive Office,Staff Payment,900007774,10.00,
BEIS,The Insolvency Service,09/04/2019,Travel and Subsistence,Chief Executive Office,Staff Payment,900007774,15.00,
BEIS,The Insolvency Service,09/04/2019,Travel and Subsistence,Chief Executive Office,Staff Payment,900007774,5.00,
BEIS,The Insolvency Service,09/04/2019,Travel and Subsistence,Chief Executive Office,Staff Payment,900007961,5.00,
BEIS,The Insolvency Service,09/04/2019,Travel and Subsistence,Chief Executive Office,Staff Payment,900007961,15.00,
BEIS,The Insolvency Service,09/04/2019,Travel and Subsistence,Chief Executive Office,Staff Payment,900007961,10.00,
BEIS,The Insolvency Service,09/04/2019,Travel and Subsistence,Chief Executive Office,Staff Payment,900007747,5.00,
BEIS,The Insolvency Service,09/04/2019,Travel and Subsistence,Chief Executive Office,Staff Payment,900007747,2.00,
BEIS,The Insolvency Service,09/04/2019,Travel and Subsistence,Chief Executive Office,Staff Payment,900007750,10.80,
BEIS,The Insolvency Service,09/04/2019,Travel and Subsistence,Chief Executive Office,Staff Payment,900007751,3.00,
BEIS,The Insolvency Service,09/04/2019,Travel and Subsistence,Chief Executive Office,Staff Payment,900007754,3.00,
BEIS,The Insolvency Service,09/04/2019,Travel and Subsistence,Chief Executive Office,Staff Payment,900007756,15.00,
BEIS,The Insolvency Service,09/04/2019,Travel and Subsistence,Strategy & Change,Staff Payment,900007982,5.50,
BEIS,The Insolvency Service,09/04/2019,Travel and Subsistence,Strategy & Change,Staff Payment,900007911,18.50,
BEIS,The Insolvency Service,09/04/2019,Travel and Subsistence,Strategy & Change,Staff Payment,900007911,19.00,
BEIS,The Insolvency Service,09/04/2019,Travel and Subsistence,Chief Executive Office,Staff Payment,900008008,7.50,
BEIS,The Insolvency Service,09/04/2019,Travel and Subsistence,Chief Executive Office,Staff Payment,900008008,15.00,
BEIS,The Insolvency Service,09/04/2019,Travel and Subsistence,Chief Executive Office,Staff Payment,900007880,17.00,
BEIS,The Insolvency Service,09/04/2019,Travel and Subsistence,Chief Executive Office,Staff Payment,900007940,17.00,
BEIS,The Insolvency Service,09/04/2019,Travel and Subsistence,Official Receiver Services,Staff Payment,900007938,68.40,
BEIS,The Insolvency Service,09/04/2019,Travel and Subsistence,Official Receiver Services,Staff Payment,900007938,2.00,
